BIOGUIDE_ID,OFFICE,QUARTER,CATEGORY,DATE,PAYEE,START DATE,END DATE,PURPOSE,AMOUNT,YEAR,TRANSCODE,TRANSCODELONG,RECORDID,RECIP (orig.)
,OFFICE OF THE SPEAKER,2012Q4,TRAVEL,10-24,"SOMMERS,MICHAEL",09/05/12,09/05/12,TAXI/PARKING/TOLLS,20.00,2012,AP,Accounts payable,00555146,"SOMMERS,MICHAEL"
,OFFICE OF THE SPEAKER,2012Q4,TRAVEL,10-24,"HALEY, KATHERINE C",07/27/12,07/27/12,TAXI/PARKING/TOLLS,23.00,2012,AP,Accounts payable,00555164,"HALEY, KATHERINE C"
,OFFICE OF THE SPEAKER,2012Q4,TRAVEL,10-24,"HALEY, KATHERINE C",08/14/12,09/14/12,TAXI/PARKING/TOLLS,24.00,2012,AP,Accounts payable,00555167,"HALEY, KATHERINE C"
,OFFICE OF THE SPEAKER,2012Q4,TRAVEL,11-29,"SKEWES-COX,CHRISTINA J",05/21/12,05/21/12,PRIVATE AUTO MILEAGE,-29.70,2012,AP,Accounts payable,00574641,"SKEWES-COX,CHRISTINA J"
,OFFICE OF THE SPEAKER,2012Q4,SUPPLIES AND MATERIALS,10-15,JOE RAGAN'S COFFEE LTD,09/04/12,09/04/12,FOOD & BEVERAGE,561.54,2012,AP,Accounts payable,00544926,JOE RAGAN'S COFFEE LTD
,OFFICE OF THE SPEAKER,2012Q4,SUPPLIES AND MATERIALS,10-15,JOE RAGAN'S COFFEE LTD,09/11/12,09/11/12,FOOD & BEVERAGE,638.85,2012,AP,Accounts payable,00544930,JOE RAGAN'S COFFEE LTD
,OFFICE OF THE SPEAKER,2012Q4,SUPPLIES AND MATERIALS,10-15,JOE RAGAN'S COFFEE LTD,09/18/12,09/18/12,FOOD & BEVERAGE,458.70,2012,AP,Accounts payable,00544933,JOE RAGAN'S COFFEE LTD
,OFFICE OF THE SPEAKER,2012Q4,SUPPLIES AND MATERIALS,10-18,JOE RAGAN'S COFFEE LTD,07/09/12,07/09/12,FOOD & BEVERAGE,50.00,2012,AP,Accounts payable,00552178,JOE RAGAN'S COFFEE LTD
,OFFICE OF THE SPEAKER,2012Q4,SUPPLIES AND MATERIALS,10-23,JOE RAGAN'S COFFEE LTD,09/25/12,09/25/12,FOOD & BEVERAGE,255.34,2012,AP,Accounts payable,00544938,JOE RAGAN'S COFFEE LTD
,OFFICE OF THE MAJORITY LEADER,2012Q4,TRAVEL,10-25,"CUMMINGS, TIMOTHY P",07/20/12,09/13/12,PRIVATE AUTO MILEAGE,30.30,2012,AP,Accounts payable,00556035,"CUMMINGS, TIMOTHY P"
,OFFICE OF THE MAJORITY LEADER,2012Q4,TRAVEL,10-25,"GUSTAFSON,NICOLE M",04/12/12,09/26/12,TAXI/PARKING/TOLLS,295.90,2012,AP,Accounts payable,00556038,"GUSTAFSON,NICOLE M"
,OFFICE OF THE MAJORITY LEADER,2012Q4,TRAVEL,10-25,"GUSTAFSON,NICOLE M",04/12/12,04/16/12,LODGING,407.69,2012,AP,Accounts payable,00556052,"GUSTAFSON,NICOLE M"
,OFFICE OF THE MAJORITY LEADER,2012Q4,TRAVEL,10-25,"GUSTAFSON,NICOLE M",04/12/12,04/16/12,MEALS,120.08,2012,AP,Accounts payable,00556056,"GUSTAFSON,NICOLE M"
,OFFICE OF THE MAJORITY LEADER,2012Q4,SUPPLIES AND MATERIALS,10-25,CANTEEN / HIGHLAND ESTATES COFFEE TRADER,04/24/12,04/24/12,FOOD & BEVERAGE,-332.00,2012,AP,Accounts payable,00457854,CANTEEN / HIGHLAND ESTATES COFFEE TRADER
,OFFICE OF THE MINORITY LEADER,2012Q4,TRAVEL,10-01,"SKEWES-COX,CHRISTINA J",09/18/12,09/18/12,TRAVEL SUBSISTENCE,54.19,2012,AP,Accounts payable,00539362,"SKEWES-COX,CHRISTINA J"
,OFFICE OF THE MINORITY LEADER,2012Q4,TRAVEL,10-01,"SKEWES-COX,CHRISTINA J",09/19/12,09/20/12,TAXI/PARKING/TOLLS,32.00,2012,AP,Accounts payable,00539364,"SKEWES-COX,CHRISTINA J"
,OFFICE OF THE MINORITY LEADER,2012Q4,TRAVEL,10-01,"STIVERS, JONATHAN",09/08/12,09/08/12,TAXI/PARKING/TOLLS,28.00,2012,AP,Accounts payable,00539367,"STIVERS, JONATHAN"
,OFFICE OF THE MINORITY LEADER,2012Q4,TRAVEL,10-10,"SURGEON,BINA G",09/26/12,09/26/12,TAXI/PARKING/TOLLS,12.00,2012,AP,Accounts payable,00542264,"SURGEON,BINA G"
,OFFICE OF THE MINORITY LEADER,2012Q4,TRAVEL,10-10,"PATTI, VERNA A",09/23/12,09/25/12,MEALS,71.79,2012,AP,Accounts payable,00542269,"PATTI, VERNA A"
,OFFICE OF THE MINORITY LEADER,2012Q4,TRAVEL,10-10,"PATTI, VERNA A",09/22/12,09/23/12,TAXI/PARKING/TOLLS,33.00,2012,AP,Accounts payable,00542271,"PATTI, VERNA A"
,OFFICE OF THE MINORITY LEADER,2012Q4,TRAVEL,10-11,CITIBANK GOV CARD SERVICE,09/26/12,09/26/12,TRAVEL SUBSISTENCE,100.76,2012,AP,Accounts payable,00542113,CITIBANK GOV CARD SERVICE
,OFFICE OF THE MINORITY LEADER,2012Q4,TRAVEL,10-15,"SANCHEZ, CARLOS S",09/12/12,09/13/12,TAXI/PARKING/TOLLS,64.00,2012,AP,Accounts payable,00545765,"SANCHEZ, CARLOS S"
,OFFICE OF THE MINORITY LEADER,2012Q4,TRAVEL,10-15,"HAMMILL, ANDREW T",09/26/12,09/27/12,TRAVEL SUBSISTENCE,967.65,2012,AP,Accounts payable,00545772,"HAMMILL, ANDREW T"
,OFFICE OF THE MINORITY LEADER,2012Q4,TRAVEL,10-15,CITIBANK GOV CARD SERVICE,09/17/12,10/01/12,TRAVEL SUBSISTENCE,"1,925.27",2012,AP,Accounts payable,00546137,CITIBANK GOV CARD SERVICE
,OFFICE OF THE MINORITY LEADER,2012Q4,TRAVEL,10-19,CITIBANK GOV CARD SERVICE,08/27/12,10/19/12,TRAVEL SUBSISTENCE,"2,877.29",2012,AP,Accounts payable,00553217,CITIBANK GOV CARD SERVICE
,OFFICE OF THE MINORITY LEADER,2012Q4,TRAVEL,10-19,"SKEWES-COX,CHRISTINA J",09/28/12,10/08/12,TRAVEL SUBSISTENCE,105.20,2012,AP,Accounts payable,00553285,"SKEWES-COX,CHRISTINA J"
,OFFICE OF THE MINORITY LEADER,2012Q4,TRAVEL,11-05,"SURGEON,BINA G",09/27/12,10/16/12,TRAVEL SUBSISTENCE,145.50,2012,AP,Accounts payable,00559105,"SURGEON,BINA G"
,OFFICE OF THE MINORITY LEADER,2012Q4,TRAVEL,11-16,"SKEWES-COX,CHRISTINA J",09/28/12,10/23/12,TRAVEL SUBSISTENCE,46.81,2012,AP,Accounts payable,00564928,"SKEWES-COX,CHRISTINA J"
,OFFICE OF THE MINORITY LEADER,2012Q4,TRAVEL,11-21,CITIBANK GOV CARD SERVICE,09/26/12,10/20/12,TRAVEL SUBSISTENCE,"3,553.62",2012,AP,Accounts payable,00571137,CITIBANK GOV CARD SERVICE
,OFFICE OF THE MINORITY LEADER,2012Q4,TRAVEL,11-21,CITIBANK GOV CARD SERVICE,09/26/12,10/24/12,TRAVEL SUBSISTENCE,"3,284.91",2012,AP,Accounts payable,00571141,CITIBANK GOV CARD SERVICE
,OFFICE OF THE MINORITY LEADER,2012Q4,TRAVEL,11-29,"SKEWES-COX,CHRISTINA J",05/21/12,05/21/12,PRIVATE AUTO MILEAGE,29.70,2012,AP,Accounts payable,00574641,"SKEWES-COX,CHRISTINA J"
,OFFICE OF THE MINORITY LEADER,2012Q4,TRAVEL,12-27,"UENG, STEPHANIE L",08/25/12,09/02/12,TRAVEL SUBSISTENCE,899.38,2012,AP,Accounts payable,00591139,"UENG, STEPHANIE L"
,OFFICE OF THE MINORITY LEADER,2012Q4,"RENT, COMMUNICATION, UTILITIES",10-15,FEDEX,09/10/12,09/10/12,POSTAGE / COURIER / BOX RENTAL,5.53,2012,AP,Accounts payable,00545774,FEDEX
,OFFICE OF THE MINORITY LEADER,2012Q4,"RENT, COMMUNICATION, UTILITIES",10-19,FEDEX,09/13/12,09/18/12,POSTAGE / COURIER / BOX RENTAL,77.04,2012,AP,Accounts payable,00553174,FEDEX
,OFFICE OF THE MINORITY LEADER,2012Q4,"RENT, COMMUNICATION, UTILITIES",10-31,FEDEX,09/21/12,09/26/12,POSTAGE / COURIER / BOX RENTAL,92.26,2012,AP,Accounts payable,00556975,FEDEX
,OFFICE OF THE MINORITY LEADER,2012Q4,"RENT, COMMUNICATION, UTILITIES",10-31,FEDEX,09/24/12,09/24/12,POSTAGE / COURIER / BOX RENTAL,27.55,2012,AP,Accounts payable,00556978,FEDEX
,OFFICE OF THE MINORITY LEADER,2012Q4,PRINTING AND REPRODUCTION,10-10,"SURGEON,BINA G",09/26/12,09/27/12,PRINTING & REPRODUCTION,96.90,2012,AP,Accounts payable,00542266,"SURGEON,BINA G"
,OFFICE OF THE MINORITY LEADER,2012Q4,OTHER SERVICES,10-01,NEAL R. GROSS & CO INC,09/21/12,09/21/12,STENOGRAPHIC REPORTING,750.00,2012,AP,Accounts payable,00539438,NEAL R. GROSS & CO INC
,OFFICE OF THE MINORITY LEADER,2012Q4,SUPPLIES AND MATERIALS,10-03,CAPITOLHOST,03/01/12,03/01/12,FOOD & BEVERAGE,28.20,2012,AP,Accounts payable,00540432,CAPITOLHOST
,OFFICE OF THE MINORITY LEADER,2012Q4,SUPPLIES AND MATERIALS,10-03,CAPITOLHOST,03/02/12,03/02/12,FOOD & BEVERAGE,42.30,2012,AP,Accounts payable,00540436,CAPITOLHOST
,OFFICE OF THE MINORITY LEADER,2012Q4,SUPPLIES AND MATERIALS,10-03,CAPITOLHOST,03/07/12,03/07/12,FOOD & BEVERAGE,89.99,2012,AP,Accounts payable,00540438,CAPITOLHOST
,OFFICE OF THE MINORITY LEADER,2012Q4,SUPPLIES AND MATERIALS,10-03,CAPITOLHOST,03/08/12,03/08/12,FOOD & BEVERAGE,44.99,2012,AP,Accounts payable,00540440,CAPITOLHOST
,OFFICE OF THE MINORITY LEADER,2012Q4,SUPPLIES AND MATERIALS,10-03,CAPITOLHOST,03/09/12,03/09/12,FOOD & BEVERAGE,42.30,2012,AP,Accounts payable,00540442,CAPITOLHOST
,OFFICE OF THE MINORITY LEADER,2012Q4,SUPPLIES AND MATERIALS,10-03,CAPITOLHOST,02/10/12,02/10/12,FOOD & BEVERAGE,42.30,2012,AP,Accounts payable,00540445,CAPITOLHOST
,OFFICE OF THE MINORITY LEADER,2012Q4,SUPPLIES AND MATERIALS,10-03,CAPITOLHOST,02/09/12,02/09/12,FOOD & BEVERAGE,28.20,2012,AP,Accounts payable,00540450,CAPITOLHOST
,OFFICE OF THE MINORITY LEADER,2012Q4,SUPPLIES AND MATERIALS,10-03,CAPITOLHOST,02/08/12,02/08/12,FOOD & BEVERAGE,89.99,2012,AP,Accounts payable,00540451,CAPITOLHOST
,OFFICE OF THE MINORITY LEADER,2012Q4,SUPPLIES AND MATERIALS,10-03,CAPITOLHOST,02/03/12,02/03/12,FOOD & BEVERAGE,42.30,2012,AP,Accounts payable,00540452,CAPITOLHOST
,OFFICE OF THE MINORITY LEADER,2012Q4,SUPPLIES AND MATERIALS,10-03,CAPITOLHOST,02/02/12,02/02/12,FOOD & BEVERAGE,395.35,2012,AP,Accounts payable,00540453,CAPITOLHOST
,OFFICE OF THE MINORITY LEADER,2012Q4,SUPPLIES AND MATERIALS,10-03,CAPITOLHOST,01/18/12,01/18/12,FOOD & BEVERAGE,89.99,2012,AP,Accounts payable,00540454,CAPITOLHOST
,OFFICE OF THE MINORITY LEADER,2012Q4,SUPPLIES AND MATERIALS,10-03,CAPITOLHOST,01/20/12,01/20/12,FOOD & BEVERAGE,42.30,2012,AP,Accounts payable,00540455,CAPITOLHOST
,OFFICE OF THE MINORITY LEADER,2012Q4,SUPPLIES AND MATERIALS,10-03,CAPITOLHOST,01/25/12,01/25/12,FOOD & BEVERAGE,191.23,2012,AP,Accounts payable,00540456,CAPITOLHOST
,OFFICE OF THE MINORITY LEADER,2012Q4,SUPPLIES AND MATERIALS,10-03,CAPITOLHOST,01/27/12,01/27/12,FOOD & BEVERAGE,42.30,2012,AP,Accounts payable,00540457,CAPITOLHOST
,OFFICE OF THE MINORITY LEADER,2012Q4,SUPPLIES AND MATERIALS,10-03,CAPITOLHOST,02/02/12,02/02/12,FOOD & BEVERAGE,28.20,2012,AP,Accounts payable,00540459,CAPITOLHOST
,OFFICE OF THE MINORITY LEADER,2012Q4,SUPPLIES AND MATERIALS,10-03,CAPITOLHOST,03/21/12,03/21/12,FOOD & BEVERAGE,89.99,2012,AP,Accounts payable,00540460,CAPITOLHOST
,OFFICE OF THE MINORITY LEADER,2012Q4,SUPPLIES AND MATERIALS,10-03,CAPITOLHOST,03/22/12,03/22/12,FOOD & BEVERAGE,28.20,2012,AP,Accounts payable,00540461,CAPITOLHOST
,OFFICE OF THE MINORITY LEADER,2012Q4,SUPPLIES AND MATERIALS,10-03,CAPITOLHOST,03/23/12,03/23/12,FOOD & BEVERAGE,42.30,2012,AP,Accounts payable,00540462,CAPITOLHOST
,OFFICE OF THE MINORITY LEADER,2012Q4,SUPPLIES AND MATERIALS,10-03,CAPITOLHOST,03/28/12,03/28/12,FOOD & BEVERAGE,89.99,2012,AP,Accounts payable,00540463,CAPITOLHOST
,OFFICE OF THE MINORITY LEADER,2012Q4,SUPPLIES AND MATERIALS,10-03,CAPITOLHOST,03/29/12,03/29/12,FOOD & BEVERAGE,28.20,2012,AP,Accounts payable,00540464,CAPITOLHOST
,OFFICE OF THE MINORITY LEADER,2012Q4,SUPPLIES AND MATERIALS,10-05,CAPITOLHOST,03/30/12,03/30/12,FOOD & BEVERAGE,42.30,2012,AP,Accounts payable,00541939,CAPITOLHOST
,OFFICE OF THE MINORITY LEADER,2012Q4,SUPPLIES AND MATERIALS,10-10,"SURGEON,BINA G",09/20/12,09/20/12,FOOD & BEVERAGE,44.61,2012,AP,Accounts payable,00542255,"SURGEON,BINA G"
,OFFICE OF THE MINORITY LEADER,2012Q4,SUPPLIES AND MATERIALS,10-10,CRYSTAL SPRINGS,09/06/12,09/06/12,FOOD & BEVERAGE,219.21,2012,AP,Accounts payable,00542274,CRYSTAL SPRINGS
,OFFICE OF THE MINORITY LEADER,2012Q4,SUPPLIES AND MATERIALS,10-10,CAPITOLHOST,09/13/12,09/13/12,FOOD & BEVERAGE,180.00,2012,AP,Accounts payable,00542277,CAPITOLHOST
,OFFICE OF THE MINORITY LEADER,2012Q4,SUPPLIES AND MATERIALS,10-10,CAPITOLHOST,09/12/12,09/12/12,FOOD & BEVERAGE,33.00,2012,AP,Accounts payable,00542281,CAPITOLHOST
,OFFICE OF THE MINORITY LEADER,2012Q4,SUPPLIES AND MATERIALS,10-10,BURRELLESLUCE,09/01/12,09/30/12,PUBLICATIONS/REFERENCE MAT'L,362.29,2012,AP,Accounts payable,00542283,BURRELLESLUCE
,OFFICE OF THE MINORITY LEADER,2012Q4,SUPPLIES AND MATERIALS,10-15,"HAMMILL, ANDREW T",09/27/12,10/03/12,PUBLICATIONS/REFERENCE MAT'L,58.29,2012,AP,Accounts payable,00545769,"HAMMILL, ANDREW T"
,OFFICE OF THE MINORITY LEADER,2012Q4,SUPPLIES AND MATERIALS,10-19,CAPITOLHOST,09/27/12,09/27/12,FOOD & BEVERAGE,33.00,2012,AP,Accounts payable,00553281,CAPITOLHOST
,OFFICE OF THE MINORITY LEADER,2012Q4,SUPPLIES AND MATERIALS,11-05,MORE DIRECT INC,09/21/12,09/21/12,OFFICE SUPPLIES (OUTSIDE),796.00,2012,AP,Accounts payable,00559113,MORE DIRECT INC
,OFFICE OF THE MINORITY LEADER,2012Q4,SUPPLIES AND MATERIALS,11-21,CAPITOLHOST,05/16/12,05/16/12,FOOD & BEVERAGE,33.00,2012,AP,Accounts payable,00571574,CAPITOLHOST
,OFFICE OF THE MINORITY LEADER,2012Q4,SUPPLIES AND MATERIALS,11-21,CAPITOLHOST,06/08/12,06/08/12,FOOD & BEVERAGE,33.00,2012,AP,Accounts payable,00571585,CAPITOLHOST
,OFFICE OF THE MINORITY LEADER,2012Q4,SUPPLIES AND MATERIALS,11-21,CAPITOLHOST,07/11/12,07/11/12,FOOD & BEVERAGE,33.00,2012,AP,Accounts payable,00571589,CAPITOLHOST
,OFFICE OF THE MINORITY LEADER,2012Q4,SUPPLIES AND MATERIALS,11-26,CAPITOLHOST,02/08/12,02/08/12,FOOD & BEVERAGE,49.50,2012,AP,Accounts payable,00572414,CAPITOLHOST
,OFFICE OF THE MINORITY LEADER,2012Q4,SUPPLIES AND MATERIALS,12-05,CAPITOLHOST,09/14/12,09/14/12,FOOD & BEVERAGE,145.00,2012,AP,Accounts payable,00577631,CAPITOLHOST
,OFFICE OF THE MINORITY LEADER,2012Q4,SUPPLIES AND MATERIALS,12-05,CAPITOLHOST,09/14/12,09/14/12,FOOD & BEVERAGE,360.80,2012,AP,Accounts payable,00577634,CAPITOLHOST
,OFFICE OF THE MINORITY LEADER,2012Q4,SUPPLIES AND MATERIALS,12-13,MORE DIRECT INC,09/21/12,09/21/12,OFFICE SUPPLIES (OUTSIDE),-796.00,2012,AP,Accounts payable,00582129,MORE DIRECT INC
,OFFICE OF THE MINORITY LEADER,2012Q4,SUPPLIES AND MATERIALS,12-27,HELEN OLIVIA,04/23/12,04/23/12,HABITATION EXPENSE,249.00,2012,AP,Accounts payable,00591135,HELEN OLIVIA
,OFFICE OF THE MAJORITY WHIP,2012Q4,TRAVEL,10-23,"WORTH, BRIAN A",09/26/12,09/26/12,TAXI/PARKING/TOLLS,10.00,2012,AP,Accounts payable,00553887,"WORTH, BRIAN A"
,OFFICE OF THE MAJORITY WHIP,2012Q4,TRAVEL,10-23,"WORTH, BRIAN A",09/26/12,09/26/12,TAXI/PARKING/TOLLS,10.00,2012,AP,Accounts payable,00553892,"WORTH, BRIAN A"
,OFFICE OF THE MAJORITY WHIP,2012Q4,SUPPLIES AND MATERIALS,10-22,DEER PARK WATER,08/27/12,09/26/12,WATER,165.37,2012,AP,Accounts payable,00553876,DEER PARK WATER
,OFFICE OF THE MAJORITY WHIP,2012Q4,SUPPLIES AND MATERIALS,11-21,DEER PARK WATER,09/27/12,10/26/12,WATER,109.84,2012,AP,Accounts payable,00571561,DEER PARK WATER
,OFFICE OF THE MINORITY WHIP,2012Q4,TRAVEL,10-02,"DWYER, STEPHEN",07/24/12,07/30/12,TAXI/PARKING/TOLLS,42.00,2012,AP,Accounts payable,00540012,"DWYER, STEPHEN"
,OFFICE OF THE MINORITY WHIP,2012Q4,TRAVEL,11-20,"GHOSH,APRATIM",09/29/12,09/29/12,TAXI/PARKING/TOLLS,9.00,2012,AP,Accounts payable,00569672,"GHOSH,APRATIM"
,OFFICE OF THE MINORITY WHIP,2012Q4,TRAVEL,11-20,"GENSEMER, ELLIOT J",09/29/12,09/29/12,TAXI/PARKING/TOLLS,20.00,2012,AP,Accounts payable,00569673,"GENSEMER, ELLIOT J"
,OFFICE OF THE MINORITY WHIP,2012Q4,SUPPLIES AND MATERIALS,10-02,"ROMICK, BRIAN",09/27/12,09/27/12,FOOD & BEVERAGE,"1,085.50",2012,AP,Accounts payable,00540004,"ROMICK, BRIAN"
,OFFICE OF THE MINORITY WHIP,2012Q4,SUPPLIES AND MATERIALS,10-03,CAPITOLHOST,09/21/12,09/21/12,FOOD & BEVERAGE,42.30,2012,AP,Accounts payable,00540545,CAPITOLHOST
,OFFICE OF THE MINORITY WHIP,2012Q4,SUPPLIES AND MATERIALS,10-03,PANERA BREAD COMPANY,09/21/12,09/21/12,FOOD & BEVERAGE,90.75,2012,AP,Accounts payable,00540547,PANERA BREAD COMPANY
,OFFICE OF THE MINORITY WHIP,2012Q4,SUPPLIES AND MATERIALS,10-03,CAPITOLHOST,09/27/12,09/27/12,FOOD & BEVERAGE,"1,050.00",2012,AP,Accounts payable,00540548,CAPITOLHOST
,OFFICE OF THE MINORITY WHIP,2012Q4,SUPPLIES AND MATERIALS,10-03,CAPITOLHOST,09/28/12,09/28/12,FOOD & BEVERAGE,"1,050.00",2012,AP,Accounts payable,00540549,CAPITOLHOST
,OFFICE OF THE MINORITY WHIP,2012Q4,SUPPLIES AND MATERIALS,10-03,PANERA BREAD COMPANY,09/12/12,09/12/12,FOOD & BEVERAGE,106.95,2012,AP,Accounts payable,00540551,PANERA BREAD COMPANY
,OFFICE OF THE MINORITY WHIP,2012Q4,SUPPLIES AND MATERIALS,10-03,CAPITOLHOST,09/12/12,09/12/12,FOOD & BEVERAGE,89.99,2012,AP,Accounts payable,00540552,CAPITOLHOST
,OFFICE OF THE MINORITY WHIP,2012Q4,SUPPLIES AND MATERIALS,10-03,CAPITOLHOST,09/13/12,09/13/12,FOOD & BEVERAGE,28.20,2012,AP,Accounts payable,00540553,CAPITOLHOST
,OFFICE OF THE MINORITY WHIP,2012Q4,SUPPLIES AND MATERIALS,10-03,PANERA BREAD COMPANY,09/14/12,09/14/12,FOOD & BEVERAGE,100.74,2012,AP,Accounts payable,00540557,PANERA BREAD COMPANY
,OFFICE OF THE MINORITY WHIP,2012Q4,SUPPLIES AND MATERIALS,10-03,CAPITOLHOST,09/20/12,09/20/12,FOOD & BEVERAGE,28.20,2012,AP,Accounts payable,00540558,CAPITOLHOST
,OFFICE OF THE MINORITY WHIP,2012Q4,SUPPLIES AND MATERIALS,12-11,"GOFF,SHUWANZA R",02/23/12,02/23/12,FOOD & BEVERAGE,8.71,2012,AP,Accounts payable,00580452,"GOFF,SHUWANZA R"
,OFFICE OF THE MINORITY WHIP,2012Q4,SUPPLIES AND MATERIALS,12-27,CAPITOLHOST,08/01/12,08/01/12,FOOD & BEVERAGE,90.00,2012,AP,Accounts payable,00590147,CAPITOLHOST
,OFFICE OF THE MINORITY WHIP,2012Q4,SUPPLIES AND MATERIALS,12-27,CAPITOLHOST,08/03/12,08/03/12,FOOD & BEVERAGE,42.34,2012,AP,Accounts payable,00590149,CAPITOLHOST
,DEMOCRATIC CAUCUS,2012Q4,PRINTING AND REPRODUCTION,12-04,XEROX CORPORATION,06/21/12,09/21/12,PRINTING & REPRODUCTION,82.87,2012,AP,Accounts payable,00576315,XEROX CORPORATION
,DEMOCRATIC CAUCUS,2012Q4,SUPPLIES AND MATERIALS,11-19,VOCUS INC,08/01/12,07/31/13,PUBLICATIONS/REFERENCE MAT'L,"3,454.00",2012,AP,Accounts payable,00562688,VOCUS INC
,REPUBLICAN CONFERENCE,2012Q4,SUPPLIES AND MATERIALS,10-11,CQ ROLL CALL,09/28/12,09/28/13,PUBLICATIONS/REFERENCE MAT'L,"21,285.00",2012,AP,Accounts payable,00544126,CQ ROLL CALL
,REPUBLICAN CONFERENCE,2012Q4,SUPPLIES AND MATERIALS,12-04,"CRAWFORD, CHRISTOPHER K",09/12/12,09/12/12,FOOD & BEVERAGE,49.83,2012,AP,Accounts payable,00577284,"CRAWFORD, CHRISTOPHER K"
,REPUBLICAN CONFERENCE,2012Q4,SUPPLIES AND MATERIALS,12-04,"KENDRICK, ALEXANDRA",09/13/12,09/13/12,FOOD & BEVERAGE,17.39,2012,AP,Accounts payable,00577304,"KENDRICK, ALEXANDRA"
,OFFICE OF THE SPEAKER,2012Q4,PERSONNEL BENEFITS,10-18,HON. JOHN A. BOEHNER,10/01/12,10/31/12,OFFICIAL EXPENSES FOR LEADERS,"2,083.33",2012,AP,Accounts payable,00548743,HON. JOHN A. BOEHNER
,OFFICE OF THE SPEAKER,2012Q4,PERSONNEL BENEFITS,11-19,HON. JOHN A. BOEHNER,11/01/12,11/30/12,OFFICIAL EXPENSES FOR LEADERS,"2,083.33",2012,AP,Accounts payable,00570219,HON. JOHN A. BOEHNER
,OFFICE OF THE SPEAKER,2012Q4,PERSONNEL BENEFITS,12-28,HON. JOHN A. BOEHNER,12/01/12,12/31/12,OFFICIAL EXPENSES FOR LEADERS,"2,083.07",2012,AP,Accounts payable,00585035,HON. JOHN A. BOEHNER
,OFFICE OF THE SPEAKER,2012Q4,PERSONNEL COMPENSATION,"","ANDREWS,THOMAS S",10/01/12,12/31/12,SENIOR STAFF ASSISTANT,"8,333.34",2012,"","","","ANDREWS,THOMAS S"
,OFFICE OF THE SPEAKER,2012Q4,PERSONNEL COMPENSATION,"","ANDREWS,THOMAS S",09/01/12,11/30/12,SENIOR STAFF ASSISTANT (OVERTIME),"1,407.67",2012,"","","","ANDREWS,THOMAS S"
,OFFICE OF THE SPEAKER,2012Q4,PERSONNEL COMPENSATION,"","AVONDOGLIO,BRYANT J",11/01/12,12/31/12,ADVANCE & DIGITAL PRODUC MGR,"13,333.34",2012,"","","","AVONDOGLIO,BRYANT J"
,OFFICE OF THE SPEAKER,2012Q4,PERSONNEL COMPENSATION,"","BECKER,ALEXANDER M",10/01/12,12/31/12,STAFF ASSISTANT,"7,333.33",2012,"","","","BECKER,ALEXANDER M"
,OFFICE OF THE SPEAKER,2012Q4,PERSONNEL COMPENSATION,"","BECKER,ALEXANDER M",09/01/12,11/30/12,STAFF ASSISTANT (OVERTIME),504.80,2012,"","","","BECKER,ALEXANDER M"
,OFFICE OF THE SPEAKER,2012Q4,PERSONNEL COMPENSATION,"","BELAIR, BRENDAN M",10/01/12,12/31/12,SHARED EMPLOYEE,"20,000.01",2012,"","","","BELAIR, BRENDAN M"
,OFFICE OF THE SPEAKER,2012Q4,PERSONNEL COMPENSATION,"","BENJAMIN, WILLIAM C",10/01/12,12/31/12,DIR OF INFORMATION TECHNOLOGY,"23,250.00",2012,"","","","BENJAMIN, WILLIAM C"
,OFFICE OF THE SPEAKER,2012Q4,PERSONNEL COMPENSATION,"","BLAKE,KRISTENE",10/01/12,12/31/12,DIRECTOR OF SCHDLNG/EXEC ASST,"21,875.01",2012,"","","","BLAKE,KRISTENE"
,OFFICE OF THE SPEAKER,2012Q4,PERSONNEL COMPENSATION,"","BOYD,KATHRYN E",10/01/12,12/31/12,ASST COMMUNICATIONS DIRECTOR,"20,000.01",2012,"","","","BOYD,KATHRYN E"
,OFFICE OF THE SPEAKER,2012Q4,PERSONNEL COMPENSATION,"","BOZA-HOLMAN, SOFIA M",10/01/12,12/31/12,STAFF ASSISTANT,"7,333.33",2012,"","","","BOZA-HOLMAN, SOFIA M"
,OFFICE OF THE SPEAKER,2012Q4,PERSONNEL COMPENSATION,"","BOZA-HOLMAN, SOFIA M",09/01/12,11/30/12,STAFF ASSISTANT (OVERTIME),858.16,2012,"","","","BOZA-HOLMAN, SOFIA M"
,OFFICE OF THE SPEAKER,2012Q4,PERSONNEL COMPENSATION,"","BROWN,MARYAM S",12/20/12,12/31/12,ASST TO SPEAKER FOR POLICY,"5,133.33",2012,"","","","BROWN,MARYAM S"
,OFFICE OF THE SPEAKER,2012Q4,PERSONNEL COMPENSATION,"","BUCK, BRENDAN K",11/01/12,12/31/12,PRESS SECRETARY,"17,250.00",2012,"","","","BUCK, BRENDAN K"
,OFFICE OF THE SPEAKER,2012Q4,PERSONNEL COMPENSATION,"","BUNKER,ANDREW R",10/01/12,12/31/12,FLOOR ASSISTANT,"8,499.99",2012,"","","","BUNKER,ANDREW R"
,OFFICE OF THE SPEAKER,2012Q4,PERSONNEL COMPENSATION,"","CASSIDY, ED",10/01/12,12/31/12,DIRECTOR OF HOUSE OPERATIONS,"42,000.00",2012,"","","","CASSIDY, ED"
,OFFICE OF THE SPEAKER,2012Q4,PERSONNEL COMPENSATION,"","CATANZARO,MICHAEL J",10/01/12,10/12/12,ASST TO THE SPEAKER FOR POLICY,"5,600.00",2012,"","","","CATANZARO,MICHAEL J"
,OFFICE OF THE SPEAKER,2012Q4,PERSONNEL COMPENSATION,"","CATANZARO,MICHAEL J",10/01/12,10/12/12,ASST TO THE SPEAKER FOR POLICY (OTHER COMPENSATION),"5,600.00",2012,"","","","CATANZARO,MICHAEL J"
,OFFICE OF THE SPEAKER,2012Q4,PERSONNEL COMPENSATION,"","DESTEFANO,JOHN",10/01/12,12/31/12,SR ADVISOR FOR MEMBER SERVICES,"41,250.00",2012,"","","","DESTEFANO,JOHN"
,OFFICE OF THE SPEAKER,2012Q4,PERSONNEL COMPENSATION,"","DEUTSCH,JEREMY",10/01/12,12/31/12,SHARED EMPLOYEE,"20,000.01",2012,"","","","DEUTSCH,JEREMY"
,OFFICE OF THE SPEAKER,2012Q4,PERSONNEL COMPENSATION,"","EASBY-SMITH,ANNE S",10/01/12,12/31/12,STAFF ASSISTANT,"7,333.33",2012,"","","","EASBY-SMITH,ANNE S"
,OFFICE OF THE SPEAKER,2012Q4,PERSONNEL COMPENSATION,"","EASBY-SMITH,ANNE S",09/01/12,11/30/12,STAFF ASSISTANT (OVERTIME),625.95,2012,"","","","EASBY-SMITH,ANNE S"
,OFFICE OF THE SPEAKER,2012Q4,PERSONNEL COMPENSATION,"","ECKARD,NASTASHA",10/01/12,12/31/12,LEGISLATIVE ASSISTANT,"12,999.99",2012,"","","","ECKARD,NASTASHA"
,OFFICE OF THE SPEAKER,2012Q4,PERSONNEL COMPENSATION,"","EICHHORN, JARED D",10/01/12,12/31/12,FLOOR ASSISTANT,"12,000.00",2012,"","","","EICHHORN, JARED D"
,OFFICE OF THE SPEAKER,2012Q4,PERSONNEL COMPENSATION,"","EMBLER, ELIZABETH G",10/01/12,12/31/12,DIRECTOR OF ADVANCE,"18,725.01",2012,"","","","EMBLER, ELIZABETH G"
,OFFICE OF THE SPEAKER,2012Q4,PERSONNEL COMPENSATION,"","FINNEGAN,PATRICK",10/01/12,12/31/12,SPECIAL ASSISTANT TO THE SPEAK,"10,749.99",2012,"","","","FINNEGAN,PATRICK"
,OFFICE OF THE SPEAKER,2012Q4,PERSONNEL COMPENSATION,"","GILLESPIE,MAURA M",10/01/12,11/30/12,SCHEDULING ASSISTANT,"6,666.66",2012,"","","","GILLESPIE,MAURA M"
,OFFICE OF THE SPEAKER,2012Q4,PERSONNEL COMPENSATION,"","GILLESPIE,MAURA M",12/01/12,12/31/12,DEPUTY SCHEDULER,"3,333.33",2012,"","","","GILLESPIE,MAURA M"
,OFFICE OF THE SPEAKER,2012Q4,PERSONNEL COMPENSATION,"","GREEN, JO-MARIE S",10/01/12,12/31/12,GEN COUNSEL & CHIEF OF LEG OPS,"43,041.66",2012,"","","","GREEN, JO-MARIE S"
,OFFICE OF THE SPEAKER,2012Q4,PERSONNEL COMPENSATION,"","GREENE,WILLIAM P",10/01/12,12/31/12,DIRECTOR-OUTREACH,"33,825.00",2012,"","","","GREENE,WILLIAM P"
,OFFICE OF THE SPEAKER,2012Q4,PERSONNEL COMPENSATION,"","HALEY, KATHERINE C",10/01/12,12/31/12,ASST TO SPEAKER FOR POLICY,"22,125.00",2012,"","","","HALEY, KATHERINE C"
,OFFICE OF THE SPEAKER,2012Q4,PERSONNEL COMPENSATION,"","HARROUN, TIMOTHY J",10/01/12,12/31/12,MANAGER REPUBLICAN CLOAKROOM,"33,287.49",2012,"","","","HARROUN, TIMOTHY J"
,OFFICE OF THE SPEAKER,2012Q4,PERSONNEL COMPENSATION,"","HERRLE, CYNTHIA A",10/01/12,12/31/12,ASST TO THE SPEAKER FOR POLICY,"35,550.00",2012,"","","","HERRLE, CYNTHIA A"
,OFFICE OF THE SPEAKER,2012Q4,PERSONNEL COMPENSATION,"","KAMIS,KYLA M",10/01/12,12/31/12,DIRECTOR OF SPECIAL EVENTS,"13,749.99",2012,"","","","KAMIS,KYLA M"
,OFFICE OF THE SPEAKER,2012Q4,PERSONNEL COMPENSATION,"","KINZEL,WILL C",10/01/12,12/31/12,ASST TO THE SPEAKER FOR POLICY,"28,599.99",2012,"","","","KINZEL,WILL C"
,OFFICE OF THE SPEAKER,2012Q4,PERSONNEL COMPENSATION,"","KOLEGO, TREVOR W",10/01/12,12/31/12,DEPUTY DIR MEMBERS SERVICES,"32,499.99",2012,"","","","KOLEGO, TREVOR W"
,OFFICE OF THE SPEAKER,2012Q4,PERSONNEL COMPENSATION,"","LAMPERT,JUSTIN",10/01/12,12/31/12,RESEARCH ASSISTANT,"11,250.00",2012,"","","","LAMPERT,JUSTIN"
,OFFICE OF THE SPEAKER,2012Q4,PERSONNEL COMPENSATION,"","LOHMEYER,SONJA M",10/29/12,12/31/12,DIRECTOR OF PUBLIC LIAISON,"22,388.88",2012,"","","","LOHMEYER,SONJA M"
,OFFICE OF THE SPEAKER,2012Q4,PERSONNEL COMPENSATION,"","LOPER,BRETT S",10/01/12,12/31/12,DEPUTY CHIEF OF STAFF,"43,125.00",2012,"","","","LOPER,BRETT S"
,OFFICE OF THE SPEAKER,2012Q4,PERSONNEL COMPENSATION,"","LOZUPONE, AMY S",10/01/12,12/31/12,DIRECTOR OF ADMIN OPERATIONS,"37,583.34",2012,"","","","LOZUPONE, AMY S"
,OFFICE OF THE SPEAKER,2012Q4,PERSONNEL COMPENSATION,"","LUKEMAN,KATHERINE A",10/01/12,11/30/12,ASSOCIATE COUNSEL,"8,666.66",2012,"","","","LUKEMAN,KATHERINE A"
,OFFICE OF THE SPEAKER,2012Q4,PERSONNEL COMPENSATION,"","LUKEMAN,KATHERINE A",12/01/12,12/31/12,ASSIST TO THE SPEAKER F/POLICY,"7,375.00",2012,"","","","LUKEMAN,KATHERINE A"
,OFFICE OF THE SPEAKER,2012Q4,PERSONNEL COMPENSATION,"","MACDONALD, B",10/01/12,12/31/12,SHARED EMPLOYEE,"20,000.01",2012,"","","","MACDONALD, B"
,OFFICE OF THE SPEAKER,2012Q4,PERSONNEL COMPENSATION,"","MARSHALL,MICHAEL A",09/01/12,09/30/12,STAFF ASSISTANT (OVERTIME),262.50,2012,"","","","MARSHALL,MICHAEL A"
,OFFICE OF THE SPEAKER,2012Q4,PERSONNEL COMPENSATION,"","MARSHALL,MICHAEL A",09/01/12,09/30/12,STAFF ASSISTANT (OTHER COMPENSATION),"1,166.67",2012,"","","","MARSHALL,MICHAEL A"
,OFFICE OF THE SPEAKER,2012Q4,PERSONNEL COMPENSATION,"","MILLER,WILLIAM",10/01/12,12/31/12,STAFF ASSISTANT,"7,333.33",2012,"","","","MILLER,WILLIAM"
,OFFICE OF THE SPEAKER,2012Q4,PERSONNEL COMPENSATION,"","MILLER,WILLIAM",10/01/12,11/30/12,STAFF ASSISTANT (OVERTIME),615.86,2012,"","","","MILLER,WILLIAM"
,OFFICE OF THE SPEAKER,2012Q4,PERSONNEL COMPENSATION,"","MINKLER,ANN W",10/01/12,12/31/12,FLOOR ASSISTANT,"8,250.00",2012,"","","","MINKLER,ANN W"
,OFFICE OF THE SPEAKER,2012Q4,PERSONNEL COMPENSATION,"","PIERSON, JAY",10/01/12,12/31/12,FLOOR ASSISTANT,"42,099.99",2012,"","","","PIERSON, JAY"
,OFFICE OF THE SPEAKER,2012Q4,PERSONNEL COMPENSATION,"","PORTER, EMILY S",10/01/12,12/31/12,ASST TO THE SPEAKER FOR POLICY,"27,500.01",2012,"","","","PORTER, EMILY S"
,OFFICE OF THE SPEAKER,2012Q4,PERSONNEL COMPENSATION,"","PROPP,ELIZABETH R",10/01/12,12/31/12,DEPUTY PRESS SECRETARY,"14,250.00",2012,"","","","PROPP,ELIZABETH R"
,OFFICE OF THE SPEAKER,2012Q4,PERSONNEL COMPENSATION,"","RATCLIFFE,RAMSEY E",10/01/12,12/31/12,SPECIAL EVENTS COORDINATOR,"8,750.01",2012,"","","","RATCLIFFE,RAMSEY E"
,OFFICE OF THE SPEAKER,2012Q4,PERSONNEL COMPENSATION,"","REED, HEATHER E",10/01/12,12/31/12,ASSISTANT PRESS SECRETARY,"11,250.00",2012,"","","","REED, HEATHER E"
,OFFICE OF THE SPEAKER,2012Q4,PERSONNEL COMPENSATION,"","REED, MARY K",10/01/12,12/31/12,SHARED EMPLOYEE,"8,283.33",2012,"","","","REED, MARY K"
,OFFICE OF THE SPEAKER,2012Q4,PERSONNEL COMPENSATION,"","RICCI,MICHAEL",10/01/12,12/31/12,DIRECTOR OF SPEECHWRITING,"32,500.00",2012,"","","","RICCI,MICHAEL"
,OFFICE OF THE SPEAKER,2012Q4,PERSONNEL COMPENSATION,"","ROGERS, GEORGE R",10/01/12,12/07/12,ASST TO THE SPEAKER FOR POLICY,"27,916.67",2012,"","","","ROGERS, GEORGE R"
,OFFICE OF THE SPEAKER,2012Q4,PERSONNEL COMPENSATION,"","SAGER,MICHAEL J",10/01/12,12/31/12,SYSTEMS ADMINISTRATOR,"20,000.01",2012,"","","","SAGER,MICHAEL J"
,OFFICE OF THE SPEAKER,2012Q4,PERSONNEL COMPENSATION,"","SCHNITTGER, DAVID M",10/01/12,12/31/12,DEPUTY CHIEF OF STAFF,"43,125.00",2012,"","","","SCHNITTGER, DAVID M"
,OFFICE OF THE SPEAKER,2012Q4,PERSONNEL COMPENSATION,"","SEYMOUR JR, DONALD P",10/01/12,12/31/12,DIGITAL COMMUNICATIONS DIRECTO,"32,750.01",2012,"","","","SEYMOUR JR, DONALD P"
,OFFICE OF THE SPEAKER,2012Q4,PERSONNEL COMPENSATION,"","SKRZYCKI, KRISTIN S",10/01/12,12/31/12,SHARED EMPLOYEE,"20,000.01",2012,"","","","SKRZYCKI, KRISTIN S"
,OFFICE OF THE SPEAKER,2012Q4,PERSONNEL COMPENSATION,"","SMITH, KEVIN",10/01/12,12/31/12,DIRECTOR OF COMMUNICATIONS,"38,874.99",2012,"","","","SMITH, KEVIN"
,OFFICE OF THE SPEAKER,2012Q4,PERSONNEL COMPENSATION,"","SOMMERS, MICHAEL J",10/01/12,12/31/12,CHIEF OF STAFF,"43,125.00",2012,"","","","SOMMERS, MICHAEL J"
,OFFICE OF THE SPEAKER,2012Q4,PERSONNEL COMPENSATION,"","STEEL, MICHAEL",11/01/12,12/31/12,PRESS SECRETARY,"19,125.00",2012,"","","","STEEL, MICHAEL"
,OFFICE OF THE SPEAKER,2012Q4,PERSONNEL COMPENSATION,"","STEWART, DAVID B",11/01/12,12/31/12,ASST TO SPEAKER FOR POLICY,"20,375.00",2012,"","","","STEWART, DAVID B"
,OFFICE OF THE SPEAKER,2012Q4,PERSONNEL COMPENSATION,"","STEWART, JENNIFER M",10/01/12,12/31/12,ASST TO SPEAKER FOR POLICY,"27,500.01",2012,"","","","STEWART, JENNIFER M"
,OFFICE OF THE SPEAKER,2012Q4,PERSONNEL COMPENSATION,"","STRUNK, JEFFREY A",10/01/12,12/31/12,DEPUTY FLOOR DIRECTOR,"18,750.00",2012,"","","","STRUNK, JEFFREY A"
,OFFICE OF THE SPEAKER,2012Q4,PERSONNEL COMPENSATION,"","THORSEN, ANNE B",10/01/12,12/31/12,FLOOR DIRECTOR,"37,083.34",2012,"","","","THORSEN, ANNE B"
,OFFICE OF THE SPEAKER,2012Q4,TRAVEL,10-24,"SMITH, KEVIN",10/12/12,10/12/12,TAXI/PARKING/TOLLS,17.00,2012,AP,Accounts payable,00555136,"SMITH, KEVIN"
,OFFICE OF THE SPEAKER,2012Q4,TRAVEL,10-24,"SOMMERS,MICHAEL",10/02/12,10/02/12,TAXI/PARKING/TOLLS,20.00,2012,AP,Accounts payable,00555139,"SOMMERS,MICHAEL"
,OFFICE OF THE SPEAKER,2012Q4,TRAVEL,10-24,"HALEY, KATHERINE C",10/10/12,10/10/12,TAXI/PARKING/TOLLS,12.00,2012,AP,Accounts payable,00555160,"HALEY, KATHERINE C"
,OFFICE OF THE SPEAKER,2012Q4,TRAVEL,11-14,"SCHNITTGER, DAVID M",10/25/12,10/25/12,TAXI/PARKING/TOLLS,30.00,2012,AP,Accounts payable,00562892,"SCHNITTGER, DAVID M"
,OFFICE OF THE SPEAKER,2012Q4,TRAVEL,11-14,"SOMMERS,MICHAEL",10/25/12,10/25/12,TAXI/PARKING/TOLLS,29.30,2012,AP,Accounts payable,00562895,"SOMMERS,MICHAEL"
,OFFICE OF THE SPEAKER,2012Q4,TRAVEL,11-16,"SCHNITTGER, DAVID M",10/23/12,10/23/12,COMMERCIAL TRANSPORTATION,684.10,2012,AP,Accounts payable,00565222,"SCHNITTGER, DAVID M"
,OFFICE OF THE SPEAKER,2012Q4,TRAVEL,12-11,"SOMMERS,MICHAEL",11/02/12,11/02/12,COMMERCIAL TRANSPORTATION,684.10,2012,AP,Accounts payable,00580863,"SOMMERS,MICHAEL"
,OFFICE OF THE SPEAKER,2012Q4,TRAVEL,12-11,"SOMMERS,MICHAEL",11/02/12,11/02/12,CAR RENTAL,78.79,2012,AP,Accounts payable,00580866,"SOMMERS,MICHAEL"
,OFFICE OF THE SPEAKER,2012Q4,TRAVEL,12-13,"LOPER, BRETT S",11/02/12,11/02/12,COMMERCIAL TRANSPORTATION,684.10,2012,AP,Accounts payable,00582127,"LOPER, BRETT S"
,OFFICE OF THE SPEAKER,2012Q4,"RENT, COMMUNICATION, UTILITIES",10-24,"CITI PCARD-DC PARTY RENTALS, LLC",08/29/12,09/28/12,EQUIP RENTAL (EFF 1/3/03),182.40,2012,AP,Accounts payable,00553340,"CITI PCARD-DC PARTY RENTALS, LLC"
,OFFICE OF THE SPEAKER,2012Q4,"RENT, COMMUNICATION, UTILITIES",11-19,CITIBANK P CARD,08/29/12,09/28/12,EQUIP RENTAL (EFF 1/3/03),-182.40,2012,AP,Accounts payable,00569699,CITIBANK P CARD
,OFFICE OF THE SPEAKER,2012Q4,PRINTING AND REPRODUCTION,10-25,"",10/01/12,10/31/12,PHOTOGRAPHIC (TRANSFER),52.50,2012,GL,General ledger,PIX0023747,""
,OFFICE OF THE SPEAKER,2012Q4,PRINTING AND REPRODUCTION,11-29,"",11/01/12,11/30/12,PHOTOGRAPHIC (TRANSFER),371.00,2012,GL,General ledger,PIX0024551,""
,OFFICE OF THE SPEAKER,2012Q4,PRINTING AND REPRODUCTION,12-21,"",12/01/12,12/31/12,PHOTOGRAPHIC (TRANSFER),294.60,2012,GL,General ledger,PIX0025333,""
,OFFICE OF THE SPEAKER,2012Q4,OTHER SERVICES,11-16,RICHARD BROOKHISER,11/14/12,11/14/12,CONSULTANT CONTRACT SERVICE,"1,050.00",2012,AP,Accounts payable,00565214,RICHARD BROOKHISER
,OFFICE OF THE SPEAKER,2012Q4,SUPPLIES AND MATERIALS,10-16,HAGUE QUALITY WATER OF MD INC,10/04/12,10/04/12,WATER,252.00,2012,AP,Accounts payable,00544923,HAGUE QUALITY WATER OF MD INC
,OFFICE OF THE SPEAKER,2012Q4,SUPPLIES AND MATERIALS,10-24,CITI PCARD-ARTISTIC FRAMING,08/29/12,09/28/12,HABITATION EXPENSE,148.00,2012,AP,Accounts payable,00553340,CITI PCARD-ARTISTIC FRAMING
,OFFICE OF THE SPEAKER,2012Q4,SUPPLIES AND MATERIALS,10-24,CITI PCARD-CAPITOL HOST,08/29/12,09/28/12,FOOD & BEVERAGE,-29.62,2012,AP,Accounts payable,00553340,CITI PCARD-CAPITOL HOST
,OFFICE OF THE SPEAKER,2012Q4,SUPPLIES AND MATERIALS,10-24,CITI PCARD-CHICKEN OUT CATERING,08/29/12,09/28/12,FOOD & BEVERAGE,319.98,2012,AP,Accounts payable,00553340,CITI PCARD-CHICKEN OUT CATERING
,OFFICE OF THE SPEAKER,2012Q4,SUPPLIES AND MATERIALS,10-24,CITI PCARD-CVC CATERING,08/29/12,09/28/12,FOOD & BEVERAGE,25.00,2012,AP,Accounts payable,00553340,CITI PCARD-CVC CATERING
,OFFICE OF THE SPEAKER,2012Q4,SUPPLIES AND MATERIALS,10-24,CITI PCARD-ELI S RESTAURANT,08/29/12,09/28/12,FOOD & BEVERAGE,220.89,2012,AP,Accounts payable,00553340,CITI PCARD-ELI S RESTAURANT
,OFFICE OF THE SPEAKER,2012Q4,SUPPLIES AND MATERIALS,10-24,CITI PCARD-FIREHOOK,08/29/12,09/28/12,FOOD & BEVERAGE,127.07,2012,AP,Accounts payable,00553340,CITI PCARD-FIREHOOK
,OFFICE OF THE SPEAKER,2012Q4,SUPPLIES AND MATERIALS,10-24,CITI PCARD-HARRIS TEETER,08/29/12,09/28/12,FOOD & BEVERAGE,88.35,2012,AP,Accounts payable,00553340,CITI PCARD-HARRIS TEETER
,OFFICE OF THE SPEAKER,2012Q4,SUPPLIES AND MATERIALS,10-24,CITI PCARD-PORT OF PIRAEUS III,08/29/12,09/28/12,FOOD & BEVERAGE,211.66,2012,AP,Accounts payable,00553340,CITI PCARD-PORT OF PIRAEUS III
,OFFICE OF THE SPEAKER,2012Q4,SUPPLIES AND MATERIALS,10-24,CITI PCARD-POTBELLY,08/29/12,09/28/12,FOOD & BEVERAGE,128.50,2012,AP,Accounts payable,00553340,CITI PCARD-POTBELLY
,OFFICE OF THE SPEAKER,2012Q4,SUPPLIES AND MATERIALS,10-24,CITI PCARD-TAYLOR GOURMET,08/29/12,09/28/12,FOOD & BEVERAGE,857.90,2012,AP,Accounts payable,00553340,CITI PCARD-TAYLOR GOURMET
,OFFICE OF THE SPEAKER,2012Q4,SUPPLIES AND MATERIALS,10-24,COCA-COLA REFRESHMENTS,10/09/12,10/09/12,FOOD & BEVERAGE,277.92,2012,AP,Accounts payable,00555141,COCA-COLA REFRESHMENTS
,OFFICE OF THE SPEAKER,2012Q4,SUPPLIES AND MATERIALS,11-14,JOE RAGAN'S COFFEE LTD,10/04/12,10/04/12,FOOD & BEVERAGE,317.69,2012,AP,Accounts payable,00562876,JOE RAGAN'S COFFEE LTD
,OFFICE OF THE SPEAKER,2012Q4,SUPPLIES AND MATERIALS,11-14,JOE RAGAN'S COFFEE LTD,10/11/12,10/11/12,FOOD & BEVERAGE,422.23,2012,AP,Accounts payable,00562880,JOE RAGAN'S COFFEE LTD
,OFFICE OF THE SPEAKER,2012Q4,SUPPLIES AND MATERIALS,11-14,JOE RAGAN'S COFFEE LTD,10/22/12,10/22/12,FOOD & BEVERAGE,284.00,2012,AP,Accounts payable,00562882,JOE RAGAN'S COFFEE LTD
,OFFICE OF THE SPEAKER,2012Q4,SUPPLIES AND MATERIALS,11-14,JOE RAGAN'S COFFEE LTD,10/25/12,10/25/12,FOOD & BEVERAGE,275.83,2012,AP,Accounts payable,00562885,JOE RAGAN'S COFFEE LTD
,OFFICE OF THE SPEAKER,2012Q4,SUPPLIES AND MATERIALS,11-14,HAGUE QUALITY WATER OF MD INC,11/04/12,11/04/12,WATER,252.00,2012,AP,Accounts payable,00562887,HAGUE QUALITY WATER OF MD INC
,OFFICE OF THE SPEAKER,2012Q4,SUPPLIES AND MATERIALS,11-20,CITI PCARD-PORT OF PIRAEUS III,10/01/12,10/28/12,FOOD & BEVERAGE,239.20,2012,AP,Accounts payable,00570984,CITI PCARD-PORT OF PIRAEUS III
,OFFICE OF THE SPEAKER,2012Q4,SUPPLIES AND MATERIALS,11-20,CITI PCARD-TAYLOR GOURMET,10/01/12,10/28/12,FOOD & BEVERAGE,451.41,2012,AP,Accounts payable,00570984,CITI PCARD-TAYLOR GOURMET
,OFFICE OF THE SPEAKER,2012Q4,SUPPLIES AND MATERIALS,11-20,CITI PCARD-WHOLEFDS,10/01/12,10/28/12,FOOD & BEVERAGE,304.87,2012,AP,Accounts payable,00570984,CITI PCARD-WHOLEFDS
,OFFICE OF THE SPEAKER,2012Q4,SUPPLIES AND MATERIALS,12-11,COCA-COLA REFRESHMENTS,11/20/12,11/20/12,FOOD & BEVERAGE,143.52,2012,AP,Accounts payable,00580871,COCA-COLA REFRESHMENTS
,OFFICE OF THE SPEAKER,2012Q4,SUPPLIES AND MATERIALS,12-11,JOE RAGAN'S COFFEE LTD,11/02/12,11/02/12,FOOD & BEVERAGE,321.53,2012,AP,Accounts payable,00580877,JOE RAGAN'S COFFEE LTD
,OFFICE OF THE SPEAKER,2012Q4,SUPPLIES AND MATERIALS,12-11,JOE RAGAN'S COFFEE LTD,11/09/12,11/09/12,FOOD & BEVERAGE,380.00,2012,AP,Accounts payable,00580880,JOE RAGAN'S COFFEE LTD
,OFFICE OF THE SPEAKER,2012Q4,SUPPLIES AND MATERIALS,12-11,JOE RAGAN'S COFFEE LTD,11/13/12,11/13/12,FOOD & BEVERAGE,228.54,2012,AP,Accounts payable,00580884,JOE RAGAN'S COFFEE LTD
,OFFICE OF THE SPEAKER,2012Q4,SUPPLIES AND MATERIALS,12-11,JOE RAGAN'S COFFEE LTD,11/26/12,11/26/12,FOOD & BEVERAGE,286.49,2012,AP,Accounts payable,00580888,JOE RAGAN'S COFFEE LTD
,OFFICE OF THE SPEAKER,2012Q4,SUPPLIES AND MATERIALS,12-11,JOE RAGAN'S COFFEE LTD,11/27/12,11/27/12,FOOD & BEVERAGE,689.96,2012,AP,Accounts payable,00580895,JOE RAGAN'S COFFEE LTD
,OFFICE OF THE SPEAKER,2012Q4,SUPPLIES AND MATERIALS,12-11,JOE RAGAN'S COFFEE LTD,11/29/12,11/29/12,FOOD & BEVERAGE,298.14,2012,AP,Accounts payable,00580903,JOE RAGAN'S COFFEE LTD
,OFFICE OF THE SPEAKER,2012Q4,SUPPLIES AND MATERIALS,12-19,E & E PUBLISHING LLC,12/12/12,01/14/14,PUBLICATIONS/REFERENCE MAT'L,"3,740.00",2012,AP,Accounts payable,00589327,E & E PUBLISHING LLC
,OFFICE OF THE SPEAKER,2012Q4,SUPPLIES AND MATERIALS,12-26,CITI PCARD-PF CHANGS,10/29/12,11/28/12,FOOD & BEVERAGE,297.62,2012,AP,Accounts payable,00590646,CITI PCARD-PF CHANGS
,OFFICE OF THE SPEAKER,2012Q4,SUPPLIES AND MATERIALS,12-26,CITI PCARD-PORT OF PIRAEUS III,10/29/12,11/28/12,FOOD & BEVERAGE,561.40,2012,AP,Accounts payable,00590646,CITI PCARD-PORT OF PIRAEUS III
,OFFICE OF THE SPEAKER,2012Q4,SUPPLIES AND MATERIALS,12-26,CITI PCARD-TAYLOR GOURMET,10/29/12,11/28/12,FOOD & BEVERAGE,"1,285.00",2012,AP,Accounts payable,00590646,CITI PCARD-TAYLOR GOURMET
,OFFICE OF THE SPEAKER,2012Q4,SUPPLIES AND MATERIALS,12-26,CITI PCARD-WHOLEFDS PST,10/29/12,11/28/12,FOOD & BEVERAGE,"2,210.27",2012,AP,Accounts payable,00590646,CITI PCARD-WHOLEFDS PST
,OFFICE OF THE MAJORITY LEADER,2012Q4,PERSONNEL COMPENSATION,"","BARRERA,AMY D",10/01/12,12/31/12,DIRECTOR OF ADMINISTRATION,"5,416.66",2012,"","","","BARRERA,AMY D"
,OFFICE OF THE MAJORITY LEADER,2012Q4,PERSONNEL COMPENSATION,"","BRADLEY, NEIL L",10/01/12,12/31/12,DEPUTY CHEIF OF STAFF,"43,125.00",2012,"","","","BRADLEY, NEIL L"
,OFFICE OF THE MAJORITY LEADER,2012Q4,PERSONNEL COMPENSATION,"","CHRISTENSEN, AUTUMN",10/01/12,12/31/12,SHARED EMPLOYEE,"3,000.00",2012,"","","","CHRISTENSEN, AUTUMN"
,OFFICE OF THE MAJORITY LEADER,2012Q4,PERSONNEL COMPENSATION,"","COOPER,RORY S",10/01/12,12/31/12,DIRECTOR OF COMMUNICATIONS,"36,249.99",2012,"","","","COOPER,RORY S"
,OFFICE OF THE MAJORITY LEADER,2012Q4,PERSONNEL COMPENSATION,"","CUMMINGS,TIMOTHY P",10/01/12,12/31/12,STAFF ASSISTANT,"6,000.00",2012,"","","","CUMMINGS,TIMOTHY P"
,OFFICE OF THE MAJORITY LEADER,2012Q4,PERSONNEL COMPENSATION,"","DOLBOW, WILLIAM R",10/01/12,12/31/12,SENIOR ADVISOR,"43,125.00",2012,"","","","DOLBOW, WILLIAM R"
,OFFICE OF THE MAJORITY LEADER,2012Q4,PERSONNEL COMPENSATION,"","FARRAR,KATHARINE D",10/01/12,12/31/12,STAFF ASSISTANT,"6,249.99",2012,"","","","FARRAR,KATHARINE D"
,OFFICE OF THE MAJORITY LEADER,2012Q4,PERSONNEL COMPENSATION,"","FERENCE, MICHAEL J",10/01/12,12/31/12,DIRECTOR OF OUTREACH,"42,102.75",2012,"","","","FERENCE, MICHAEL J"
,OFFICE OF THE MAJORITY LEADER,2012Q4,PERSONNEL COMPENSATION,"","GUSTAFSON,NICOLE M",10/01/12,12/31/12,POLICY ADVISOR/COUNSEL,"15,500.01",2012,"","","","GUSTAFSON,NICOLE M"
,OFFICE OF THE MAJORITY LEADER,2012Q4,PERSONNEL COMPENSATION,"","HEYE,DOUGLAS R",10/01/12,12/31/12,DEPUTY CHIEF OF STAFF-COMMUNIC,"42,000.00",2012,"","","","HEYE,DOUGLAS R"
,OFFICE OF THE MAJORITY LEADER,2012Q4,PERSONNEL COMPENSATION,"","JAEGER, CHERYL L",10/01/12,12/31/12,SENIOR POLICY ADVISOR,"20,649.99",2012,"","","","JAEGER, CHERYL L"
,OFFICE OF THE MAJORITY LEADER,2012Q4,PERSONNEL COMPENSATION,"","JOSEPH,COURTNEY E",10/01/12,12/31/12,CONGRESSIONAL STAFF,"5,833.34",2012,"","","","JOSEPH,COURTNEY E"
,OFFICE OF THE MAJORITY LEADER,2012Q4,PERSONNEL COMPENSATION,"","KAREM,ROBERT S",10/01/12,12/31/12,SENIOR POLICY ADVISOR,"29,250.00",2012,"","","","KAREM,ROBERT S"
,OFFICE OF THE MAJORITY LEADER,2012Q4,PERSONNEL COMPENSATION,"","KEECH,EMILY H",10/01/12,12/31/12,DEPUTY DIRECTOR OF MEMBER SVCS,"7,500.00",2012,"","","","KEECH,EMILY H"
,OFFICE OF THE MAJORITY LEADER,2012Q4,PERSONNEL COMPENSATION,"","KISH,SARAH M",10/01/12,12/31/12,FLOOR ASSISTANT,"12,500.01",2012,"","","","KISH,SARAH M"
,OFFICE OF THE MAJORITY LEADER,2012Q4,PERSONNEL COMPENSATION,"","LIRA,MATHEW L",11/01/12,12/31/12,DIRECTOR OF DIGITAL MEDIA,"12,666.67",2012,"","","","LIRA,MATHEW L"
,OFFICE OF THE MAJORITY LEADER,2012Q4,PERSONNEL COMPENSATION,"","MAHAN,ROGER A",10/01/12,12/31/12,POLICY ADVISOR,"14,375.01",2012,"","","","MAHAN,ROGER A"
,OFFICE OF THE MAJORITY LEADER,2012Q4,PERSONNEL COMPENSATION,"","NELSON, VALERIE S",10/01/12,12/31/12,DIR OF MEMBER SERVICES,"28,749.99",2012,"","","","NELSON, VALERIE S"
,OFFICE OF THE MAJORITY LEADER,2012Q4,PERSONNEL COMPENSATION,"","NEVINS, KYLE W",10/01/12,12/31/12,DEPUTY CHIEF OF STAFF,"43,125.00",2012,"","","","NEVINS, KYLE W"
,OFFICE OF THE MAJORITY LEADER,2012Q4,PERSONNEL COMPENSATION,"","STOMBRES, STEVEN C",10/01/12,12/31/12,CHIEF OF STAFF,"43,125.00",2012,"","","","STOMBRES, STEVEN C"
,OFFICE OF THE MAJORITY LEADER,2012Q4,PERSONNEL COMPENSATION,"","STRAUS,JESSICA",10/01/12,12/31/12,ASSISTANT PRESS SECRETARY,"13,500.00",2012,"","","","STRAUS,JESSICA"
,OFFICE OF THE MAJORITY LEADER,2012Q4,PERSONNEL COMPENSATION,"","VIESON, CHRISTOPHER W",10/01/12,12/31/12,DEPUTY DIRECTOR OF FLOOR OPERA,"29,250.00",2012,"","","","VIESON, CHRISTOPHER W"
,OFFICE OF THE MAJORITY LEADER,2012Q4,PERSONNEL COMPENSATION,"","WALSH,WILLIAM C",10/01/12,12/31/12,DEPUTY DIR OF DIGITAL SERVICES,"9,999.99",2012,"","","","WALSH,WILLIAM C"
,OFFICE OF THE MAJORITY LEADER,2012Q4,PERSONNEL COMPENSATION,"","WILLIAMS, KELLY K",10/01/12,12/31/12,FINANCIAL ADMINISTRATOR,"9,000.00",2012,"","","","WILLIAMS, KELLY K"
,OFFICE OF THE MAJORITY LEADER,2012Q4,PERSONNEL COMPENSATION,"","ZACKON,MATTHEW R",10/01/12,12/31/12,SPECIAL ASSISTANT,"6,249.99",2012,"","","","ZACKON,MATTHEW R"
,OFFICE OF THE MAJORITY LEADER,2012Q4,TRAVEL,11-21,"JAEGER, CHERYL L",10/12/12,10/13/12,TAXI/PARKING/TOLLS,101.68,2012,AP,Accounts payable,00571670,"JAEGER, CHERYL L"
,OFFICE OF THE MAJORITY LEADER,2012Q4,TRAVEL,12-17,"JAEGER, CHERYL L",11/29/12,11/30/12,LODGING,461.35,2012,AP,Accounts payable,00583145,"JAEGER, CHERYL L"
,OFFICE OF THE MAJORITY LEADER,2012Q4,TRAVEL,12-17,"FERENCE, MICHAEL J",05/30/12,11/20/12,TAXI/PARKING/TOLLS,65.00,2012,AP,Accounts payable,00583150,"FERENCE, MICHAEL J"
,OFFICE OF THE MAJORITY LEADER,2012Q4,TRAVEL,12-17,"KEECH, EMILY H",11/07/12,11/12/12,PRIVATE AUTO MILEAGE,17.93,2012,AP,Accounts payable,00583162,"KEECH, EMILY H"
,OFFICE OF THE MAJORITY LEADER,2012Q4,TRAVEL,12-17,"NELSON, VALERIE S",11/07/12,11/09/12,PRIVATE AUTO MILEAGE,142.41,2012,AP,Accounts payable,00583165,"NELSON, VALERIE S"
,OFFICE OF THE MAJORITY LEADER,2012Q4,TRAVEL,12-17,"FARRAR, KATHARINE D",11/07/12,11/13/12,PRIVATE AUTO MILEAGE,9.09,2012,AP,Accounts payable,00583167,"FARRAR, KATHARINE D"
,OFFICE OF THE MAJORITY LEADER,2012Q4,TRAVEL,12-17,"JAEGER, CHERYL L",11/29/12,11/30/12,TAXI/PARKING/TOLLS,54.00,2012,AP,Accounts payable,00583171,"JAEGER, CHERYL L"
,OFFICE OF THE MAJORITY LEADER,2012Q4,TRAVEL,12-17,"JAEGER, CHERYL L",11/20/12,11/30/12,COMMERCIAL TRANSPORTATION,231.00,2012,AP,Accounts payable,00583173,"JAEGER, CHERYL L"
,OFFICE OF THE MAJORITY LEADER,2012Q4,SUPPLIES AND MATERIALS,10-24,CITI PCARD-DEER PARK WATER,08/29/12,09/28/12,WATER,339.97,2012,AP,Accounts payable,00553340,CITI PCARD-DEER PARK WATER
,OFFICE OF THE MAJORITY LEADER,2012Q4,SUPPLIES AND MATERIALS,10-24,CITI PCARD-DUNKIN DONUTS COM,08/29/12,09/28/12,FOOD & BEVERAGE,139.94,2012,AP,Accounts payable,00553340,CITI PCARD-DUNKIN DONUTS COM
,OFFICE OF THE MAJORITY LEADER,2012Q4,SUPPLIES AND MATERIALS,10-24,CITI PCARD-HARRIS TEETER,08/29/12,09/28/12,FOOD & BEVERAGE,465.74,2012,AP,Accounts payable,00553340,CITI PCARD-HARRIS TEETER
,OFFICE OF THE MAJORITY LEADER,2012Q4,SUPPLIES AND MATERIALS,10-24,CITI PCARD-NEW YORK TIMES DIGITAL,08/29/12,09/28/12,PUBLICATIONS/REFERENCE MAT'L,37.10,2012,AP,Accounts payable,00553340,CITI PCARD-NEW YORK TIMES DIGITAL
,OFFICE OF THE MAJORITY LEADER,2012Q4,SUPPLIES AND MATERIALS,10-24,CITI PCARD-NEWSPAPER DIRECT,08/29/12,09/28/12,PUBLICATIONS/REFERENCE MAT'L,29.95,2012,AP,Accounts payable,00553340,CITI PCARD-NEWSPAPER DIRECT
,OFFICE OF THE MAJORITY LEADER,2012Q4,SUPPLIES AND MATERIALS,10-24,CITI PCARD-SAFEWAY STORE,08/29/12,09/28/12,FOOD & BEVERAGE,8.18,2012,AP,Accounts payable,00553340,CITI PCARD-SAFEWAY STORE
,OFFICE OF THE MAJORITY LEADER,2012Q4,SUPPLIES AND MATERIALS,11-20,CITI PCARD-D J WALL ST JOURNAL,10/01/12,10/28/12,PUBLICATIONS/REFERENCE MAT'L,113.75,2012,AP,Accounts payable,00570984,CITI PCARD-D J WALL ST JOURNAL
,OFFICE OF THE MAJORITY LEADER,2012Q4,SUPPLIES AND MATERIALS,11-20,CITI PCARD-D J WSJ.COM/BARRON.COM,10/01/12,10/28/12,PUBLICATIONS/REFERENCE MAT'L,137.52,2012,AP,Accounts payable,00570984,CITI PCARD-D J WSJ.COM/BARRON.COM
,OFFICE OF THE MAJORITY LEADER,2012Q4,SUPPLIES AND MATERIALS,11-20,CITI PCARD-DUNKIN DONUTS COM,10/01/12,10/28/12,FOOD & BEVERAGE,140.08,2012,AP,Accounts payable,00570984,CITI PCARD-DUNKIN DONUTS COM
,OFFICE OF THE MAJORITY LEADER,2012Q4,SUPPLIES AND MATERIALS,11-20,CITI PCARD-HARRIS TEETER,10/01/12,10/28/12,FOOD & BEVERAGE,260.81,2012,AP,Accounts payable,00570984,CITI PCARD-HARRIS TEETER
,OFFICE OF THE MAJORITY LEADER,2012Q4,SUPPLIES AND MATERIALS,11-20,CITI PCARD-NEW YORK TIMES DIGITAL,10/01/12,10/28/12,PUBLICATIONS/REFERENCE MAT'L,37.10,2012,AP,Accounts payable,00570984,CITI PCARD-NEW YORK TIMES DIGITAL
,OFFICE OF THE MAJORITY LEADER,2012Q4,SUPPLIES AND MATERIALS,11-20,CITI PCARD-NEWSPAPER DIRECT,10/01/12,10/28/12,PUBLICATIONS/REFERENCE MAT'L,29.95,2012,AP,Accounts payable,00570984,CITI PCARD-NEWSPAPER DIRECT
,OFFICE OF THE MAJORITY LEADER,2012Q4,SUPPLIES AND MATERIALS,11-20,CITI PCARD-SAFEWAY STORE,10/01/12,10/28/12,FOOD & BEVERAGE,12.68,2012,AP,Accounts payable,00570984,CITI PCARD-SAFEWAY STORE
,OFFICE OF THE MAJORITY LEADER,2012Q4,SUPPLIES AND MATERIALS,11-20,CITI PCARD-WME RTD PAPER SUBSCRIP,10/01/12,10/28/12,PUBLICATIONS/REFERENCE MAT'L,18.00,2012,AP,Accounts payable,00570984,CITI PCARD-WME RTD PAPER SUBSCRIP
,OFFICE OF THE MAJORITY LEADER,2012Q4,SUPPLIES AND MATERIALS,12-17,DEER PARK WATER,10/27/12,11/26/12,FOOD & BEVERAGE,207.01,2012,AP,Accounts payable,00583177,DEER PARK WATER
,OFFICE OF THE MAJORITY LEADER,2012Q4,SUPPLIES AND MATERIALS,12-17,TV EYES INC,10/01/12,12/31/12,PUBLICATIONS/REFERENCE MAT'L,300.00,2012,AP,Accounts payable,00583180,TV EYES INC
,OFFICE OF THE MAJORITY LEADER,2012Q4,SUPPLIES AND MATERIALS,12-17,CANTEEN / HIGHLAND ESTATES COFFEE TRADER,11/30/12,11/30/12,FOOD & BEVERAGE,575.68,2012,AP,Accounts payable,00583182,CANTEEN / HIGHLAND ESTATES COFFEE TRADER
,OFFICE OF THE MAJORITY LEADER,2012Q4,SUPPLIES AND MATERIALS,12-17,CANTEEN / HIGHLAND ESTATES COFFEE TRADER,11/08/12,11/08/12,FOOD & BEVERAGE,328.82,2012,AP,Accounts payable,00583186,CANTEEN / HIGHLAND ESTATES COFFEE TRADER
,OFFICE OF THE MAJORITY LEADER,2012Q4,SUPPLIES AND MATERIALS,12-26,CITI PCARD-DUNKIN DONUTS COM,10/29/12,11/28/12,FOOD & BEVERAGE,140.16,2012,AP,Accounts payable,00590646,CITI PCARD-DUNKIN DONUTS COM
,OFFICE OF THE MAJORITY LEADER,2012Q4,SUPPLIES AND MATERIALS,12-26,CITI PCARD-HARRIS TEETER,10/29/12,11/28/12,FOOD & BEVERAGE,691.43,2012,AP,Accounts payable,00590646,CITI PCARD-HARRIS TEETER
,OFFICE OF THE MAJORITY LEADER,2012Q4,SUPPLIES AND MATERIALS,12-26,CITI PCARD-NEW YORK TIMES DIGITAL,10/29/12,11/28/12,PUBLICATIONS/REFERENCE MAT'L,37.10,2012,AP,Accounts payable,00590646,CITI PCARD-NEW YORK TIMES DIGITAL
,OFFICE OF THE MAJORITY LEADER,2012Q4,SUPPLIES AND MATERIALS,12-26,CITI PCARD-NEWSPAPER DIRECT INQPS,10/29/12,11/28/12,PUBLICATIONS/REFERENCE MAT'L,29.95,2012,AP,Accounts payable,00590646,CITI PCARD-NEWSPAPER DIRECT INQPS
,OFFICE OF THE MAJORITY LEADER,2012Q4,SUPPLIES AND MATERIALS,12-26,CITI PCARD-WME RTD PAPER SUBSCRIP,10/29/12,11/28/12,PUBLICATIONS/REFERENCE MAT'L,18.00,2012,AP,Accounts payable,00590646,CITI PCARD-WME RTD PAPER SUBSCRIP
,OFFICE OF THE MAJORITY LEADER,2012Q4,SUPPLIES AND MATERIALS,12-28,DEER PARK,11/30/12,11/30/12,WATER,73.96,2012,AP,Accounts payable,00594317,DEER PARK
,OFFICE OF THE MINORITY LEADER,2012Q4,PERSONNEL COMPENSATION,"","ABOUCHAR, KEITH S",10/01/12,12/31/12,SENIOR POLICY ADVISOR,"32,700.00",2012,"","","","ABOUCHAR, KEITH S"
,OFFICE OF THE MINORITY LEADER,2012Q4,PERSONNEL COMPENSATION,"","BARRY,MARY K",10/01/12,12/31/12,DEPUTY DIRECTOR OF ADVANCE,"21,750.00",2012,"","","","BARRY,MARY K"
,OFFICE OF THE MINORITY LEADER,2012Q4,PERSONNEL COMPENSATION,"","BLOOM, MICHAEL T",10/01/12,12/31/12,DEPUTY POLICY DIRECTOR,"22,340.76",2012,"","","","BLOOM, MICHAEL T"
,OFFICE OF THE MINORITY LEADER,2012Q4,PERSONNEL COMPENSATION,"","CAPRON, MARGARET W",10/01/12,12/31/12,SENIOR ADV POLICY & COMM,"31,924.26",2012,"","","","CAPRON, MARGARET W"
,OFFICE OF THE MINORITY LEADER,2012Q4,PERSONNEL COMPENSATION,"","CASHMAN,MARY D",10/01/12,12/31/12,ASST TO THE CHIEF OF STAFF,"21,000.00",2012,"","","","CASHMAN,MARY D"
,OFFICE OF THE MINORITY LEADER,2012Q4,PERSONNEL COMPENSATION,"","CHARVILLE,BRIDGET F",10/01/12,12/31/12,DIRECTOR OF PROTOCOL,"29,466.75",2012,"","","","CHARVILLE,BRIDGET F"
,OFFICE OF THE MINORITY LEADER,2012Q4,PERSONNEL COMPENSATION,"","CHERRY,STEPHANIE",10/01/12,12/31/12,PRESS ADVISOR,"20,962.26",2012,"","","","CHERRY,STEPHANIE"
,OFFICE OF THE MINORITY LEADER,2012Q4,PERSONNEL COMPENSATION,"","COVEY-BRANDT, ALEXIS",10/01/12,12/31/12,FLOOR DIRECTOR,"42,825.00",2012,"","","","COVEY-BRANDT, ALEXIS"
,OFFICE OF THE MINORITY LEADER,2012Q4,PERSONNEL COMPENSATION,"","DAY,TAMIKA K",10/01/12,12/31/12,SR STAFF ASST SYS ADMIN,"12,500.01",2012,"","","","DAY,TAMIKA K"
,OFFICE OF THE MINORITY LEADER,2012Q4,PERSONNEL COMPENSATION,"","DEGRAFF, KENNETH B",10/01/12,12/31/12,SENIOR POLICY ADVISOR,"28,749.99",2012,"","","","DEGRAFF, KENNETH B"
,OFFICE OF THE MINORITY LEADER,2012Q4,PERSONNEL COMPENSATION,"","DEVLIN, PATRICK J",10/01/12,12/31/12,COMMUNICATIONS DIRECTOR,"31,250.01",2012,"","","","DEVLIN, PATRICK J"
,OFFICE OF THE MINORITY LEADER,2012Q4,PERSONNEL COMPENSATION,"","DEWHIRST, DIANE",10/01/12,12/31/12,SENIOR ADVISOR,"29,499.99",2012,"","","","DEWHIRST, DIANE"
,OFFICE OF THE MINORITY LEADER,2012Q4,PERSONNEL COMPENSATION,"","DEWHIRST, DIANE",11/01/12,11/01/12,SENIOR ADVISOR (OTHER COMPENSATION),"3,000.00",2012,"","","","DEWHIRST, DIANE"
,OFFICE OF THE MINORITY LEADER,2012Q4,PERSONNEL COMPENSATION,"","ELLISON,MATTHEW B",10/01/12,12/31/12,RESEARCH ASSISTANT,"7,500.00",2012,"","","","ELLISON,MATTHEW B"
,OFFICE OF THE MINORITY LEADER,2012Q4,PERSONNEL COMPENSATION,"","ELSHAMI,NADEEM",10/01/12,12/31/12,COMM DIR/SENIOR ADVISOR (STAT),"43,125.00",2012,"","","","ELSHAMI,NADEEM"
,OFFICE OF THE MINORITY LEADER,2012Q4,PERSONNEL COMPENSATION,"","FISCHER JR, ROBERT V",10/01/12,12/31/12,ASST FLOOR CHIEF,"33,289.50",2012,"","","","FISCHER JR, ROBERT V"
,OFFICE OF THE MINORITY LEADER,2012Q4,PERSONNEL COMPENSATION,"","GEORGE,EVANGELINE M",10/01/12,12/31/12,PRESS ADVISOR,"13,875.00",2012,"","","","GEORGE,EVANGELINE M"
,OFFICE OF THE MINORITY LEADER,2012Q4,PERSONNEL COMPENSATION,"","GREENER, APRIL L",10/01/12,12/31/12,RESEARCH DIRECTOR,"21,249.99",2012,"","","","GREENER, APRIL L"
,OFFICE OF THE MINORITY LEADER,2012Q4,PERSONNEL COMPENSATION,"","HAMMILL, ANDREW T",10/01/12,12/31/12,PRESS SEC & DEPUTY COMM DIR,"40,968.00",2012,"","","","HAMMILL, ANDREW T"
,OFFICE OF THE MINORITY LEADER,2012Q4,PERSONNEL COMPENSATION,"","HARTZ, JERRY",10/01/12,12/31/12,DIRECTOR OF FLOOR OPERATIONS,"43,125.00",2012,"","","","HARTZ, JERRY"
,OFFICE OF THE MINORITY LEADER,2012Q4,PERSONNEL COMPENSATION,"","HAYNES JR, WILFRED J",10/01/12,12/31/12,IT DIRECTOR,"24,530.49",2012,"","","","HAYNES JR, WILFRED J"
,OFFICE OF THE MINORITY LEADER,2012Q4,PERSONNEL COMPENSATION,"","HUGHES,JOHN C",10/01/12,12/31/12,SENIOR POLICY ADVISOR,"32,199.99",2012,"","","","HUGHES,JOHN C"
,OFFICE OF THE MINORITY LEADER,2012Q4,PERSONNEL COMPENSATION,"","IVESTER, WREN",10/01/12,12/31/12,ASST FLOOR CHIEF,"29,974.50",2012,"","","","IVESTER, WREN"
,OFFICE OF THE MINORITY LEADER,2012Q4,PERSONNEL COMPENSATION,"","JUDGE, KRISTINE A",10/01/12,12/31/12,SENIOR ADVISOR/POLICY COMM,"31,924.26",2012,"","","","JUDGE, KRISTINE A"
,OFFICE OF THE MINORITY LEADER,2012Q4,PERSONNEL COMPENSATION,"","KEITA,KAMILAH Z",10/01/12,12/31/12,DEPUTY INFOMATION TECH. DIRECT,"22,283.01",2012,"","","","KEITA,KAMILAH Z"
,OFFICE OF THE MINORITY LEADER,2012Q4,PERSONNEL COMPENSATION,"","KING,RYAN M",10/01/12,12/31/12,PRESS ASSISTANT,"11,250.00",2012,"","","","KING,RYAN M"
,OFFICE OF THE MINORITY LEADER,2012Q4,PERSONNEL COMPENSATION,"","KING,RYAN M",09/01/12,11/30/12,PRESS ASSISTANT (OVERTIME),"3,611.32",2012,"","","","KING,RYAN M"
,OFFICE OF THE MINORITY LEADER,2012Q4,PERSONNEL COMPENSATION,"","KUNDANIS, GEORGE",10/01/12,12/31/12,DEPUTY CHIEF OF STAFF,"43,125.00",2012,"","","","KUNDANIS, GEORGE"
,OFFICE OF THE MINORITY LEADER,2012Q4,PERSONNEL COMPENSATION,"","LAWRENCE, JOHN A",10/01/12,12/31/12,CHIEF OF STAFF,"43,125.00",2012,"","","","LAWRENCE, JOHN A"
,OFFICE OF THE MINORITY LEADER,2012Q4,PERSONNEL COMPENSATION,"","LIZARRAGA, JAIME E",10/01/12,12/31/12,SR ADV & DIR OF MEMBER SVC,"39,905.49",2012,"","","","LIZARRAGA, JAIME E"
,OFFICE OF THE MINORITY LEADER,2012Q4,PERSONNEL COMPENSATION,"","LONG,MICHAEL G",10/01/12,12/31/12,DEPUTY DIRECTOR OF MEMBER SVCS,"21,750.00",2012,"","","","LONG,MICHAEL G"
,OFFICE OF THE MINORITY LEADER,2012Q4,PERSONNEL COMPENSATION,"","MAHR,THOMAS",10/01/12,12/31/12,POLICY DIRECTOR,"29,700.00",2012,"","","","MAHR,THOMAS"
,OFFICE OF THE MINORITY LEADER,2012Q4,PERSONNEL COMPENSATION,"","MANGRUM, PEARL J",10/01/12,12/31/12,FINANCIAL ADMINISTRATOR,"14,276.77",2012,"","","","MANGRUM, PEARL J"
,OFFICE OF THE MINORITY LEADER,2012Q4,PERSONNEL COMPENSATION,"","MEDLIN,MELINDA L",10/01/12,12/31/12,DIRECTOR OF SCHEDULING,"35,847.00",2012,"","","","MEDLIN,MELINDA L"
,OFFICE OF THE MINORITY LEADER,2012Q4,PERSONNEL COMPENSATION,"","MELTZER,RICHARD",10/01/12,12/31/12,POLICY DIRECTOR,"43,125.00",2012,"","","","MELTZER,RICHARD"
,OFFICE OF THE MINORITY LEADER,2012Q4,PERSONNEL COMPENSATION,"","MERZ, JULIE E",11/01/12,12/31/12,DIR OF MEMBER SERVICES,"13,333.33",2012,"","","","MERZ, JULIE E"
,OFFICE OF THE MINORITY LEADER,2012Q4,PERSONNEL COMPENSATION,"","MILLER,AMY M",10/01/12,12/31/12,SENIOR ADVISOR,"24,999.99",2012,"","","","MILLER,AMY M"
,OFFICE OF THE MINORITY LEADER,2012Q4,PERSONNEL COMPENSATION,"","O'NEILL, CATLIN W",10/01/12,12/31/12,CHIEF OF STAFF,"18,750.00",2012,"","","","O'NEILL, CATLIN W"
,OFFICE OF THE MINORITY LEADER,2012Q4,PERSONNEL COMPENSATION,"","PARDUE, LAURA E",10/01/12,12/31/12,DEPUTY DIR. - FLOOR OPERATIONS,"31,250.01",2012,"","","","PARDUE, LAURA E"
,OFFICE OF THE MINORITY LEADER,2012Q4,PERSONNEL COMPENSATION,"","PARKER, WYNDEE R",10/01/12,12/31/12,SENIOR POLICY ADVISOR,"43,125.00",2012,"","","","PARKER, WYNDEE R"
,OFFICE OF THE MINORITY LEADER,2012Q4,PERSONNEL COMPENSATION,"","PATTI,VERNA A",10/01/12,12/31/12,DISTRICT SCHEDULER,"3,000.00",2012,"","","","PATTI,VERNA A"
,OFFICE OF THE MINORITY LEADER,2012Q4,PERSONNEL COMPENSATION,"","POWELL,JONATHAN M",10/01/12,12/31/12,DEPUTY SPEECHWRITER,"23,000.01",2012,"","","","POWELL,JONATHAN M"
,OFFICE OF THE MINORITY LEADER,2012Q4,PERSONNEL COMPENSATION,"","PRICE, REVA B",10/01/12,12/31/12,OUTREACH DIRECTOR & ADVISOR,"31,924.26",2012,"","","","PRICE, REVA B"
,OFFICE OF THE MINORITY LEADER,2012Q4,PERSONNEL COMPENSATION,"","PRIMUS, WENDELL E",10/01/12,12/31/12,SENIOR POLICY ADVISOR,"43,125.00",2012,"","","","PRIMUS, WENDELL E"
,OFFICE OF THE MINORITY LEADER,2012Q4,PERSONNEL COMPENSATION,"","REPKO,MARY F",10/01/12,12/31/12,SENIOR POLICY ADVISOR,"32,949.99",2012,"","","","REPKO,MARY F"
,OFFICE OF THE MINORITY LEADER,2012Q4,PERSONNEL COMPENSATION,"","ROLLAND,STACEY L",10/01/12,12/31/12,POLICY ADVISOR - TAX,"30,000.00",2012,"","","","ROLLAND,STACEY L"
,OFFICE OF THE MINORITY LEADER,2012Q4,PERSONNEL COMPENSATION,"","ROMICK, BRIAN",10/01/12,12/31/12,MEMBER SERVICES DIRECTOR,"35,949.99",2012,"","","","ROMICK, BRIAN"
,OFFICE OF THE MINORITY LEADER,2012Q4,PERSONNEL COMPENSATION,"","SANCHEZ, CARLOS S",10/01/12,12/31/12,PRESS ADVISOR,"21,500.01",2012,"","","","SANCHEZ, CARLOS S"
,OFFICE OF THE MINORITY LEADER,2012Q4,PERSONNEL COMPENSATION,"","SANCHEZ, CARLOS S",12/01/12,12/31/12,PRESS ADVISOR (OTHER COMPENSATION),"6,444.44",2012,"","","","SANCHEZ, CARLOS S"
,OFFICE OF THE MINORITY LEADER,2012Q4,PERSONNEL COMPENSATION,"","SCHMIDT, AARON",10/01/12,12/16/12,POLICY ADVISOR,"18,500.00",2012,"","","","SCHMIDT, AARON"
,OFFICE OF THE MINORITY LEADER,2012Q4,PERSONNEL COMPENSATION,"","SHAKIR,FAIZ R",10/01/12,12/31/12,DIR OF NEW MEDIA & SENIOR ADV,"33,750.00",2012,"","","","SHAKIR,FAIZ R"
,OFFICE OF THE MINORITY LEADER,2012Q4,PERSONNEL COMPENSATION,"","SINGLETARY, BARVETTA",10/01/12,12/31/12,POLICY DIRECTOR,"33,249.99",2012,"","","","SINGLETARY, BARVETTA"
,OFFICE OF THE MINORITY LEADER,2012Q4,PERSONNEL COMPENSATION,"","SKEWES-COX,CHRISTINA J",10/01/12,12/31/12,ADVANCE DIRECTOR,"20,000.01",2012,"","","","SKEWES-COX,CHRISTINA J"
,OFFICE OF THE MINORITY LEADER,2012Q4,PERSONNEL COMPENSATION,"","SMITH,KELSEY L",10/01/12,12/31/12,DEPUTY DIRECTOR OF SCHEDULING,"11,375.01",2012,"","","","SMITH,KELSEY L"
,OFFICE OF THE MINORITY LEADER,2012Q4,PERSONNEL COMPENSATION,"","SMITH,KELSEY L",09/01/12,11/30/12,DEPUTY DIRECTOR OF SCHEDULING (OVERTIME),"4,109.72",2012,"","","","SMITH,KELSEY L"
,OFFICE OF THE MINORITY LEADER,2012Q4,PERSONNEL COMPENSATION,"","STIVERS, JONATHAN",10/01/12,12/31/12,SENIOR ADVISOR,"35,000.01",2012,"","","","STIVERS, JONATHAN"
,OFFICE OF THE MINORITY LEADER,2012Q4,PERSONNEL COMPENSATION,"","SULLIVAN, BARRY K",10/01/12,12/31/12,CHIEF FLOOR SERVICE (MIN),"43,125.00",2012,"","","","SULLIVAN, BARRY K"
,OFFICE OF THE MINORITY LEADER,2012Q4,PERSONNEL COMPENSATION,"","SURGEON,BINA G",10/01/12,12/31/12,SPECIAL ASST TO THE LEADER,"20,499.99",2012,"","","","SURGEON,BINA G"
,OFFICE OF THE MINORITY LEADER,2012Q4,PERSONNEL COMPENSATION,"","TECKLENBURG, MICHAEL H",10/01/12,12/31/12,COUNSEL,"32,499.99",2012,"","","","TECKLENBURG, MICHAEL H"
,OFFICE OF THE MINORITY LEADER,2012Q4,PERSONNEL COMPENSATION,"","UENG,STEPHANIE L",10/01/12,12/31/12,OUTREACH ADVISOR,"13,681.50",2012,"","","","UENG,STEPHANIE L"
,OFFICE OF THE MINORITY LEADER,2012Q4,PERSONNEL COMPENSATION,"","VEITCH, ALEXANDRA N",10/01/12,12/01/12,DIRECTOR OF SPEECHWRITING,"20,589.95",2012,"","","","VEITCH, ALEXANDRA N"
,OFFICE OF THE MINORITY LEADER,2012Q4,PERSONNEL COMPENSATION,"","VEITCH, ALEXANDRA N",12/01/12,12/01/12,DIRECTOR OF SPEECHWRITING (OTHER COMPENSATION),"9,075.55",2012,"","","","VEITCH, ALEXANDRA N"
,OFFICE OF THE MINORITY LEADER,2012Q4,PERSONNEL COMPENSATION,"","WATKINS, YELBERTON R",10/01/12,12/31/12,CHIEF OF STAFF,"41,250.00",2012,"","","","WATKINS, YELBERTON R"
,OFFICE OF THE MINORITY LEADER,2012Q4,PERSONNEL COMPENSATION,"","WEST,JULIUS L",10/01/12,12/31/12,DISTRICT ASSISTANT,"11,250.00",2012,"","","","WEST,JULIUS L"
,OFFICE OF THE MINORITY LEADER,2012Q4,PERSONNEL COMPENSATION,"","WILEDEN,LYDIA",10/01/12,12/31/12,STAFF ASST/PERSONAL CORR,"11,250.00",2012,"","","","WILEDEN,LYDIA"
,OFFICE OF THE MINORITY LEADER,2012Q4,PERSONNEL COMPENSATION,"","WILEDEN,LYDIA",09/01/12,11/30/12,STAFF ASST/PERSONAL CORR (OVERTIME),"4,250.62",2012,"","","","WILEDEN,LYDIA"
,OFFICE OF THE MINORITY LEADER,2012Q4,PERSONNEL COMPENSATION,"","WOLTERS, KATE",10/01/12,12/31/12,PERSONAL ASSISTANT,"37,313.17",2012,"","","","WOLTERS, KATE"
,OFFICE OF THE MINORITY LEADER,2012Q4,TRAVEL,10-19,"WOLTERS, KATE",10/02/12,10/07/12,TRAVEL SUBSISTENCE,"3,014.97",2012,AP,Accounts payable,00553168,"WOLTERS, KATE"
,OFFICE OF THE MINORITY LEADER,2012Q4,TRAVEL,10-19,"STIVERS, JONATHAN",10/02/12,10/03/12,TRAVEL SUBSISTENCE,508.14,2012,AP,Accounts payable,00553276,"STIVERS, JONATHAN"
,OFFICE OF THE MINORITY LEADER,2012Q4,TRAVEL,10-31,"SANCHEZ, CARLOS S",10/08/12,10/11/12,TRAVEL SUBSISTENCE,423.83,2012,AP,Accounts payable,00556971,"SANCHEZ, CARLOS S"
,OFFICE OF THE MINORITY LEADER,2012Q4,TRAVEL,11-05,"WILEDEN, LYDIA",10/21/12,10/21/12,TAXI/PARKING/TOLLS,52.00,2012,AP,Accounts payable,00559108,"WILEDEN, LYDIA"
,OFFICE OF THE MINORITY LEADER,2012Q4,TRAVEL,11-05,"PATTI, VERNA A",10/08/12,10/11/12,MEALS,47.00,2012,AP,Accounts payable,00559111,"PATTI, VERNA A"
,OFFICE OF THE MINORITY LEADER,2012Q4,TRAVEL,11-16,"WOLTERS, KATE",10/22/12,10/26/12,TRAVEL SUBSISTENCE,"2,875.56",2012,AP,Accounts payable,00564915,"WOLTERS, KATE"
,OFFICE OF THE MINORITY LEADER,2012Q4,TRAVEL,11-16,"HAMMILL, ANDREW T",10/23/12,10/26/12,TRAVEL SUBSISTENCE,"2,428.78",2012,AP,Accounts payable,00564917,"HAMMILL, ANDREW T"
,OFFICE OF THE MINORITY LEADER,2012Q4,TRAVEL,11-16,"HAMMILL, ANDREW T",10/22/12,10/22/12,TRAVEL SUBSISTENCE,53.28,2012,AP,Accounts payable,00564919,"HAMMILL, ANDREW T"
,OFFICE OF THE MINORITY LEADER,2012Q4,TRAVEL,11-16,CITIBANK GOV CARD SERVICE,10/03/12,10/26/12,COMMERCIAL TRANSPORTATION,"5,107.60",2012,AP,Accounts payable,00565393,CITIBANK GOV CARD SERVICE
,OFFICE OF THE MINORITY LEADER,2012Q4,TRAVEL,11-21,CITIBANK GOV CARD SERVICE,10/05/12,10/11/12,TRAVEL SUBSISTENCE,"1,692.23",2012,AP,Accounts payable,00571145,CITIBANK GOV CARD SERVICE
,OFFICE OF THE MINORITY LEADER,2012Q4,TRAVEL,11-30,CITIBANK GOV CARD SERVICE,10/05/12,10/11/12,TRAVEL SUBSISTENCE,"-1,692.23",2012,AP,Accounts payable,00580133,CITIBANK GOV CARD SERVICE
,OFFICE OF THE MINORITY LEADER,2012Q4,TRAVEL,11-30,CITIBANK GOV CARD SERVICE,10/08/12,10/11/12,TRAVEL SUBSISTENCE,"1,692.23",2012,AP,Accounts payable,00580133,CITIBANK GOV CARD SERVICE
,OFFICE OF THE MINORITY LEADER,2012Q4,TRAVEL,12-11,"WILEDEN, LYDIA",12/03/12,12/03/12,TAXI/PARKING/TOLLS,16.00,2012,AP,Accounts payable,00581118,"WILEDEN, LYDIA"
,OFFICE OF THE MINORITY LEADER,2012Q4,TRAVEL,12-12,"SKEWES-COX,CHRISTINA J",11/13/12,12/03/12,TAXI/PARKING/TOLLS,117.56,2012,AP,Accounts payable,00581124,"SKEWES-COX,CHRISTINA J"
,OFFICE OF THE MINORITY LEADER,2012Q4,TRAVEL,12-12,"LIZARRAGA, JAIME E",11/20/12,11/20/12,TAXI/PARKING/TOLLS,11.00,2012,AP,Accounts payable,00581128,"LIZARRAGA, JAIME E"
,OFFICE OF THE MINORITY LEADER,2012Q4,TRAVEL,12-27,"BARRY, MARY-KATE",11/06/12,12/02/12,TAXI/PARKING/TOLLS,64.00,2012,AP,Accounts payable,00590161,"BARRY, MARY-KATE"
,OFFICE OF THE MINORITY LEADER,2012Q4,TRAVEL,12-27,"BARRY, MARY-KATE",11/15/12,11/15/12,TAXI/PARKING/TOLLS,31.00,2012,AP,Accounts payable,00590171,"BARRY, MARY-KATE"
,OFFICE OF THE MINORITY LEADER,2012Q4,TRAVEL,12-27,"UENG, STEPHANIE L",11/16/12,11/19/12,TAXI/PARKING/TOLLS,24.09,2012,AP,Accounts payable,00591141,"UENG, STEPHANIE L"
,OFFICE OF THE MINORITY LEADER,2012Q4,"RENT, COMMUNICATION, UTILITIES",10-24,CITI PCARD-TIV TIVO SERVICE,08/29/12,09/28/12,RECORDING (OUTSIDE),45.38,2012,AP,Accounts payable,00553340,CITI PCARD-TIV TIVO SERVICE
,OFFICE OF THE MINORITY LEADER,2012Q4,"RENT, COMMUNICATION, UTILITIES",10-31,FEDEX,10/04/12,10/04/12,POSTAGE / COURIER / BOX RENTAL,6.17,2012,AP,Accounts payable,00556973,FEDEX
,OFFICE OF THE MINORITY LEADER,2012Q4,"RENT, COMMUNICATION, UTILITIES",11-20,CITI PCARD-TIV TIVO SERVICE,10/01/12,10/28/12,RECORDING (OUTSIDE),45.38,2012,AP,Accounts payable,00570984,CITI PCARD-TIV TIVO SERVICE
,OFFICE OF THE MINORITY LEADER,2012Q4,"RENT, COMMUNICATION, UTILITIES",11-21,FEDEX,10/04/12,10/12/12,POSTAGE / COURIER / BOX RENTAL,35.22,2012,AP,Accounts payable,00571599,FEDEX
,OFFICE OF THE MINORITY LEADER,2012Q4,"RENT, COMMUNICATION, UTILITIES",12-05,FEDEX,10/18/12,10/19/12,POSTAGE / COURIER / BOX RENTAL,13.65,2012,AP,Accounts payable,00577636,FEDEX
,OFFICE OF THE MINORITY LEADER,2012Q4,"RENT, COMMUNICATION, UTILITIES",12-05,FEDEX,10/26/12,11/01/12,POSTAGE / COURIER / BOX RENTAL,87.25,2012,AP,Accounts payable,00577639,FEDEX
,OFFICE OF THE MINORITY LEADER,2012Q4,"RENT, COMMUNICATION, UTILITIES",12-12,FEDEX,11/15/12,11/21/12,POSTAGE / COURIER / BOX RENTAL,114.15,2012,AP,Accounts payable,00581135,FEDEX
,OFFICE OF THE MINORITY LEADER,2012Q4,"RENT, COMMUNICATION, UTILITIES",12-12,FEDEX,11/05/12,11/09/12,POSTAGE / COURIER / BOX RENTAL,23.19,2012,AP,Accounts payable,00581146,FEDEX
,OFFICE OF THE MINORITY LEADER,2012Q4,"RENT, COMMUNICATION, UTILITIES",12-26,CITI PCARD-TIV TIVO SERVICE,10/29/12,11/28/12,RECORDING (OUTSIDE),45.38,2012,AP,Accounts payable,00590646,CITI PCARD-TIV TIVO SERVICE
,OFFICE OF THE MINORITY LEADER,2012Q4,"RENT, COMMUNICATION, UTILITIES",12-27,FEDEX,11/16/12,11/16/12,POSTAGE / COURIER / BOX RENTAL,9.53,2012,AP,Accounts payable,00590190,FEDEX
,OFFICE OF THE MINORITY LEADER,2012Q4,"RENT, COMMUNICATION, UTILITIES",12-27,FEDEX,11/09/12,11/15/12,POSTAGE / COURIER / BOX RENTAL,32.19,2012,AP,Accounts payable,00590192,FEDEX
,OFFICE OF THE MINORITY LEADER,2012Q4,PRINTING AND REPRODUCTION,10-25,"",10/01/12,10/31/12,PHOTOGRAPHIC (TRANSFER),133.70,2012,GL,General ledger,PIX0023747,""
,OFFICE OF THE MINORITY LEADER,2012Q4,PRINTING AND REPRODUCTION,11-16,"PATTI, VERNA A",10/30/12,10/30/12,PRINTING & REPRODUCTION,10.34,2012,AP,Accounts payable,00564921,"PATTI, VERNA A"
,OFFICE OF THE MINORITY LEADER,2012Q4,PRINTING AND REPRODUCTION,11-29,"",11/01/12,11/30/12,PHOTOGRAPHIC (TRANSFER),584.55,2012,GL,General ledger,PIX0024551,""
,OFFICE OF THE MINORITY LEADER,2012Q4,PRINTING AND REPRODUCTION,12-21,"",12/01/12,12/31/12,PHOTOGRAPHIC (TRANSFER),690.90,2012,GL,General ledger,PIX0025333,""
,OFFICE OF THE MINORITY LEADER,2012Q4,OTHER SERVICES,10-17,NEAL R. GROSS & CO INC,10/02/12,10/02/12,STENOGRAPHIC REPORTING,"1,500.00",2012,AP,Accounts payable,00549342,NEAL R. GROSS & CO INC
,OFFICE OF THE MINORITY LEADER,2012Q4,OTHER SERVICES,11-16,BERNARD RAIMO,10/01/12,10/31/12,CONSULTANT CONTRACT SERVICE,"7,628.00",2012,AP,Accounts payable,00564931,BERNARD RAIMO
,OFFICE OF THE MINORITY LEADER,2012Q4,OTHER SERVICES,11-30,BERNARD RAIMO,11/01/12,11/30/12,CONSULTANT CONTRACT SERVICE,"7,628.00",2012,AP,Accounts payable,00575413,BERNARD RAIMO
,OFFICE OF THE MINORITY LEADER,2012Q4,SUPPLIES AND MATERIALS,10-19,HAGUE QUALITY WATER OF MD INC,10/15/12,10/15/12,WATER,378.00,2012,AP,Accounts payable,00553172,HAGUE QUALITY WATER OF MD INC
,OFFICE OF THE MINORITY LEADER,2012Q4,SUPPLIES AND MATERIALS,10-24,CITI PCARD-DUNKIN,08/29/12,09/28/12,FOOD & BEVERAGE,13.54,2012,AP,Accounts payable,00553340,CITI PCARD-DUNKIN
,OFFICE OF THE MINORITY LEADER,2012Q4,SUPPLIES AND MATERIALS,10-24,CITI PCARD-GIANT FOOD INC,08/29/12,09/28/12,FOOD & BEVERAGE,59.95,2012,AP,Accounts payable,00553340,CITI PCARD-GIANT FOOD INC
,OFFICE OF THE MINORITY LEADER,2012Q4,SUPPLIES AND MATERIALS,10-24,CITI PCARD-HARRIS TEETER,08/29/12,09/28/12,FOOD & BEVERAGE,116.94,2012,AP,Accounts payable,00553340,CITI PCARD-HARRIS TEETER
,OFFICE OF THE MINORITY LEADER,2012Q4,SUPPLIES AND MATERIALS,10-24,CITI PCARD-TARGET,08/29/12,09/28/12,FOOD & BEVERAGE,509.74,2012,AP,Accounts payable,00553340,CITI PCARD-TARGET
,OFFICE OF THE MINORITY LEADER,2012Q4,SUPPLIES AND MATERIALS,10-24,CITI PCARD-WHOLEFDS PST,08/29/12,09/28/12,FOOD & BEVERAGE,92.91,2012,AP,Accounts payable,00553340,CITI PCARD-WHOLEFDS PST
,OFFICE OF THE MINORITY LEADER,2012Q4,SUPPLIES AND MATERIALS,11-20,CITI PCARD-COSI,10/01/12,10/28/12,FOOD & BEVERAGE,191.15,2012,AP,Accounts payable,00570984,CITI PCARD-COSI
,OFFICE OF THE MINORITY LEADER,2012Q4,SUPPLIES AND MATERIALS,11-20,CITI PCARD-HARRIS TEETER,10/01/12,10/28/12,FOOD & BEVERAGE,6.73,2012,AP,Accounts payable,00570984,CITI PCARD-HARRIS TEETER
,OFFICE OF THE MINORITY LEADER,2012Q4,SUPPLIES AND MATERIALS,11-21,BURRELLESLUCE,10/01/12,10/31/12,PUBLICATIONS/REFERENCE MAT'L,433.90,2012,AP,Accounts payable,00571015,BURRELLESLUCE
,OFFICE OF THE MINORITY LEADER,2012Q4,SUPPLIES AND MATERIALS,11-21,CRYSTAL SPRINGS,10/01/12,10/31/12,FOOD & BEVERAGE,"1,173.32",2012,AP,Accounts payable,00571019,CRYSTAL SPRINGS
,OFFICE OF THE MINORITY LEADER,2012Q4,SUPPLIES AND MATERIALS,11-26,"WILEDEN, LYDIA",11/13/12,11/13/12,FOOD & BEVERAGE,52.03,2012,AP,Accounts payable,00571929,"WILEDEN, LYDIA"
,OFFICE OF THE MINORITY LEADER,2012Q4,SUPPLIES AND MATERIALS,11-26,HAGUE QUALITY WATER OF MD INC,11/01/12,11/30/12,WATER,378.00,2012,AP,Accounts payable,00571931,HAGUE QUALITY WATER OF MD INC
,OFFICE OF THE MINORITY LEADER,2012Q4,SUPPLIES AND MATERIALS,11-28,HAGUE QUALITY WATER OF MD INC,10/01/12,10/31/12,WATER,378.00,2012,AP,Accounts payable,00573958,HAGUE QUALITY WATER OF MD INC
,OFFICE OF THE MINORITY LEADER,2012Q4,SUPPLIES AND MATERIALS,11-28,HAGUE QUALITY WATER OF MD INC,10/15/12,10/15/12,WATER,-378.00,2012,AP,Accounts payable,00573958,HAGUE QUALITY WATER OF MD INC
,OFFICE OF THE MINORITY LEADER,2012Q4,SUPPLIES AND MATERIALS,12-12,CRYSTAL SPRINGS,11/01/12,11/30/12,WATER,75.50,2012,AP,Accounts payable,00581142,CRYSTAL SPRINGS
,OFFICE OF THE MINORITY LEADER,2012Q4,SUPPLIES AND MATERIALS,12-12,BURRELLESLUCE,11/01/12,11/30/12,PUBLICATIONS/REFERENCE MAT'L,394.54,2012,AP,Accounts payable,00581150,BURRELLESLUCE
,OFFICE OF THE MINORITY LEADER,2012Q4,SUPPLIES AND MATERIALS,12-26,CITI PCARD-CHO EDWARDMARCCHOCOLAT,10/29/12,11/28/12,FOOD & BEVERAGE,610.95,2012,AP,Accounts payable,00590646,CITI PCARD-CHO EDWARDMARCCHOCOLAT
,OFFICE OF THE MINORITY LEADER,2012Q4,SUPPLIES AND MATERIALS,12-26,CITI PCARD-COSI,10/29/12,11/28/12,FOOD & BEVERAGE,125.57,2012,AP,Accounts payable,00590646,CITI PCARD-COSI
,OFFICE OF THE MINORITY LEADER,2012Q4,SUPPLIES AND MATERIALS,12-26,CITI PCARD-DUNKIN,10/29/12,11/28/12,FOOD & BEVERAGE,27.49,2012,AP,Accounts payable,00590646,CITI PCARD-DUNKIN
,OFFICE OF THE MINORITY LEADER,2012Q4,SUPPLIES AND MATERIALS,12-26,CITI PCARD-PAUL BAKERY,10/29/12,11/28/12,FOOD & BEVERAGE,115.01,2012,AP,Accounts payable,00590646,CITI PCARD-PAUL BAKERY
,OFFICE OF THE MINORITY LEADER,2012Q4,SUPPLIES AND MATERIALS,12-26,CITI PCARD-SURROUNDINGS FLOWERS,10/29/12,11/28/12,HABITATION EXPENSE,34.66,2012,AP,Accounts payable,00590646,CITI PCARD-SURROUNDINGS FLOWERS
,OFFICE OF THE MINORITY LEADER,2012Q4,SUPPLIES AND MATERIALS,12-26,CITI PCARD-TARGET,10/29/12,11/28/12,FOOD & BEVERAGE,302.37,2012,AP,Accounts payable,00590646,CITI PCARD-TARGET
,OFFICE OF THE MINORITY LEADER,2012Q4,SUPPLIES AND MATERIALS,12-26,CITI PCARD-THOMSON WEST TCD,10/29/12,11/28/12,PUBLICATIONS/REFERENCE MAT'L,136.65,2012,AP,Accounts payable,00590646,CITI PCARD-THOMSON WEST TCD
,OFFICE OF THE MINORITY LEADER,2012Q4,SUPPLIES AND MATERIALS,12-26,CITI PCARD-WHOLEFDS PST,10/29/12,11/28/12,FOOD & BEVERAGE,24.36,2012,AP,Accounts payable,00590646,CITI PCARD-WHOLEFDS PST
,OFFICE OF THE MINORITY LEADER,2012Q4,SUPPLIES AND MATERIALS,12-27,"BARRY, MARY-KATE",11/13/12,11/13/12,FOOD & BEVERAGE,55.30,2012,AP,Accounts payable,00590164,"BARRY, MARY-KATE"
,OFFICE OF THE MINORITY LEADER,2012Q4,SUPPLIES AND MATERIALS,12-27,HELEN OLIVIA,11/05/12,11/05/12,HABITATION EXPENSE,249.00,2012,AP,Accounts payable,00590174,HELEN OLIVIA
,OFFICE OF THE MINORITY LEADER,2012Q4,SUPPLIES AND MATERIALS,12-27,HELEN OLIVIA,11/13/12,11/13/12,HABITATION EXPENSE,249.00,2012,AP,Accounts payable,00590175,HELEN OLIVIA
,OFFICE OF THE MINORITY LEADER,2012Q4,SUPPLIES AND MATERIALS,12-27,HELEN OLIVIA,11/27/12,11/27/12,HABITATION EXPENSE,249.00,2012,AP,Accounts payable,00590178,HELEN OLIVIA
,OFFICE OF THE MINORITY LEADER,2012Q4,SUPPLIES AND MATERIALS,12-27,HELEN OLIVIA,12/03/12,12/03/12,HABITATION EXPENSE,249.00,2012,AP,Accounts payable,00590180,HELEN OLIVIA
,OFFICE OF THE MINORITY LEADER,2012Q4,SUPPLIES AND MATERIALS,12-27,HELEN OLIVIA,12/10/12,12/10/12,HABITATION EXPENSE,249.00,2012,AP,Accounts payable,00590183,HELEN OLIVIA
,OFFICE OF THE MINORITY LEADER,2012Q4,SUPPLIES AND MATERIALS,12-27,CAPITOLHOST,11/28/12,11/28/12,FOOD & BEVERAGE,33.00,2012,AP,Accounts payable,00590186,CAPITOLHOST
,OFFICE OF THE MINORITY LEADER,2012Q4,SUPPLIES AND MATERIALS,12-27,HELEN OLIVIA,12/18/12,12/18/12,HABITATION EXPENSE,249.00,2012,AP,Accounts payable,00591137,HELEN OLIVIA
,OFFICE OF THE MAJORITY WHIP,2012Q4,PERSONNEL COMPENSATION,"","BARNES,FREDERIC W",10/01/12,12/31/12,FLOOR ASSISTANT,"13,000.00",2012,"","","","BARNES,FREDERIC W"
,OFFICE OF THE MAJORITY WHIP,2012Q4,PERSONNEL COMPENSATION,"","BERRY,TIMOTHY J",10/01/12,12/31/12,CHIEF OF STAFF,"43,125.00",2012,"","","","BERRY,TIMOTHY J"
,OFFICE OF THE MAJORITY WHIP,2012Q4,PERSONNEL COMPENSATION,"","BUCHANAN,NATALIE L",10/01/12,12/31/12,DIR OF MEMBER SERVICES,"20,500.00",2012,"","","","BUCHANAN,NATALIE L"
,OFFICE OF THE MAJORITY WHIP,2012Q4,PERSONNEL COMPENSATION,"","CAREY,BRITTANY M",10/01/12,12/31/12,STAFF ASSISTANT,"8,608.33",2012,"","","","CAREY,BRITTANY M"
,OFFICE OF THE MAJORITY WHIP,2012Q4,PERSONNEL COMPENSATION,"","DIXON, KELLY A",10/01/12,12/31/12,DEPUTY DIRECTOR OF FLOOR OPERA,"23,500.00",2012,"","","","DIXON, KELLY A"
,OFFICE OF THE MAJORITY WHIP,2012Q4,PERSONNEL COMPENSATION,"","ELLIOTT,ERICA L",10/01/12,12/31/12,DIRECTOR OF COMMUNICATIONS,"32,000.00",2012,"","","","ELLIOTT,ERICA L"
,OFFICE OF THE MAJORITY WHIP,2012Q4,PERSONNEL COMPENSATION,"","HENEHAN, EMILY A",10/01/12,12/31/12,POLICY ADVISOR,"23,500.00",2012,"","","","HENEHAN, EMILY A"
,OFFICE OF THE MAJORITY WHIP,2012Q4,PERSONNEL COMPENSATION,"","HOWARD,BENJAMIN R",10/01/12,12/31/12,FLOOR ASSISTANT,"13,000.00",2012,"","","","HOWARD,BENJAMIN R"
,OFFICE OF THE MAJORITY WHIP,2012Q4,PERSONNEL COMPENSATION,"","LOFRANCO, JUSTIN V",11/01/12,12/31/12,DIGITAL DIRECTOR,"12,125.00",2012,"","","","LOFRANCO, JUSTIN V"
,OFFICE OF THE MAJORITY WHIP,2012Q4,PERSONNEL COMPENSATION,"","LONG,MICHAEL P",10/01/12,12/31/12,DEPUTY PRESS SECRETARY,"11,500.00",2012,"","","","LONG,MICHAEL P"
,OFFICE OF THE MAJORITY WHIP,2012Q4,PERSONNEL COMPENSATION,"","MCCLELLAND, WESLEY R",10/01/12,12/31/12,POLICY ADVISOR,"23,500.00",2012,"","","","MCCLELLAND, WESLEY R"
,OFFICE OF THE MAJORITY WHIP,2012Q4,PERSONNEL COMPENSATION,"","METTLER,ASHLEY",10/01/12,12/31/12,SENIOR STAFF ASSISTANT,"10,000.00",2012,"","","","METTLER,ASHLEY"
,OFFICE OF THE MAJORITY WHIP,2012Q4,PERSONNEL COMPENSATION,"","MIN, JAMES B",10/01/12,12/31/12,DEPUTY CHIEF OF STAFF,"33,000.00",2012,"","","","MIN, JAMES B"
,OFFICE OF THE MAJORITY WHIP,2012Q4,PERSONNEL COMPENSATION,"","MOORE,STEVEN E",10/01/12,12/31/12,CHIEF OF STAFF TO THE DEP WHIP,"15,000.00",2012,"","","","MOORE,STEVEN E"
,OFFICE OF THE MAJORITY WHIP,2012Q4,PERSONNEL COMPENSATION,"","PATAKI,TIMOTHY A",10/01/12,12/31/12,SPECIAL ASST TO CHIEF DEPUTY W,"8,500.00",2012,"","","","PATAKI,TIMOTHY A"
,OFFICE OF THE MAJORITY WHIP,2012Q4,PERSONNEL COMPENSATION,"","PINKOS,STEPHEN M",10/01/12,12/31/12,POLICY DIR AND GENERAL COUNSEL,"38,500.00",2012,"","","","PINKOS,STEPHEN M"
,OFFICE OF THE MAJORITY WHIP,2012Q4,PERSONNEL COMPENSATION,"","SPARKS, MATTHEW E",10/01/12,12/31/12,PRESS AIDE,"11,750.00",2012,"","","","SPARKS, MATTHEW E"
,OFFICE OF THE MAJORITY WHIP,2012Q4,PERSONNEL COMPENSATION,"","STIPICEVIC, JOHN A",10/01/12,12/31/12,DIRECTOR OF FLOOR OPERATIONS,"32,000.00",2012,"","","","STIPICEVIC, JOHN A"
,OFFICE OF THE MAJORITY WHIP,2012Q4,PERSONNEL COMPENSATION,"","THOMSON, KRISTIN",10/01/12,12/31/12,SHARED EMPLOYEE,"16,000.00",2012,"","","","THOMSON, KRISTIN"
,OFFICE OF THE MAJORITY WHIP,2012Q4,PERSONNEL COMPENSATION,"","WORTH,BRIAN A",10/01/12,12/31/12,DIRECTOR OF COALITIONS,"35,750.00",2012,"","","","WORTH,BRIAN A"
,OFFICE OF THE MAJORITY WHIP,2012Q4,TRAVEL,10-23,"WORTH, BRIAN A",10/02/12,10/02/12,TAXI/PARKING/TOLLS,11.00,2012,AP,Accounts payable,00553880,"WORTH, BRIAN A"
,OFFICE OF THE MAJORITY WHIP,2012Q4,TRAVEL,10-23,"WORTH, BRIAN A",10/02/12,10/02/12,TAXI/PARKING/TOLLS,11.00,2012,AP,Accounts payable,00553884,"WORTH, BRIAN A"
,OFFICE OF THE MAJORITY WHIP,2012Q4,TRAVEL,12-19,"LOFRANCO, JUSTIN V",11/28/12,11/29/12,TRAVEL SUBSISTENCE,334.74,2012,AP,Accounts payable,00588627,"LOFRANCO, JUSTIN V"
,OFFICE OF THE MAJORITY WHIP,2012Q4,SUPPLIES AND MATERIALS,10-24,CITI PCARD-CHICKEN OUT CATERING,08/29/12,09/28/12,FOOD & BEVERAGE,"2,305.79",2012,AP,Accounts payable,00553340,CITI PCARD-CHICKEN OUT CATERING
,OFFICE OF THE MAJORITY WHIP,2012Q4,SUPPLIES AND MATERIALS,10-24,CITI PCARD-CORNER BAKERY,08/29/12,09/28/12,FOOD & BEVERAGE,379.50,2012,AP,Accounts payable,00553340,CITI PCARD-CORNER BAKERY
,OFFICE OF THE MAJORITY WHIP,2012Q4,SUPPLIES AND MATERIALS,10-24,CITI PCARD-JOE RAGAN S COFFEE,08/29/12,09/28/12,FOOD & BEVERAGE,260.54,2012,AP,Accounts payable,00553340,CITI PCARD-JOE RAGAN S COFFEE
,OFFICE OF THE MAJORITY WHIP,2012Q4,SUPPLIES AND MATERIALS,10-24,CITI PCARD-NEW YORK TIMES DIGITAL,08/29/12,09/28/12,PUBLICATIONS/REFERENCE MAT'L,37.10,2012,AP,Accounts payable,00553340,CITI PCARD-NEW YORK TIMES DIGITAL
,OFFICE OF THE MAJORITY WHIP,2012Q4,SUPPLIES AND MATERIALS,10-24,CITI PCARD-QDOBA,08/29/12,09/28/12,FOOD & BEVERAGE,"2,495.00",2012,AP,Accounts payable,00553340,CITI PCARD-QDOBA
,OFFICE OF THE MAJORITY WHIP,2012Q4,SUPPLIES AND MATERIALS,10-24,CITI PCARD-SAFEWAY STORE,08/29/12,09/28/12,FOOD & BEVERAGE,48.58,2012,AP,Accounts payable,00553340,CITI PCARD-SAFEWAY STORE
,OFFICE OF THE MAJORITY WHIP,2012Q4,SUPPLIES AND MATERIALS,11-20,CITI PCARD-JOE RAGAN S COFFEE,10/01/12,10/28/12,FOOD & BEVERAGE,578.24,2012,AP,Accounts payable,00570984,CITI PCARD-JOE RAGAN S COFFEE
,OFFICE OF THE MAJORITY WHIP,2012Q4,SUPPLIES AND MATERIALS,11-20,CITI PCARD-MATCHBOX CAPITOL HILL,10/01/12,10/28/12,FOOD & BEVERAGE,130.90,2012,AP,Accounts payable,00570984,CITI PCARD-MATCHBOX CAPITOL HILL
,OFFICE OF THE MAJORITY WHIP,2012Q4,SUPPLIES AND MATERIALS,11-26,"CAREY, BRITTANY M",11/12/12,11/12/12,FOOD & BEVERAGE,257.12,2012,AP,Accounts payable,00572373,"CAREY, BRITTANY M"
,OFFICE OF THE MAJORITY WHIP,2012Q4,SUPPLIES AND MATERIALS,12-10,"METTLER, ASHLEY",11/29/12,11/29/12,FOOD & BEVERAGE,15.56,2012,AP,Accounts payable,00579838,"METTLER, ASHLEY"
,OFFICE OF THE MAJORITY WHIP,2012Q4,SUPPLIES AND MATERIALS,12-19,"CAREY, BRITTANY M",12/07/12,12/07/12,FOOD & BEVERAGE,313.91,2012,AP,Accounts payable,00588622,"CAREY, BRITTANY M"
,OFFICE OF THE MAJORITY WHIP,2012Q4,SUPPLIES AND MATERIALS,12-19,DEER PARK WATER,10/27/12,11/26/12,WATER,214.33,2012,AP,Accounts payable,00588623,DEER PARK WATER
,OFFICE OF THE MAJORITY WHIP,2012Q4,SUPPLIES AND MATERIALS,12-26,CITI PCARD-BUCA DI BEPPO-WASHINGT,10/29/12,11/28/12,FOOD & BEVERAGE,"2,586.62",2012,AP,Accounts payable,00590646,CITI PCARD-BUCA DI BEPPO-WASHINGT
,OFFICE OF THE MAJORITY WHIP,2012Q4,SUPPLIES AND MATERIALS,12-26,CITI PCARD-CORNER BAKERY,10/29/12,11/28/12,FOOD & BEVERAGE,137.50,2012,AP,Accounts payable,00590646,CITI PCARD-CORNER BAKERY
,OFFICE OF THE MAJORITY WHIP,2012Q4,SUPPLIES AND MATERIALS,12-26,CITI PCARD-JOE RAGAN S COFFEE,10/29/12,11/28/12,FOOD & BEVERAGE,266.54,2012,AP,Accounts payable,00590646,CITI PCARD-JOE RAGAN S COFFEE
,OFFICE OF THE MAJORITY WHIP,2012Q4,SUPPLIES AND MATERIALS,12-26,CITI PCARD-SAFEWAY STORE,10/29/12,11/28/12,FOOD & BEVERAGE,13.47,2012,AP,Accounts payable,00590646,CITI PCARD-SAFEWAY STORE
,OFFICE OF THE MINORITY WHIP,2012Q4,PERSONNEL COMPENSATION,"","ABOUCHAR, KEITH S",10/01/12,12/31/12,SENIOR POLICY ADVISOR,549.99,2012,"","","","ABOUCHAR, KEITH S"
,OFFICE OF THE MINORITY WHIP,2012Q4,PERSONNEL COMPENSATION,"","AVILES,DANIELLE R",10/01/12,12/31/12,EXECUTIVE ASST OFFICE MANAGER,"21,000.01",2012,"","","","AVILES,DANIELLE R"
,OFFICE OF THE MINORITY WHIP,2012Q4,PERSONNEL COMPENSATION,"","BOHANAN JR, JOHN L",10/01/12,12/31/12,CONSTITUENT LIAISON,"1,500.00",2012,"","","","BOHANAN JR, JOHN L"
,OFFICE OF THE MINORITY WHIP,2012Q4,PERSONNEL COMPENSATION,"","BURNES, AUSTIN W",10/01/12,12/31/12,DIR. OF LEGISLATIVE OPERATIONS,"30,000.00",2012,"","","","BURNES, AUSTIN W"
,OFFICE OF THE MINORITY WHIP,2012Q4,PERSONNEL COMPENSATION,"","COBIA, LINDSEY G",10/01/12,12/31/12,STAFF ASSISTANT,"6,249.99",2012,"","","","COBIA, LINDSEY G"
,OFFICE OF THE MINORITY WHIP,2012Q4,PERSONNEL COMPENSATION,"","COBIA, LINDSEY G",09/01/12,11/30/12,STAFF ASSISTANT (OVERTIME),"1,712.72",2012,"","","","COBIA, LINDSEY G"
,OFFICE OF THE MINORITY WHIP,2012Q4,PERSONNEL COMPENSATION,"","COLLINS, MICHAEL E",10/01/12,12/31/12,CHIEF DEPUTY WHIP,"10,625.01",2012,"","","","COLLINS, MICHAEL E"
,OFFICE OF THE MINORITY WHIP,2012Q4,PERSONNEL COMPENSATION,"","COVEY-BRANDT, ALEXIS",10/01/12,12/31/12,CHIEF OF STAFF,300.00,2012,"","","","COVEY-BRANDT, ALEXIS"
,OFFICE OF THE MINORITY WHIP,2012Q4,PERSONNEL COMPENSATION,"","DEBOSIER, CHRISTOPHER M",10/01/12,12/31/12,DIR OF MEM SERVICES & OUTREACH,"21,875.01",2012,"","","","DEBOSIER, CHRISTOPHER M"
,OFFICE OF THE MINORITY WHIP,2012Q4,PERSONNEL COMPENSATION,"","DWYER, STEPHEN",10/01/12,10/01/12,DIGITAL DIR & POLICY ADV,250.00,2012,"","","","DWYER, STEPHEN"
,OFFICE OF THE MINORITY WHIP,2012Q4,PERSONNEL COMPENSATION,"","FRY,COURTNEY",10/01/12,11/30/12,MEMBER SRVS AND OUTREACH COORD,"11,666.66",2012,"","","","FRY,COURTNEY"
,OFFICE OF THE MINORITY WHIP,2012Q4,PERSONNEL COMPENSATION,"","FRY,COURTNEY",12/01/12,12/31/12,DEP OUTREACH DIR & MEM SER ADV,"5,833.33",2012,"","","","FRY,COURTNEY"
,OFFICE OF THE MINORITY WHIP,2012Q4,PERSONNEL COMPENSATION,"","GENSEMER,ELLIOT J",10/01/12,12/31/12,STAFF ASSISTANT,"6,999.99",2012,"","","","GENSEMER,ELLIOT J"
,OFFICE OF THE MINORITY WHIP,2012Q4,PERSONNEL COMPENSATION,"","GENSEMER,ELLIOT J",09/01/12,11/30/12,STAFF ASSISTANT (OVERTIME),"3,089.40",2012,"","","","GENSEMER,ELLIOT J"
,OFFICE OF THE MINORITY WHIP,2012Q4,PERSONNEL COMPENSATION,"","GHOSH,APRATIM",10/01/12,12/31/12,SPECIAL ASSISTANT,"9,999.99",2012,"","","","GHOSH,APRATIM"
,OFFICE OF THE MINORITY WHIP,2012Q4,PERSONNEL COMPENSATION,"","GOFF,SHUWANZA R",10/01/12,12/31/12,DEPUTY DIR LEG OPERATIONS,"17,499.99",2012,"","","","GOFF,SHUWANZA R"
,OFFICE OF THE MINORITY WHIP,2012Q4,PERSONNEL COMPENSATION,"","GRANT,KATHRYN L",10/01/12,12/31/12,COMMUNICATIONS DIRECTOR,"27,500.01",2012,"","","","GRANT,KATHRYN L"
,OFFICE OF THE MINORITY WHIP,2012Q4,PERSONNEL COMPENSATION,"","HUGHES,JOHN C",10/01/12,12/31/12,SENIOR POLICY ADVISOR,"3,616.68",2012,"","","","HUGHES,JOHN C"
,OFFICE OF THE MINORITY WHIP,2012Q4,PERSONNEL COMPENSATION,"","LEUSCHEN, JAMES P",10/01/12,12/31/12,SENIOR POLICY ADVISOR,"28,749.99",2012,"","","","LEUSCHEN, JAMES P"
,OFFICE OF THE MINORITY WHIP,2012Q4,PERSONNEL COMPENSATION,"","MAHR,THOMAS",10/01/12,12/31/12,POLICY DIRECTOR,"10,299.99",2012,"","","","MAHR,THOMAS"
,OFFICE OF THE MINORITY WHIP,2012Q4,PERSONNEL COMPENSATION,"","MARTINEZ, JAVIER D",10/01/12,12/31/12,DEP DIR OF MBR SERV & OUTR ADV,"18,750.00",2012,"","","","MARTINEZ, JAVIER D"
,OFFICE OF THE MINORITY WHIP,2012Q4,PERSONNEL COMPENSATION,"","MEDLEY, ANNA E",10/01/12,12/31/12,DIR OF SCHEDLNG & SPEC EVENTS,"17,499.99",2012,"","","","MEDLEY, ANNA E"
,OFFICE OF THE MINORITY WHIP,2012Q4,PERSONNEL COMPENSATION,"","MOORE, MIKAEL",10/01/12,12/31/12,CHIEF DEPUTY WHIP,"9,999.99",2012,"","","","MOORE, MIKAEL"
,OFFICE OF THE MINORITY WHIP,2012Q4,PERSONNEL COMPENSATION,"","MURRAY, ELIZABETH M",10/01/12,12/31/12,SENIOR POLICY ADVISOR,"33,249.99",2012,"","","","MURRAY, ELIZABETH M"
,OFFICE OF THE MINORITY WHIP,2012Q4,PERSONNEL COMPENSATION,"","OTT,AMANDA M",10/01/12,12/31/12,MIN STAFF CONS/SPECIAL PROJ (P,"9,999.99",2012,"","","","OTT,AMANDA M"
,OFFICE OF THE MINORITY WHIP,2012Q4,PERSONNEL COMPENSATION,"","REPKO,MARY F",10/01/12,12/31/12,SENIOR POLICY ADVISOR,300.00,2012,"","","","REPKO,MARY F"
,OFFICE OF THE MINORITY WHIP,2012Q4,PERSONNEL COMPENSATION,"","ROMICK, BRIAN",10/01/12,12/31/12,WHIP DIR AND SENIOR ADVISOR,"2,250.92",2012,"","","","ROMICK, BRIAN"
,OFFICE OF THE MINORITY WHIP,2012Q4,PERSONNEL COMPENSATION,"","SAEZ,MARIEL S",10/01/12,12/31/12,DEPUTY PRESS SECRETARY,"9,750.00",2012,"","","","SAEZ,MARIEL S"
,OFFICE OF THE MINORITY WHIP,2012Q4,PERSONNEL COMPENSATION,"","SCHULTZ, AMY R",10/01/12,12/01/12,SENIOR POLICY ADVISOR,"10,810.56",2012,"","","","SCHULTZ, AMY R"
,OFFICE OF THE MINORITY WHIP,2012Q4,PERSONNEL COMPENSATION,"","SHOTT,DANIEL",10/01/12,12/31/12,FLOOR ASSISTANT,"12,500.01",2012,"","","","SHOTT,DANIEL"
,OFFICE OF THE MINORITY WHIP,2012Q4,PERSONNEL COMPENSATION,"","SIXKILLER, MARIAH S",10/01/12,12/31/12,SENIOR POLICY ADVISOR,"17,333.33",2012,"","","","SIXKILLER, MARIAH S"
,OFFICE OF THE MINORITY WHIP,2012Q4,PERSONNEL COMPENSATION,"","WEISSMANN, ADAM",10/01/12,12/31/12,SPEECHWRITER,"13,749.99",2012,"","","","WEISSMANN, ADAM"
,OFFICE OF THE MINORITY WHIP,2012Q4,TRAVEL,11-20,"GENSEMER, ELLIOT J",10/05/12,10/05/12,TAXI/PARKING/TOLLS,20.00,2012,AP,Accounts payable,00569674,"GENSEMER, ELLIOT J"
,OFFICE OF THE MINORITY WHIP,2012Q4,TRAVEL,11-20,"GENSEMER, ELLIOT J",10/05/12,10/05/12,TAXI/PARKING/TOLLS,18.00,2012,AP,Accounts payable,00569675,"GENSEMER, ELLIOT J"
,OFFICE OF THE MINORITY WHIP,2012Q4,TRAVEL,11-20,"AVILES,DANIELLE R",10/22/12,10/22/12,TAXI/PARKING/TOLLS,25.00,2012,AP,Accounts payable,00569677,"AVILES,DANIELLE R"
,OFFICE OF THE MINORITY WHIP,2012Q4,TRAVEL,11-20,"AVILES,DANIELLE R",11/05/12,11/05/12,TAXI/PARKING/TOLLS,32.00,2012,AP,Accounts payable,00569678,"AVILES,DANIELLE R"
,OFFICE OF THE MINORITY WHIP,2012Q4,TRAVEL,11-20,"GENSEMER, ELLIOT J",11/06/12,11/06/12,TAXI/PARKING/TOLLS,37.00,2012,AP,Accounts payable,00569680,"GENSEMER, ELLIOT J"
,OFFICE OF THE MINORITY WHIP,2012Q4,TRAVEL,11-20,"AVILES,DANIELLE R",11/07/12,11/07/12,TAXI/PARKING/TOLLS,44.00,2012,AP,Accounts payable,00569681,"AVILES,DANIELLE R"
,OFFICE OF THE MINORITY WHIP,2012Q4,TRAVEL,11-20,"AVILES,DANIELLE R",11/07/12,11/07/12,TAXI/PARKING/TOLLS,22.00,2012,AP,Accounts payable,00569683,"AVILES,DANIELLE R"
,OFFICE OF THE MINORITY WHIP,2012Q4,TRAVEL,11-20,"AVILES,DANIELLE R",11/13/12,11/13/12,TAXI/PARKING/TOLLS,26.00,2012,AP,Accounts payable,00569685,"AVILES,DANIELLE R"
,OFFICE OF THE MINORITY WHIP,2012Q4,TRAVEL,11-20,"GENSEMER, ELLIOT J",11/13/12,11/13/12,TAXI/PARKING/TOLLS,28.00,2012,AP,Accounts payable,00569687,"GENSEMER, ELLIOT J"
,OFFICE OF THE MINORITY WHIP,2012Q4,TRAVEL,11-20,"AVILES,DANIELLE R",11/15/12,11/15/12,TAXI/PARKING/TOLLS,21.00,2012,AP,Accounts payable,00569689,"AVILES,DANIELLE R"
,OFFICE OF THE MINORITY WHIP,2012Q4,TRAVEL,12-11,"GOFF,SHUWANZA R",11/13/12,11/13/12,TAXI/PARKING/TOLLS,15.00,2012,AP,Accounts payable,00580457,"GOFF,SHUWANZA R"
,OFFICE OF THE MINORITY WHIP,2012Q4,TRAVEL,12-11,"COBIA, LINDSEY G",11/19/12,11/19/12,TAXI/PARKING/TOLLS,19.50,2012,AP,Accounts payable,00580463,"COBIA, LINDSEY G"
,OFFICE OF THE MINORITY WHIP,2012Q4,TRAVEL,12-27,"AVILES,DANIELLE R",12/13/12,12/13/12,TAXI/PARKING/TOLLS,26.00,2012,AP,Accounts payable,00590152,"AVILES,DANIELLE R"
,OFFICE OF THE MINORITY WHIP,2012Q4,"RENT, COMMUNICATION, UTILITIES",10-24,CITI PCARD-SXM SIRIUSXM.COM/ACCT,08/29/12,09/28/12,UTILITIES,192.51,2012,AP,Accounts payable,00553340,CITI PCARD-SXM SIRIUSXM.COM/ACCT
,OFFICE OF THE MINORITY WHIP,2012Q4,PRINTING AND REPRODUCTION,10-25,"",10/01/12,10/31/12,PHOTOGRAPHIC (TRANSFER),1.60,2012,GL,General ledger,PIX0023747,""
,OFFICE OF THE MINORITY WHIP,2012Q4,PRINTING AND REPRODUCTION,12-21,"",12/01/12,12/31/12,PHOTOGRAPHIC (TRANSFER),24.70,2012,GL,General ledger,PIX0025333,""
,OFFICE OF THE MINORITY WHIP,2012Q4,PRINTING AND REPRODUCTION,12-27,DAVID L. ANDRUKITUS INC,10/10/12,10/10/12,PRINTING & REPRODUCTION,207.50,2012,AP,Accounts payable,00590150,DAVID L. ANDRUKITUS INC
,OFFICE OF THE MINORITY WHIP,2012Q4,OTHER SERVICES,11-20,CITI PCARD-VSN DOTGOVREGISTRATION,10/01/12,10/28/12,NON-TECHNOLOGY SERVICE CONTR,625.00,2012,AP,Accounts payable,00570984,CITI PCARD-VSN DOTGOVREGISTRATION
,OFFICE OF THE MINORITY WHIP,2012Q4,OTHER SERVICES,11-20,CITI PCARD-WWW.1AND1.COM,09/29/12,09/30/12,NON-TECHNOLOGY SERVICE CONTR,63.97,2012,AP,Accounts payable,00570984,CITI PCARD-WWW.1AND1.COM
,OFFICE OF THE MINORITY WHIP,2012Q4,OTHER SERVICES,12-28,CITIBANK P CARD,09/29/12,09/30/12,NON-TECHNOLOGY SERVICE CONTR,-63.97,2012,AP,Accounts payable,00594354,CITIBANK P CARD
,OFFICE OF THE MINORITY WHIP,2012Q4,OTHER SERVICES,12-28,CITIBANK P CARD,10/01/12,10/28/12,NON-TECHNOLOGY SERVICE CONTR,-625.00,2012,AP,Accounts payable,00594360,CITIBANK P CARD
,OFFICE OF THE MINORITY WHIP,2012Q4,SUPPLIES AND MATERIALS,10-24,CITI PCARD-AMAZON MKTPLACE PMTS,08/29/12,09/28/12,PUBLICATIONS/REFERENCE MAT'L,50.00,2012,AP,Accounts payable,00553340,CITI PCARD-AMAZON MKTPLACE PMTS
,OFFICE OF THE MINORITY WHIP,2012Q4,SUPPLIES AND MATERIALS,10-24,CITI PCARD-BARNES & NOBLE,08/29/12,09/28/12,PUBLICATIONS/REFERENCE MAT'L,27.61,2012,AP,Accounts payable,00553340,CITI PCARD-BARNES & NOBLE
,OFFICE OF THE MINORITY WHIP,2012Q4,SUPPLIES AND MATERIALS,10-24,CITI PCARD-CAPITAL C STOR,08/29/12,09/28/12,FOOD & BEVERAGE,6.28,2012,AP,Accounts payable,00553340,CITI PCARD-CAPITAL C STOR
,OFFICE OF THE MINORITY WHIP,2012Q4,SUPPLIES AND MATERIALS,10-24,CITI PCARD-DANGEROUSLY DELICIOUS,08/29/12,09/28/12,FOOD & BEVERAGE,230.00,2012,AP,Accounts payable,00553340,CITI PCARD-DANGEROUSLY DELICIOUS
,OFFICE OF THE MINORITY WHIP,2012Q4,SUPPLIES AND MATERIALS,10-24,CITI PCARD-DUNKIN,08/29/12,09/28/12,FOOD & BEVERAGE,26.05,2012,AP,Accounts payable,00553340,CITI PCARD-DUNKIN
,OFFICE OF THE MINORITY WHIP,2012Q4,SUPPLIES AND MATERIALS,10-24,CITI PCARD-HARRIS TEETER,08/29/12,09/28/12,FOOD & BEVERAGE,308.11,2012,AP,Accounts payable,00553340,CITI PCARD-HARRIS TEETER
,OFFICE OF THE MINORITY WHIP,2012Q4,SUPPLIES AND MATERIALS,10-24,CITI PCARD-NEW YORK TIMES DIGITAL,08/29/12,09/28/12,PUBLICATIONS/REFERENCE MAT'L,37.10,2012,AP,Accounts payable,00553340,CITI PCARD-NEW YORK TIMES DIGITAL
,OFFICE OF THE MINORITY WHIP,2012Q4,SUPPLIES AND MATERIALS,10-24,CITI PCARD-PIZZA BOLI'S,08/29/12,09/28/12,FOOD & BEVERAGE,58.00,2012,AP,Accounts payable,00553340,CITI PCARD-PIZZA BOLI'S
,OFFICE OF THE MINORITY WHIP,2012Q4,SUPPLIES AND MATERIALS,10-24,CITI PCARD-RA @ CAPITAL M,08/29/12,09/28/12,FOOD & BEVERAGE,6.00,2012,AP,Accounts payable,00553340,CITI PCARD-RA @ CAPITAL M
,OFFICE OF THE MINORITY WHIP,2012Q4,SUPPLIES AND MATERIALS,10-24,CITI PCARD-TARGET,08/29/12,09/28/12,FOOD & BEVERAGE,323.81,2012,AP,Accounts payable,00553340,CITI PCARD-TARGET
,OFFICE OF THE MINORITY WHIP,2012Q4,SUPPLIES AND MATERIALS,10-24,CITI PCARD-THEECONOMIST NEWSPAPER,08/29/12,09/28/12,PUBLICATIONS/REFERENCE MAT'L,136.74,2012,AP,Accounts payable,00553340,CITI PCARD-THEECONOMIST NEWSPAPER
,OFFICE OF THE MINORITY WHIP,2012Q4,SUPPLIES AND MATERIALS,11-20,CITI PCARD-AMAZON MKTPLACE PMTS,10/01/12,10/28/12,PUBLICATIONS/REFERENCE MAT'L,119.64,2012,AP,Accounts payable,00570984,CITI PCARD-AMAZON MKTPLACE PMTS
,OFFICE OF THE MINORITY WHIP,2012Q4,SUPPLIES AND MATERIALS,11-20,CITI PCARD-AMAZON.COM,10/01/12,10/28/12,PUBLICATIONS/REFERENCE MAT'L,388.97,2012,AP,Accounts payable,00570984,CITI PCARD-AMAZON.COM
,OFFICE OF THE MINORITY WHIP,2012Q4,SUPPLIES AND MATERIALS,11-20,CITI PCARD-FINANCIAL TIMES LT,09/29/12,09/30/12,PUBLICATIONS/REFERENCE MAT'L,199.00,2012,AP,Accounts payable,00570984,CITI PCARD-FINANCIAL TIMES LT
,OFFICE OF THE MINORITY WHIP,2012Q4,SUPPLIES AND MATERIALS,11-20,CITI PCARD-HARRIS TEETER,09/29/12,09/30/12,FOOD & BEVERAGE,176.87,2012,AP,Accounts payable,00570984,CITI PCARD-HARRIS TEETER
,OFFICE OF THE MINORITY WHIP,2012Q4,SUPPLIES AND MATERIALS,11-20,CITI PCARD-NEW YORK TIMES DIGITAL,09/29/12,09/30/12,PUBLICATIONS/REFERENCE MAT'L,37.10,2012,AP,Accounts payable,00570984,CITI PCARD-NEW YORK TIMES DIGITAL
,OFFICE OF THE MINORITY WHIP,2012Q4,SUPPLIES AND MATERIALS,11-20,CITI PCARD-NEW YORK TIMES DIGITAL,10/01/12,10/28/12,PUBLICATIONS/REFERENCE MAT'L,37.10,2012,AP,Accounts payable,00570984,CITI PCARD-NEW YORK TIMES DIGITAL
,OFFICE OF THE MINORITY WHIP,2012Q4,SUPPLIES AND MATERIALS,11-20,CITI PCARD-RA @ CAPITAL M,10/01/12,10/28/12,FOOD & BEVERAGE,11.00,2012,AP,Accounts payable,00570984,CITI PCARD-RA @ CAPITAL M
,OFFICE OF THE MINORITY WHIP,2012Q4,SUPPLIES AND MATERIALS,12-11,PANERA BREAD COMPANY,11/16/12,11/16/12,FOOD & BEVERAGE,152.91,2012,AP,Accounts payable,00580467,PANERA BREAD COMPANY
,OFFICE OF THE MINORITY WHIP,2012Q4,SUPPLIES AND MATERIALS,12-11,CAPITOLHOST,11/16/12,11/16/12,FOOD & BEVERAGE,84.60,2012,AP,Accounts payable,00580471,CAPITOLHOST
,OFFICE OF THE MINORITY WHIP,2012Q4,SUPPLIES AND MATERIALS,12-11,PANERA BREAD COMPANY,11/28/12,11/28/12,FOOD & BEVERAGE,159.91,2012,AP,Accounts payable,00580473,PANERA BREAD COMPANY
,OFFICE OF THE MINORITY WHIP,2012Q4,SUPPLIES AND MATERIALS,12-11,PANERA BREAD COMPANY,11/30/12,11/30/12,FOOD & BEVERAGE,85.75,2012,AP,Accounts payable,00580485,PANERA BREAD COMPANY
,OFFICE OF THE MINORITY WHIP,2012Q4,SUPPLIES AND MATERIALS,12-12,CAPITOLHOST,11/15/12,11/15/12,FOOD & BEVERAGE,28.20,2012,AP,Accounts payable,00581516,CAPITOLHOST
,OFFICE OF THE MINORITY WHIP,2012Q4,SUPPLIES AND MATERIALS,12-12,CAPITOLHOST,11/28/12,11/28/12,FOOD & BEVERAGE,90.00,2012,AP,Accounts payable,00581520,CAPITOLHOST
,OFFICE OF THE MINORITY WHIP,2012Q4,SUPPLIES AND MATERIALS,12-12,"COBIA, LINDSEY G",11/28/12,11/28/12,OFFICE SUPPLIES (OUTSIDE),2.86,2012,AP,Accounts payable,00581524,"COBIA, LINDSEY G"
,OFFICE OF THE MINORITY WHIP,2012Q4,SUPPLIES AND MATERIALS,12-12,CAPITOLHOST,11/30/12,11/30/12,FOOD & BEVERAGE,42.30,2012,AP,Accounts payable,00581546,CAPITOLHOST
,OFFICE OF THE MINORITY WHIP,2012Q4,SUPPLIES AND MATERIALS,12-26,CITI PCARD-BARNES & NOBLE,10/29/12,11/28/12,PUBLICATIONS/REFERENCE MAT'L,14.88,2012,AP,Accounts payable,00590646,CITI PCARD-BARNES & NOBLE
,OFFICE OF THE MINORITY WHIP,2012Q4,SUPPLIES AND MATERIALS,12-26,CITI PCARD-NEW YORK TIMES DIGITAL,10/29/12,11/28/12,PUBLICATIONS/REFERENCE MAT'L,37.10,2012,AP,Accounts payable,00590646,CITI PCARD-NEW YORK TIMES DIGITAL
,OFFICE OF THE MINORITY WHIP,2012Q4,SUPPLIES AND MATERIALS,12-26,CITI PCARD-RA @ CAPITAL M,10/29/12,11/28/12,FOOD & BEVERAGE,5.25,2012,AP,Accounts payable,00590646,CITI PCARD-RA @ CAPITAL M
,OFFICE OF THE MINORITY WHIP,2012Q4,SUPPLIES AND MATERIALS,12-28,CITIBANK P CARD,10/01/12,10/28/12,PUBLICATIONS/REFERENCE MAT'L,-508.61,2012,AP,Accounts payable,00594363,CITIBANK P CARD
,DEMOCRATIC CAUCUS,2012Q4,PERSONNEL COMPENSATION,"","ANDRES,DON CHRIS M",10/01/12,12/31/12,STAFF ASSISTANT,"9,749.99",2012,"","","","ANDRES,DON CHRIS M"
,DEMOCRATIC CAUCUS,2012Q4,PERSONNEL COMPENSATION,"","AVERY,SAMUEL R",10/01/12,12/31/12,PRESS ASSISTANT,"9,249.99",2012,"","","","AVERY,SAMUEL R"
,DEMOCRATIC CAUCUS,2012Q4,PERSONNEL COMPENSATION,"","BANJAC,SRDAN",09/01/12,09/01/12,ASSISTANT TO THE CHAIRMAN,"2,083.34",2012,"","","","BANJAC,SRDAN"
,DEMOCRATIC CAUCUS,2012Q4,PERSONNEL COMPENSATION,"","BRACHMAN, ELLIS A",10/01/12,12/31/12,COMMUNICATIONS DIRECTOR,"34,350.00",2012,"","","","BRACHMAN, ELLIS A"
,DEMOCRATIC CAUCUS,2012Q4,PERSONNEL COMPENSATION,"","DAGADAKIS,STAMATIOS",10/01/12,12/31/12,DEPUTY EXEC DIRECTOR,"36,000.00",2012,"","","","DAGADAKIS,STAMATIOS"
,DEMOCRATIC CAUCUS,2012Q4,PERSONNEL COMPENSATION,"","DE PUY,GERALDINE M",10/01/12,11/30/12,CORRESPONDENCE ASSISTANT,"7,583.34",2012,"","","","DE PUY,GERALDINE M"
,DEMOCRATIC CAUCUS,2012Q4,PERSONNEL COMPENSATION,"","DELANEY, ERIC L",10/01/12,12/31/12,SR MBR OUTREACH ASST,"12,500.01",2012,"","","","DELANEY, ERIC L"
,DEMOCRATIC CAUCUS,2012Q4,PERSONNEL COMPENSATION,"","ESPARZA DIGGS,IRMA Y",10/01/12,10/31/12,CASEWORKER,"13,474.67",2012,"","","","ESPARZA DIGGS,IRMA Y"
,DEMOCRATIC CAUCUS,2012Q4,PERSONNEL COMPENSATION,"","ESPARZA DIGGS,IRMA Y",10/01/12,12/31/12,EXECUTIVE DIRECTOR,"27,234.33",2012,"","","","ESPARZA DIGGS,IRMA Y"
,DEMOCRATIC CAUCUS,2012Q4,PERSONNEL COMPENSATION,"","GLEESON,JAMES M",10/01/12,12/31/12,PRESS SEC FOR THE VICE CHAIR,"12,437.49",2012,"","","","GLEESON,JAMES M"
,DEMOCRATIC CAUCUS,2012Q4,PERSONNEL COMPENSATION,"","GRADY,KATHERINE K",10/01/12,12/31/12,POLICY & OUTREACH COORDINATOR,"13,499.99",2012,"","","","GRADY,KATHERINE K"
,DEMOCRATIC CAUCUS,2012Q4,PERSONNEL COMPENSATION,"","HAWES-SAUNDERS,DONNICA L",10/01/12,12/31/12,STAFF ASSISTANT,"9,749.99",2012,"","","","HAWES-SAUNDERS,DONNICA L"
,DEMOCRATIC CAUCUS,2012Q4,PERSONNEL COMPENSATION,"","HERRERA,DANIEL",10/01/12,12/31/12,PRESS SECRETARY,"11,250.00",2012,"","","","HERRERA,DANIEL"
,DEMOCRATIC CAUCUS,2012Q4,PERSONNEL COMPENSATION,"","JAWORSKI, KIMBERLY H",10/01/12,12/31/12,EVENTS AND PROJECTS COORDINATO,"19,666.67",2012,"","","","JAWORSKI, KIMBERLY H"
,DEMOCRATIC CAUCUS,2012Q4,PERSONNEL COMPENSATION,"","KISSINGER,JUSTIN A",10/01/12,12/03/12,COUNSEL,"18,625.01",2012,"","","","KISSINGER,JUSTIN A"
,DEMOCRATIC CAUCUS,2012Q4,PERSONNEL COMPENSATION,"","LAWSON, ANITA S",10/01/12,12/31/12,FINANCIAL ADMINISTRATOR,"6,158.33",2012,"","","","LAWSON, ANITA S"
,DEMOCRATIC CAUCUS,2012Q4,PERSONNEL COMPENSATION,"","LYNCH, KATHARINE M",09/17/12,12/31/12,POLICY ASSISTANT,"5,433.33",2012,"","","","LYNCH, KATHARINE M"
,DEMOCRATIC CAUCUS,2012Q4,PERSONNEL COMPENSATION,"","MCCLUSKIE,SEAN E",10/01/12,12/31/12,STAFF DIR FOR THE VICE CHAIR,"17,250.00",2012,"","","","MCCLUSKIE,SEAN E"
,DEMOCRATIC CAUCUS,2012Q4,PERSONNEL COMPENSATION,"","MCMAHON,KYLE A",10/01/12,12/31/12,PRESS ASSISTANT,"10,750.01",2012,"","","","MCMAHON,KYLE A"
,DEMOCRATIC CAUCUS,2012Q4,PERSONNEL COMPENSATION,"","PEREZ-SANCHEZ,NOEL",10/01/12,12/31/12,MEMBER OUTREACH ASSISTANT,"9,999.99",2012,"","","","PEREZ-SANCHEZ,NOEL"
,DEMOCRATIC CAUCUS,2012Q4,PERSONNEL COMPENSATION,"","PERONACE,ANTONIO",10/01/12,12/31/12,CREATIVE DIRECTOR,"26,000.01",2012,"","","","PERONACE,ANTONIO"
,DEMOCRATIC CAUCUS,2012Q4,PERSONNEL COMPENSATION,"","PLATT,ANDREW J",10/01/12,12/31/12,RESEARCH & TECHNOLOGY ASST,"10,750.01",2012,"","","","PLATT,ANDREW J"
,DEMOCRATIC CAUCUS,2012Q4,PERSONNEL COMPENSATION,"","SKILES, KATHLEE",10/01/12,12/31/12,PRESS SEC& DIR OF ONLINE STRAT,"13,749.99",2012,"","","","SKILES, KATHLEE"
,DEMOCRATIC CAUCUS,2012Q4,PERSONNEL COMPENSATION,"","SLATER,LEE",10/01/12,11/30/12,CHIEF OF STAFF,"18,000.00",2012,"","","","SLATER,LEE"
,DEMOCRATIC CAUCUS,2012Q4,OTHER SERVICES,10-24,CITI PCARD-CAPITOL VALET,08/29/12,09/28/12,LAUNDRY SERVICES,120.00,2012,AP,Accounts payable,00553340,CITI PCARD-CAPITOL VALET
,DEMOCRATIC CAUCUS,2012Q4,OTHER SERVICES,11-20,CITI PCARD-CAPITOL VALET,10/01/12,10/28/12,LAUNDRY SERVICES,126.00,2012,AP,Accounts payable,00570984,CITI PCARD-CAPITOL VALET
,DEMOCRATIC CAUCUS,2012Q4,SUPPLIES AND MATERIALS,10-24,CITI PCARD-CAPITAL C STOR,08/29/12,09/28/12,FOOD & BEVERAGE,29.66,2012,AP,Accounts payable,00553340,CITI PCARD-CAPITAL C STOR
,DEMOCRATIC CAUCUS,2012Q4,SUPPLIES AND MATERIALS,10-24,CITI PCARD-CARMINE S,08/29/12,09/28/12,FOOD & BEVERAGE,881.68,2012,AP,Accounts payable,00553340,CITI PCARD-CARMINE S
,DEMOCRATIC CAUCUS,2012Q4,SUPPLIES AND MATERIALS,10-24,CITI PCARD-COSI,08/29/12,09/28/12,FOOD & BEVERAGE,194.48,2012,AP,Accounts payable,00553340,CITI PCARD-COSI
,DEMOCRATIC CAUCUS,2012Q4,SUPPLIES AND MATERIALS,10-24,CITI PCARD-DREAMZ CATERING,08/29/12,09/28/12,FOOD & BEVERAGE,482.00,2012,AP,Accounts payable,00553340,CITI PCARD-DREAMZ CATERING
,DEMOCRATIC CAUCUS,2012Q4,SUPPLIES AND MATERIALS,10-24,CITI PCARD-HARRIS TEETER,08/29/12,09/28/12,FOOD & BEVERAGE,707.50,2012,AP,Accounts payable,00553340,CITI PCARD-HARRIS TEETER
,DEMOCRATIC CAUCUS,2012Q4,SUPPLIES AND MATERIALS,10-24,CITI PCARD-NYT TIMES E-BILLING,08/29/12,09/28/12,PUBLICATIONS/REFERENCE MAT'L,810.86,2012,AP,Accounts payable,00553340,CITI PCARD-NYT TIMES E-BILLING
,DEMOCRATIC CAUCUS,2012Q4,SUPPLIES AND MATERIALS,10-24,CITI PCARD-SAFEWAY STORE,08/29/12,09/28/12,FOOD & BEVERAGE,50.90,2012,AP,Accounts payable,00553340,CITI PCARD-SAFEWAY STORE
,DEMOCRATIC CAUCUS,2012Q4,SUPPLIES AND MATERIALS,11-16,DEER PARK,10/31/12,10/31/12,WATER,58.00,2012,AP,Accounts payable,00566964,DEER PARK
,DEMOCRATIC CAUCUS,2012Q4,SUPPLIES AND MATERIALS,12-04,LEXIS-NEXIS,10/01/12,10/31/12,PUBLICATIONS/REFERENCE MAT'L,416.67,2012,AP,Accounts payable,00576316,LEXIS-NEXIS
,DEMOCRATIC CAUCUS,2012Q4,SUPPLIES AND MATERIALS,12-26,CITI PCARD-COSI,10/29/12,11/28/12,FOOD & BEVERAGE,576.92,2012,AP,Accounts payable,00590646,CITI PCARD-COSI
,DEMOCRATIC CAUCUS,2012Q4,SUPPLIES AND MATERIALS,12-26,CITI PCARD-HARRIS TEETER,10/29/12,11/28/12,FOOD & BEVERAGE,"1,078.89",2012,AP,Accounts payable,00590646,CITI PCARD-HARRIS TEETER
,DEMOCRATIC CAUCUS,2012Q4,SUPPLIES AND MATERIALS,12-26,CITI PCARD-SAFEWAY STORE,10/29/12,11/28/12,FOOD & BEVERAGE,12.71,2012,AP,Accounts payable,00590646,CITI PCARD-SAFEWAY STORE
,DEMOCRATIC CAUCUS,2012Q4,SUPPLIES AND MATERIALS,12-28,DEER PARK,11/30/12,11/30/12,WATER,69.96,2012,AP,Accounts payable,00594317,DEER PARK
,REPUBLICAN CONFERENCE,2012Q4,PERSONNEL COMPENSATION,"","BAKER,GREGORY S",10/01/12,12/31/12,STAFF ASSISTANT,"7,500.00",2012,"","","","BAKER,GREGORY S"
,REPUBLICAN CONFERENCE,2012Q4,PERSONNEL COMPENSATION,"","BEDARD,EDWARD A",10/01/12,12/31/12,STAFF ASSISTANT,"7,500.00",2012,"","","","BEDARD,EDWARD A"
,REPUBLICAN CONFERENCE,2012Q4,PERSONNEL COMPENSATION,"","BETZ, KIMBERLY S",12/14/12,12/31/12,POLICY DIRECTOR,"7,083.33",2012,"","","","BETZ, KIMBERLY S"
,REPUBLICAN CONFERENCE,2012Q4,PERSONNEL COMPENSATION,"","BROWN, CHELSEA E",10/01/12,12/31/12,DIRECTOR OF OPERATIONS,"21,249.99",2012,"","","","BROWN, CHELSEA E"
,REPUBLICAN CONFERENCE,2012Q4,PERSONNEL COMPENSATION,"","BUCHANAN, MICHAEL D",10/01/12,10/31/12,CHIEF OF STAFF (STATUTORY),"14,375.00",2012,"","","","BUCHANAN, MICHAEL D"
,REPUBLICAN CONFERENCE,2012Q4,PERSONNEL COMPENSATION,"","COLLIGAN,DYLAN H",10/01/12,12/31/12,STAFF ASSISTANT,"8,250.00",2012,"","","","COLLIGAN,DYLAN H"
,REPUBLICAN CONFERENCE,2012Q4,PERSONNEL COMPENSATION,"","COLLINS,LISA J",10/01/12,12/31/12,POLICY ADVISOR,"14,000.01",2012,"","","","COLLINS,LISA J"
,REPUBLICAN CONFERENCE,2012Q4,PERSONNEL COMPENSATION,"","CONNELL, MARJORIE F",12/14/12,12/31/12,DIRECTOR OF OPERATIONS,"3,777.78",2012,"","","","CONNELL, MARJORIE F"
,REPUBLICAN CONFERENCE,2012Q4,PERSONNEL COMPENSATION,"","HILER,JONATHAN D",10/01/12,12/31/12,POLICY ADVISOR,"7,655.56",2012,"","","","HILER,JONATHAN D"
,REPUBLICAN CONFERENCE,2012Q4,PERSONNEL COMPENSATION,"","KLINGLER,HANS J",10/01/12,12/31/12,DEPUTY CHIEF OF STAFF,"22,875.00",2012,"","","","KLINGLER,HANS J"
,REPUBLICAN CONFERENCE,2012Q4,PERSONNEL COMPENSATION,"","KOENIG,ANDREW D",10/01/12,12/31/12,POLICY DIRECTOR,"20,000.01",2012,"","","","KOENIG,ANDREW D"
,REPUBLICAN CONFERENCE,2012Q4,PERSONNEL COMPENSATION,"","MAKIN, SARAH E",10/01/12,12/31/12,"SR POL ADV, DIR OF COALITIONS","16,749.99",2012,"","","","MAKIN, SARAH E"
,REPUBLICAN CONFERENCE,2012Q4,PERSONNEL COMPENSATION,"","MURPHY,SHAUGHNESSY P",12/14/12,12/31/12,SENIOR ADVISOR,"5,666.67",2012,"","","","MURPHY,SHAUGHNESSY P"
,REPUBLICAN CONFERENCE,2012Q4,PERSONNEL COMPENSATION,"","PATRU, KATHRYN M",10/01/12,12/31/12,DIR OF MEMBER SERVICES,"35,000.01",2012,"","","","PATRU, KATHRYN M"
,REPUBLICAN CONFERENCE,2012Q4,PERSONNEL COMPENSATION,"","PINEGAR,PHILLIP",10/01/12,12/31/12,STAFF ASSISTANT,"7,500.00",2012,"","","","PINEGAR,PHILLIP"
,REPUBLICAN CONFERENCE,2012Q4,PERSONNEL COMPENSATION,"","POPP, DAVID M",09/01/12,10/31/12,ACTING COMMUNICATIONS DIRECTOR,"6,175.69",2012,"","","","POPP, DAVID M"
,REPUBLICAN CONFERENCE,2012Q4,PERSONNEL COMPENSATION,"","POPP, DAVID M",11/01/12,12/31/12,COMMUNICATIONS DIRECTOR,"12,166.66",2012,"","","","POPP, DAVID M"
,REPUBLICAN CONFERENCE,2012Q4,PERSONNEL COMPENSATION,"","QUALTERE,THOMAS A",10/01/12,12/31/12,SPEECHWRITER,"10,500.00",2012,"","","","QUALTERE,THOMAS A"
,REPUBLICAN CONFERENCE,2012Q4,PERSONNEL COMPENSATION,"","RABBITT,CAROLINE",10/01/12,12/31/12,DEPUTY PRESS SECRETARY,"10,500.00",2012,"","","","RABBITT,CAROLINE"
,REPUBLICAN CONFERENCE,2012Q4,TRAVEL,11-19,"MAKIN, SARAH E",10/10/12,10/10/12,TAXI/PARKING/TOLLS,11.00,2012,AP,Accounts payable,00563505,"MAKIN, SARAH E"
,REPUBLICAN CONFERENCE,2012Q4,TRAVEL,11-19,"MAKIN, SARAH E",10/10/12,10/10/12,TAXI/PARKING/TOLLS,11.00,2012,AP,Accounts payable,00563508,"MAKIN, SARAH E"
,REPUBLICAN CONFERENCE,2012Q4,TRAVEL,11-19,"MAKIN, SARAH E",10/24/12,10/24/12,TAXI/PARKING/TOLLS,10.00,2012,AP,Accounts payable,00563510,"MAKIN, SARAH E"
,REPUBLICAN CONFERENCE,2012Q4,TRAVEL,11-19,"MAKIN, SARAH E",10/24/12,10/24/12,TAXI/PARKING/TOLLS,11.00,2012,AP,Accounts payable,00563513,"MAKIN, SARAH E"
,REPUBLICAN CONFERENCE,2012Q4,TRAVEL,12-11,"MAKIN, SARAH E",11/14/12,11/14/12,TAXI/PARKING/TOLLS,12.00,2012,AP,Accounts payable,00579860,"MAKIN, SARAH E"
,REPUBLICAN CONFERENCE,2012Q4,TRAVEL,12-11,"MAKIN, SARAH E",11/14/12,11/14/12,TAXI/PARKING/TOLLS,11.00,2012,AP,Accounts payable,00579861,"MAKIN, SARAH E"
,REPUBLICAN CONFERENCE,2012Q4,TRAVEL,12-11,"MAKIN, SARAH E",11/28/12,11/28/12,TAXI/PARKING/TOLLS,12.00,2012,AP,Accounts payable,00579864,"MAKIN, SARAH E"
,REPUBLICAN CONFERENCE,2012Q4,TRAVEL,12-11,"MAKIN, SARAH E",11/28/12,11/28/12,TAXI/PARKING/TOLLS,12.00,2012,AP,Accounts payable,00579866,"MAKIN, SARAH E"
,REPUBLICAN CONFERENCE,2012Q4,TRAVEL,12-11,"MAKIN, SARAH E",12/05/12,12/05/12,TAXI/PARKING/TOLLS,11.00,2012,AP,Accounts payable,00579869,"MAKIN, SARAH E"
,REPUBLICAN CONFERENCE,2012Q4,TRAVEL,12-11,"MAKIN, SARAH E",12/05/12,12/05/12,TAXI/PARKING/TOLLS,12.00,2012,AP,Accounts payable,00579872,"MAKIN, SARAH E"
,REPUBLICAN CONFERENCE,2012Q4,TRAVEL,12-20,"MAKIN, SARAH E",12/13/12,12/13/12,TAXI/PARKING/TOLLS,12.00,2012,AP,Accounts payable,00589350,"MAKIN, SARAH E"
,REPUBLICAN CONFERENCE,2012Q4,TRAVEL,12-20,"MAKIN, SARAH E",12/13/12,12/13/12,TAXI/PARKING/TOLLS,11.00,2012,AP,Accounts payable,00589356,"MAKIN, SARAH E"
,REPUBLICAN CONFERENCE,2012Q4,PRINTING AND REPRODUCTION,10-24,CITI PCARD-ISTOCK INTERNATIONAL,08/29/12,09/28/12,PRINTING & REPRODUCTION,94.99,2012,AP,Accounts payable,00553340,CITI PCARD-ISTOCK INTERNATIONAL
,REPUBLICAN CONFERENCE,2012Q4,PRINTING AND REPRODUCTION,10-24,CITI PCARD-YAHOO FLICKR PRO US,08/29/12,09/28/12,PRINTING & REPRODUCTION,44.95,2012,AP,Accounts payable,00553340,CITI PCARD-YAHOO FLICKR PRO US
,REPUBLICAN CONFERENCE,2012Q4,PRINTING AND REPRODUCTION,12-26,"CITI PCARD-ADOBE SYSTEMS, INC",10/29/12,11/28/12,PRINTING & REPRODUCTION,158.97,2012,AP,Accounts payable,00590646,"CITI PCARD-ADOBE SYSTEMS, INC"
,REPUBLICAN CONFERENCE,2012Q4,PRINTING AND REPRODUCTION,12-26,CITI PCARD-ISTOCK INTERNATIONAL,10/29/12,11/28/12,PRINTING & REPRODUCTION,131.54,2012,AP,Accounts payable,00590646,CITI PCARD-ISTOCK INTERNATIONAL
,REPUBLICAN CONFERENCE,2012Q4,SUPPLIES AND MATERIALS,10-24,CITI PCARD-ECSUITE.COM,08/29/12,09/28/12,PUBLICATIONS/REFERENCE MAT'L,5.95,2012,AP,Accounts payable,00553340,CITI PCARD-ECSUITE.COM
,REPUBLICAN CONFERENCE,2012Q4,SUPPLIES AND MATERIALS,11-15,"BROWN, CHELSEA E",11/08/12,11/08/12,FOOD & BEVERAGE,"1,505.31",2012,AP,Accounts payable,00563514,"BROWN, CHELSEA E"
,REPUBLICAN CONFERENCE,2012Q4,SUPPLIES AND MATERIALS,11-16,DEER PARK,10/31/12,10/31/12,WATER,173.82,2012,AP,Accounts payable,00566964,DEER PARK
,REPUBLICAN CONFERENCE,2012Q4,SUPPLIES AND MATERIALS,11-20,CITI PCARD-ECSUITE.COM,10/01/12,10/28/12,PUBLICATIONS/REFERENCE MAT'L,5.95,2012,AP,Accounts payable,00570984,CITI PCARD-ECSUITE.COM
,REPUBLICAN CONFERENCE,2012Q4,SUPPLIES AND MATERIALS,11-20,CITI PCARD-ROLANDS GROCERY,10/01/12,10/28/12,FOOD & BEVERAGE,16.03,2012,AP,Accounts payable,00570984,CITI PCARD-ROLANDS GROCERY
,REPUBLICAN CONFERENCE,2012Q4,SUPPLIES AND MATERIALS,11-26,"BROWN, CHELSEA E",11/14/12,11/14/12,FOOD & BEVERAGE,27.44,2012,AP,Accounts payable,00571924,"BROWN, CHELSEA E"
,REPUBLICAN CONFERENCE,2012Q4,SUPPLIES AND MATERIALS,11-26,"BROWN, CHELSEA E",11/10/12,11/10/12,OFFICE SUPPLIES (OUTSIDE),23.98,2012,AP,Accounts payable,00571925,"BROWN, CHELSEA E"
,REPUBLICAN CONFERENCE,2012Q4,SUPPLIES AND MATERIALS,11-27,"BROWN, CHELSEA E",10/26/12,10/26/12,OFFICE SUPPLIES (OUTSIDE),216.80,2012,AP,Accounts payable,00572617,"BROWN, CHELSEA E"
,REPUBLICAN CONFERENCE,2012Q4,SUPPLIES AND MATERIALS,12-04,"CRAWFORD, CHRISTOPHER K",11/28/12,11/28/12,FOOD & BEVERAGE,67.98,2012,AP,Accounts payable,00577287,"CRAWFORD, CHRISTOPHER K"
,REPUBLICAN CONFERENCE,2012Q4,SUPPLIES AND MATERIALS,12-04,"CRAWFORD, CHRISTOPHER K",11/29/12,11/29/12,FOOD & BEVERAGE,15.89,2012,AP,Accounts payable,00577289,"CRAWFORD, CHRISTOPHER K"
,REPUBLICAN CONFERENCE,2012Q4,SUPPLIES AND MATERIALS,12-04,"CRAWFORD, CHRISTOPHER K",11/29/12,11/29/12,FOOD & BEVERAGE,1.62,2012,AP,Accounts payable,00577291,"CRAWFORD, CHRISTOPHER K"
,REPUBLICAN CONFERENCE,2012Q4,SUPPLIES AND MATERIALS,12-04,"BROWN, CHELSEA E",11/29/12,11/29/12,FOOD & BEVERAGE,16.77,2012,AP,Accounts payable,00577300,"BROWN, CHELSEA E"
,REPUBLICAN CONFERENCE,2012Q4,SUPPLIES AND MATERIALS,12-13,"BROWN, CHELSEA E",12/07/12,12/07/12,FOOD & BEVERAGE,294.34,2012,AP,Accounts payable,00581901,"BROWN, CHELSEA E"
,REPUBLICAN CONFERENCE,2012Q4,SUPPLIES AND MATERIALS,12-13,"KLINGLER,HANS J",11/30/12,11/30/12,FOOD & BEVERAGE,288.21,2012,AP,Accounts payable,00581902,"KLINGLER,HANS J"
,REPUBLICAN CONFERENCE,2012Q4,SUPPLIES AND MATERIALS,12-19,"BROWN, CHELSEA E",12/10/12,12/10/12,FOOD & BEVERAGE,29.40,2012,AP,Accounts payable,00589345,"BROWN, CHELSEA E"
,REPUBLICAN CONFERENCE,2012Q4,SUPPLIES AND MATERIALS,12-20,"BROWN, CHELSEA E",12/14/12,12/14/12,FOOD & BEVERAGE,535.70,2012,AP,Accounts payable,00589340,"BROWN, CHELSEA E"
,REPUBLICAN CONFERENCE,2012Q4,SUPPLIES AND MATERIALS,12-20,"BROWN, CHELSEA E",12/14/12,12/14/12,FOOD & BEVERAGE,234.20,2012,AP,Accounts payable,00589361,"BROWN, CHELSEA E"
,REPUBLICAN CONFERENCE,2012Q4,SUPPLIES AND MATERIALS,12-26,CITI PCARD-CAPITOL HOST,10/29/12,11/28/12,FOOD & BEVERAGE,"4,099.10",2012,AP,Accounts payable,00590646,CITI PCARD-CAPITOL HOST
,REPUBLICAN CONFERENCE,2012Q4,SUPPLIES AND MATERIALS,12-26,CITI PCARD-CHICK-FIL-A,10/29/12,11/28/12,FOOD & BEVERAGE,286.33,2012,AP,Accounts payable,00590646,CITI PCARD-CHICK-FIL-A
,REPUBLICAN CONFERENCE,2012Q4,SUPPLIES AND MATERIALS,12-26,CITI PCARD-ECSUITE.COM,10/29/12,11/28/12,PUBLICATIONS/REFERENCE MAT'L,5.95,2012,AP,Accounts payable,00590646,CITI PCARD-ECSUITE.COM
,REPUBLICAN CONFERENCE,2012Q4,SUPPLIES AND MATERIALS,12-26,CITI PCARD-SAFEWAY STORE,10/29/12,11/28/12,FOOD & BEVERAGE,56.00,2012,AP,Accounts payable,00590646,CITI PCARD-SAFEWAY STORE
,REPUBLICAN CONFERENCE,2012Q4,SUPPLIES AND MATERIALS,12-26,CITI PCARD-TAYLOR GOURMET,10/29/12,11/28/12,FOOD & BEVERAGE,215.24,2012,AP,Accounts payable,00590646,CITI PCARD-TAYLOR GOURMET
,REPUBLICAN CONFERENCE,2012Q4,SUPPLIES AND MATERIALS,12-28,DEER PARK,11/30/12,11/30/12,WATER,122.85,2012,AP,Accounts payable,00594317,DEER PARK
,OFFICE OF THE MAJORITY LEADER,2012Q4,SUPPLIES AND MATERIALS,10-25,WASHINGTON POST #1202,11/10/11,11/07/12,PUBLICATIONS/REFERENCE MAT'L,390.43,FISCAL YEAR 2012,AP,Accounts payable,00556031,WASHINGTON POST #1202
,OFFICE OF THE MAJORITY LEADER,2012Q4,SUPPLIES AND MATERIALS,11-29,"",12/16/11,12/16/11,OFFICE SUPPLIES (OUTSIDE),60.50,FISCAL YEAR 2012,GL,General ledger,GFT0024500,""
,OFFICE OF THE MINORITY LEADER,2012Q4,SUPPLIES AND MATERIALS,10-24,CAPITOLHOST,10/04/11,10/04/11,FOOD & BEVERAGE,135.00,FISCAL YEAR 2012,AP,Accounts payable,00555407,CAPITOLHOST
,OFFICE OF THE MINORITY LEADER,2012Q4,SUPPLIES AND MATERIALS,10-24,CAPITOLHOST,10/05/11,10/05/11,FOOD & BEVERAGE,49.50,FISCAL YEAR 2012,AP,Accounts payable,00555408,CAPITOLHOST
,OFFICE OF THE MINORITY LEADER,2012Q4,SUPPLIES AND MATERIALS,10-24,CAPITOLHOST,10/13/11,10/13/11,FOOD & BEVERAGE,67.50,FISCAL YEAR 2012,AP,Accounts payable,00555410,CAPITOLHOST
,OFFICE OF THE MINORITY LEADER,2012Q4,SUPPLIES AND MATERIALS,11-26,CAPITOLHOST,11/02/11,11/02/11,FOOD & BEVERAGE,273.00,FISCAL YEAR 2012,AP,Accounts payable,00572415,CAPITOLHOST
,DEMOCRATIC CAUCUS,2012Q4,SUPPLIES AND MATERIALS,10-25,DEER PARK,09/30/12,09/30/12,WATER,70.99,FISCAL YEAR 2012,AP,Accounts payable,00554789,DEER PARK
,REPUBLICAN CONFERENCE,2012Q4,PERSONNEL COMPENSATION,"","PUSKAR,JOHN E",12/01/11,12/31/11,STAFF ASSISTANT,-947.91,FISCAL YEAR 2012,"","","","PUSKAR,JOHN E"
,REPUBLICAN CONFERENCE,2012Q4,SUPPLIES AND MATERIALS,10-25,DEER PARK,09/30/12,09/30/12,WATER,200.76,FISCAL YEAR 2012,AP,Accounts payable,00554789,DEER PARK
,REPUBLICAN CONFERENCE,2012Q4,SUPPLIES AND MATERIALS,12-31,CAPITOLHOST,09/26/11,09/26/11,FOOD & BEVERAGE,354.24,FISCAL YEAR 2011,AP,Accounts payable,00592029,CAPITOLHOST
,CHIEF ADMIN OFCR OF THE HOUSE,2012Q4,EQUIPMENT,12-04,DELL MARKETING LP,11/09/12,11/09/12,MAINTENANCE / REPAIRS,"827,500.00",FISCAL YEAR 2013,AP,Accounts payable,00576616,DELL MARKETING LP
,CHIEF ADMIN OFCR OF THE HOUSE,2012Q4,PERSONNEL COMPENSATION,"","ABBOTT, JESSICA A",10/01/12,12/31/12,FINANCIAL ANALYST,"31,512.51",FISCAL YEAR 2013,"","","","ABBOTT, JESSICA A"
,CHIEF ADMIN OFCR OF THE HOUSE,2012Q4,PERSONNEL COMPENSATION,"","ABEL, TIMOTHY",10/01/12,12/31/12,SR TECHNICAL SUPPORT REP (A),"23,592.59",FISCAL YEAR 2013,"","","","ABEL, TIMOTHY"
,CHIEF ADMIN OFCR OF THE HOUSE,2012Q4,PERSONNEL COMPENSATION,"","ACUESTA,JULY J",10/01/12,12/31/12,SENIOR SYSTEMS ENGINEER,"26,422.74",FISCAL YEAR 2013,"","","","ACUESTA,JULY J"
,CHIEF ADMIN OFCR OF THE HOUSE,2012Q4,PERSONNEL COMPENSATION,"","ADDISON, TRACY",10/01/12,12/31/12,LOGISTICS & DIST SPEC (A),"11,274.00",FISCAL YEAR 2013,"","","","ADDISON, TRACY"
,CHIEF ADMIN OFCR OF THE HOUSE,2012Q4,PERSONNEL COMPENSATION,"","ADELAKUN, DEEN A",10/01/12,12/31/12,SR TECH SOLUTIONS ENGINEER,"22,107.00",FISCAL YEAR 2013,"","","","ADELAKUN, DEEN A"
,CHIEF ADMIN OFCR OF THE HOUSE,2012Q4,PERSONNEL COMPENSATION,"","AGEE, MATTHEW P",10/01/12,12/31/12,RESOURCE MANAGER,"30,037.74",FISCAL YEAR 2013,"","","","AGEE, MATTHEW P"
,CHIEF ADMIN OFCR OF THE HOUSE,2012Q4,PERSONNEL COMPENSATION,"","AGEE, TINA M",10/01/12,12/31/12,DIRECTOR PHOTOGRAPHY,"26,928.51",FISCAL YEAR 2013,"","","","AGEE, TINA M"
,CHIEF ADMIN OFCR OF THE HOUSE,2012Q4,PERSONNEL COMPENSATION,"","AGNEW, ROSE M",10/01/12,12/31/12,PAYROLL & BENEFITS GENERALIST,"17,937.75",FISCAL YEAR 2013,"","","","AGNEW, ROSE M"
,CHIEF ADMIN OFCR OF THE HOUSE,2012Q4,PERSONNEL COMPENSATION,"","AGNEW, ROSE M",11/01/12,11/30/12,PAYROLL & BENEFITS GENERALIST (OVERTIME),275.97,FISCAL YEAR 2013,"","","","AGNEW, ROSE M"
,CHIEF ADMIN OFCR OF THE HOUSE,2012Q4,PERSONNEL COMPENSATION,"","AKINSEGUN, PATRICIA A",10/01/12,12/31/12,TELEPHONE SYSTEMS CONSULTANT,"22,107.00",FISCAL YEAR 2013,"","","","AKINSEGUN, PATRICIA A"
,CHIEF ADMIN OFCR OF THE HOUSE,2012Q4,PERSONNEL COMPENSATION,"","ALEXANDER, GORDON",10/01/12,12/31/12,TECH SOLUTIONS ENGINEER,"17,735.76",FISCAL YEAR 2013,"","","","ALEXANDER, GORDON"
,CHIEF ADMIN OFCR OF THE HOUSE,2012Q4,PERSONNEL COMPENSATION,"","ALEXANDER, SHARYN B",10/01/12,12/31/12,SPECIAL ASSISTANT,"26,384.49",FISCAL YEAR 2013,"","","","ALEXANDER, SHARYN B"
,CHIEF ADMIN OFCR OF THE HOUSE,2012Q4,PERSONNEL COMPENSATION,"","ALLARD,KENNETH V",10/01/12,12/31/12,ADA AIDE,"6,839.67",FISCAL YEAR 2013,"","","","ALLARD,KENNETH V"
,CHIEF ADMIN OFCR OF THE HOUSE,2012Q4,PERSONNEL COMPENSATION,"","ALLARD,KENNETH V",10/01/12,11/30/12,ADA AIDE (OVERTIME),"5,104.76",FISCAL YEAR 2013,"","","","ALLARD,KENNETH V"
,CHIEF ADMIN OFCR OF THE HOUSE,2012Q4,PERSONNEL COMPENSATION,"","ALLISON, KEVIN M",10/01/12,12/31/12,LOGISTICS & DIST SPEC (A),"13,503.51",FISCAL YEAR 2013,"","","","ALLISON, KEVIN M"
,CHIEF ADMIN OFCR OF THE HOUSE,2012Q4,PERSONNEL COMPENSATION,"","ALSTON,MARK A",10/01/12,12/31/12,TECH SOLUTIONS ENGINEER,"17,344.26",FISCAL YEAR 2013,"","","","ALSTON,MARK A"
,CHIEF ADMIN OFCR OF THE HOUSE,2012Q4,PERSONNEL COMPENSATION,"","ALVEY, LISA M",10/01/12,12/31/12,FINANCIAL COUNSELOR,"20,286.24",FISCAL YEAR 2013,"","","","ALVEY, LISA M"
,CHIEF ADMIN OFCR OF THE HOUSE,2012Q4,PERSONNEL COMPENSATION,"","ANDERSEN, FREDERIC E",10/01/12,12/31/12,2ND ASST SUPERINTENDENT,"22,107.00",FISCAL YEAR 2013,"","","","ANDERSEN, FREDERIC E"
,CHIEF ADMIN OFCR OF THE HOUSE,2012Q4,PERSONNEL COMPENSATION,"","ANDERSON, DONTRELL",10/01/12,12/31/12,FINANCIAL COUNSELOR,"15,401.76",FISCAL YEAR 2013,"","","","ANDERSON, DONTRELL"
,CHIEF ADMIN OFCR OF THE HOUSE,2012Q4,PERSONNEL COMPENSATION,"","ANDREWS-MOBLEY, RACHELLE G",10/01/12,12/31/12,PRINCIPAL TECHNICAL TRAINER,"24,150.51",FISCAL YEAR 2013,"","","","ANDREWS-MOBLEY, RACHELLE G"
,CHIEF ADMIN OFCR OF THE HOUSE,2012Q4,PERSONNEL COMPENSATION,"","ARMAS, KENTON A",10/01/12,12/31/12,JOURNEYMAN TEXTILE SPEC,"18,903.24",FISCAL YEAR 2013,"","","","ARMAS, KENTON A"
,CHIEF ADMIN OFCR OF THE HOUSE,2012Q4,PERSONNEL COMPENSATION,"","ARMSTRONG,JANCIERA C",10/01/12,12/31/12,"MANAGER, ACCOUNTING","25,403.76",FISCAL YEAR 2013,"","","","ARMSTRONG,JANCIERA C"
,CHIEF ADMIN OFCR OF THE HOUSE,2012Q4,PERSONNEL COMPENSATION,"","ARTHUR, CAMILLA S",10/01/12,12/31/12,ASSISTANT CAO,"38,991.25",FISCAL YEAR 2013,"","","","ARTHUR, CAMILLA S"
,CHIEF ADMIN OFCR OF THE HOUSE,2012Q4,PERSONNEL COMPENSATION,"","ATCHISON, DARRYL A",10/01/12,12/31/12,DEPUTY CHIEF ENGINEER,"30,405.24",FISCAL YEAR 2013,"","","","ATCHISON, DARRYL A"
,CHIEF ADMIN OFCR OF THE HOUSE,2012Q4,PERSONNEL COMPENSATION,"","AWAN, OMAR",10/01/12,12/31/12,SR BUSINESS PROCESS APPL SPEC,"35,160.75",FISCAL YEAR 2013,"","","","AWAN, OMAR"
,CHIEF ADMIN OFCR OF THE HOUSE,2012Q4,PERSONNEL COMPENSATION,"","BABCOCK, TIMOTHY W",10/01/12,12/31/12,JOURNEYMAN TEXTILE SPEC,"14,470.50",FISCAL YEAR 2013,"","","","BABCOCK, TIMOTHY W"
,CHIEF ADMIN OFCR OF THE HOUSE,2012Q4,PERSONNEL COMPENSATION,"","BAER, PETER L",10/01/12,12/31/12,BUSINESS PROC APPLIC SPEC,"32,010.99",FISCAL YEAR 2013,"","","","BAER, PETER L"
,CHIEF ADMIN OFCR OF THE HOUSE,2012Q4,PERSONNEL COMPENSATION,"","BAHAM,TODD",10/01/12,12/31/12,BROADCAST PRODUCTION TECHNICIA,"18,719.25",FISCAL YEAR 2013,"","","","BAHAM,TODD"
,CHIEF ADMIN OFCR OF THE HOUSE,2012Q4,PERSONNEL COMPENSATION,"","BAHAM,TODD",11/01/12,11/30/12,BROADCAST PRODUCTION TECHNICIA (OVERTIME),54.00,FISCAL YEAR 2013,"","","","BAHAM,TODD"
,CHIEF ADMIN OFCR OF THE HOUSE,2012Q4,PERSONNEL COMPENSATION,"","BAILEY, DAVID E",10/01/12,12/31/12,SR TECHNICAL SUPPORT REP (A),"23,888.25",FISCAL YEAR 2013,"","","","BAILEY, DAVID E"
,CHIEF ADMIN OFCR OF THE HOUSE,2012Q4,PERSONNEL COMPENSATION,"","BAKER, DARRELL F",10/01/12,12/31/12,SENIOR NETWORK TECHNICIAN,"24,298.84",FISCAL YEAR 2013,"","","","BAKER, DARRELL F"
,CHIEF ADMIN OFCR OF THE HOUSE,2012Q4,PERSONNEL COMPENSATION,"","BANFIELD,KELLI C",10/01/12,12/31/12,BROADCAST ENGINEER/PROD SPEC,"20,771.49",FISCAL YEAR 2013,"","","","BANFIELD,KELLI C"
,CHIEF ADMIN OFCR OF THE HOUSE,2012Q4,PERSONNEL COMPENSATION,"","BANKS,BIANCA N",10/01/12,12/31/12,RETAIL INVENTORY SPECIALIST,"16,569.24",FISCAL YEAR 2013,"","","","BANKS,BIANCA N"
,CHIEF ADMIN OFCR OF THE HOUSE,2012Q4,PERSONNEL COMPENSATION,"","BARBEE, GLENN",10/01/12,12/31/12,NETWORK TECHNICIAN,"21,663.00",FISCAL YEAR 2013,"","","","BARBEE, GLENN"
,CHIEF ADMIN OFCR OF THE HOUSE,2012Q4,PERSONNEL COMPENSATION,"","BARBEE,DONELL G",10/01/12,12/31/12,RETAIL INVENTORY SPECIALIST,"9,801.00",FISCAL YEAR 2013,"","","","BARBEE,DONELL G"
,CHIEF ADMIN OFCR OF THE HOUSE,2012Q4,PERSONNEL COMPENSATION,"","BARBEE,DONELL G",11/01/12,11/30/12,RETAIL INVENTORY SPECIALIST (OVERTIME),9.42,FISCAL YEAR 2013,"","","","BARBEE,DONELL G"
,CHIEF ADMIN OFCR OF THE HOUSE,2012Q4,PERSONNEL COMPENSATION,"","BARBOUR, JUNE M",10/01/12,12/31/12,BROADCAST PRODUCTION TECHNICIA,"18,719.25",FISCAL YEAR 2013,"","","","BARBOUR, JUNE M"
,CHIEF ADMIN OFCR OF THE HOUSE,2012Q4,PERSONNEL COMPENSATION,"","BARBOUR, JUNE M",11/01/12,11/30/12,BROADCAST PRODUCTION TECHNICIA (OVERTIME),296.98,FISCAL YEAR 2013,"","","","BARBOUR, JUNE M"
,CHIEF ADMIN OFCR OF THE HOUSE,2012Q4,PERSONNEL COMPENSATION,"","BARCINIAK, DANA L",10/01/12,12/31/12,SENIOR PHOTOGRAPHER,"21,069.99",FISCAL YEAR 2013,"","","","BARCINIAK, DANA L"
,CHIEF ADMIN OFCR OF THE HOUSE,2012Q4,PERSONNEL COMPENSATION,"","BARCINIAK, DANA L",11/01/12,11/30/12,SENIOR PHOTOGRAPHER (OVERTIME),30.39,FISCAL YEAR 2013,"","","","BARCINIAK, DANA L"
,CHIEF ADMIN OFCR OF THE HOUSE,2012Q4,PERSONNEL COMPENSATION,"","BAREFOOT,JEFFREY",10/01/12,12/31/12,PRODUCTION/ENGINEER SPEC (TEMP,"7,637.57",FISCAL YEAR 2013,"","","","BAREFOOT,JEFFREY"
,CHIEF ADMIN OFCR OF THE HOUSE,2012Q4,PERSONNEL COMPENSATION,"","BARNABAE, MONICA M",10/01/12,12/31/12,DIRECTOR-HOUSE CHILD CARE CNTR,"26,422.74",FISCAL YEAR 2013,"","","","BARNABAE, MONICA M"
,CHIEF ADMIN OFCR OF THE HOUSE,2012Q4,PERSONNEL COMPENSATION,"","BARRETT, ROBERT R",10/01/12,12/31/12,"MANAGER, SUPPORT SYSTEMS","33,938.25",FISCAL YEAR 2013,"","","","BARRETT, ROBERT R"
,CHIEF ADMIN OFCR OF THE HOUSE,2012Q4,PERSONNEL COMPENSATION,"","BARTHOLOMEW, DEBORAH",10/01/12,12/31/12,ADMIN-FINANCE & PAYROLL,"22,360.50",FISCAL YEAR 2013,"","","","BARTHOLOMEW, DEBORAH"
,CHIEF ADMIN OFCR OF THE HOUSE,2012Q4,PERSONNEL COMPENSATION,"","BASILIO, TYRONE A",10/01/12,12/31/12,TECHNICAL SUPPORT REP,"19,110.75",FISCAL YEAR 2013,"","","","BASILIO, TYRONE A"
,CHIEF ADMIN OFCR OF THE HOUSE,2012Q4,PERSONNEL COMPENSATION,"","BATES, DEBORAH A",10/01/12,11/30/12,PRODUCTION/ENGINEER SPEC (TEMP,"1,909.39",FISCAL YEAR 2013,"","","","BATES, DEBORAH A"
,CHIEF ADMIN OFCR OF THE HOUSE,2012Q4,PERSONNEL COMPENSATION,"","BATES, DEBORAH A",12/01/12,12/31/12,PRODUCTION/ENGINEER SPEC (TEMP (OVERTIME),"2,210.88",FISCAL YEAR 2013,"","","","BATES, DEBORAH A"
,CHIEF ADMIN OFCR OF THE HOUSE,2012Q4,PERSONNEL COMPENSATION,"","BAULEY, PATRICK J",10/01/12,12/31/12,TECHNICAL DIRECTOR (A),"28,962.75",FISCAL YEAR 2013,"","","","BAULEY, PATRICK J"
,CHIEF ADMIN OFCR OF THE HOUSE,2012Q4,PERSONNEL COMPENSATION,"","BAULEY, PATRICK J",11/01/12,11/30/12,TECHNICAL DIRECTOR (A) (OVERTIME),167.09,FISCAL YEAR 2013,"","","","BAULEY, PATRICK J"
,CHIEF ADMIN OFCR OF THE HOUSE,2012Q4,PERSONNEL COMPENSATION,"","BEAUBIAN, TRACI R",10/01/12,12/31/12,CHIEF FINANCIAL OFFICER,"42,102.75",FISCAL YEAR 2013,"","","","BEAUBIAN, TRACI R"
,CHIEF ADMIN OFCR OF THE HOUSE,2012Q4,PERSONNEL COMPENSATION,"","BEAUDOIN, GORDON",10/01/12,12/31/12,VOICE & VIDEO BRANCH MGR (A),"36,389.01",FISCAL YEAR 2013,"","","","BEAUDOIN, GORDON"
,CHIEF ADMIN OFCR OF THE HOUSE,2012Q4,PERSONNEL COMPENSATION,"","BEIDEL, BERNARD E",10/01/12,12/31/12,"DIR, OFFICE OF EMPLOYEE ASSIST","42,102.75",FISCAL YEAR 2013,"","","","BEIDEL, BERNARD E"
,CHIEF ADMIN OFCR OF THE HOUSE,2012Q4,PERSONNEL COMPENSATION,"","BELL,FRANK E",10/15/12,12/31/12,SENIOR TECHNICAL ADVISOR,"27,103.30",FISCAL YEAR 2013,"","","","BELL,FRANK E"
,CHIEF ADMIN OFCR OF THE HOUSE,2012Q4,PERSONNEL COMPENSATION,"","BENAVIDEZ, OSCAR",10/01/12,12/31/12,LOGISTICS & DIST SPEC (A),"12,029.49",FISCAL YEAR 2013,"","","","BENAVIDEZ, OSCAR"
,CHIEF ADMIN OFCR OF THE HOUSE,2012Q4,PERSONNEL COMPENSATION,"","BENN, PHILLIP F",10/01/12,12/31/12,ELECTRONICS TECHNICIAN (A),"22,551.00",FISCAL YEAR 2013,"","","","BENN, PHILLIP F"
,CHIEF ADMIN OFCR OF THE HOUSE,2012Q4,PERSONNEL COMPENSATION,"","BENNETT, GERALD E",10/01/12,12/31/12,CHIEF LOGISTICS OFFICER,"42,102.75",FISCAL YEAR 2013,"","","","BENNETT, GERALD E"
,CHIEF ADMIN OFCR OF THE HOUSE,2012Q4,PERSONNEL COMPENSATION,"","BERGER, DONALD W",10/01/12,12/31/12,BROADCAST PRODUCTION TECHNICIA,"20,323.74",FISCAL YEAR 2013,"","","","BERGER, DONALD W"
,CHIEF ADMIN OFCR OF THE HOUSE,2012Q4,PERSONNEL COMPENSATION,"","BERISKO,PHILIP J",10/01/12,10/07/12,FINANCIAL COUNSELOR (A),"1,760.83",FISCAL YEAR 2013,"","","","BERISKO,PHILIP J"
,CHIEF ADMIN OFCR OF THE HOUSE,2012Q4,PERSONNEL COMPENSATION,"","BERISKO,PHILIP J",10/08/12,12/31/12,SUPERVISOR,"21,447.20",FISCAL YEAR 2013,"","","","BERISKO,PHILIP J"
,CHIEF ADMIN OFCR OF THE HOUSE,2012Q4,PERSONNEL COMPENSATION,"","BEST, CHARLENE",10/01/12,12/31/12,MANAGER,"22,809.00",FISCAL YEAR 2013,"","","","BEST, CHARLENE"
,CHIEF ADMIN OFCR OF THE HOUSE,2012Q4,PERSONNEL COMPENSATION,"","BETHEA,LASHON L",10/01/12,12/31/12,TECHNICAL TRAINER,"24,595.50",FISCAL YEAR 2013,"","","","BETHEA,LASHON L"
,CHIEF ADMIN OFCR OF THE HOUSE,2012Q4,PERSONNEL COMPENSATION,"","BILLARD, MICHAEL A",10/01/12,12/31/12,COMMUNICATIONS SPEC,"24,595.50",FISCAL YEAR 2013,"","","","BILLARD, MICHAEL A"
,CHIEF ADMIN OFCR OF THE HOUSE,2012Q4,PERSONNEL COMPENSATION,"","BILLUPS, BRIAN E",10/01/12,12/31/12,NETWORK TECHNICIAN (A),"19,110.75",FISCAL YEAR 2013,"","","","BILLUPS, BRIAN E"
,CHIEF ADMIN OFCR OF THE HOUSE,2012Q4,PERSONNEL COMPENSATION,"","BLAKNEY, HAROLD",10/01/12,12/31/12,SENIOR SYSTEMS ENGINEER,"37,001.25",FISCAL YEAR 2013,"","","","BLAKNEY, HAROLD"
,CHIEF ADMIN OFCR OF THE HOUSE,2012Q4,PERSONNEL COMPENSATION,"","BOGAN, DAVID S",10/01/12,12/31/12,"SUPERVISOR, RETAIL INVENTORY","19,110.75",FISCAL YEAR 2013,"","","","BOGAN, DAVID S"
,CHIEF ADMIN OFCR OF THE HOUSE,2012Q4,PERSONNEL COMPENSATION,"","BOGER, KELLY M",10/01/12,12/31/12,ACCOUNT MANAGEMENT COUNSELOR,"19,502.49",FISCAL YEAR 2013,"","","","BOGER, KELLY M"
,CHIEF ADMIN OFCR OF THE HOUSE,2012Q4,PERSONNEL COMPENSATION,"","BOGER, KELLY M",11/01/12,11/30/12,ACCOUNT MANAGEMENT COUNSELOR (OVERTIME),956.36,FISCAL YEAR 2013,"","","","BOGER, KELLY M"
,CHIEF ADMIN OFCR OF THE HOUSE,2012Q4,PERSONNEL COMPENSATION,"","BOOKER, CARLOS",10/01/12,12/31/12,SALES SPECIALIST,"10,095.75",FISCAL YEAR 2013,"","","","BOOKER, CARLOS"
,CHIEF ADMIN OFCR OF THE HOUSE,2012Q4,PERSONNEL COMPENSATION,"","BOOKER, CARLOS",11/01/12,11/30/12,SALES SPECIALIST (OVERTIME),19.41,FISCAL YEAR 2013,"","","","BOOKER, CARLOS"
,CHIEF ADMIN OFCR OF THE HOUSE,2012Q4,PERSONNEL COMPENSATION,"","BOONE, RUSSELL",10/01/12,12/31/12,TECHNICAL SUPPORT REP,"21,331.33",FISCAL YEAR 2013,"","","","BOONE, RUSSELL"
,CHIEF ADMIN OFCR OF THE HOUSE,2012Q4,PERSONNEL COMPENSATION,"","BOWERS,KAREN L",10/01/12,12/31/12,FINANCIAL COUNSELOR,"18,719.25",FISCAL YEAR 2013,"","","","BOWERS,KAREN L"
,CHIEF ADMIN OFCR OF THE HOUSE,2012Q4,PERSONNEL COMPENSATION,"","BOWLDING, SONIA R",10/01/12,12/31/12,REC/WAREHOUSE SPEC (A),"10,980.00",FISCAL YEAR 2013,"","","","BOWLDING, SONIA R"
,CHIEF ADMIN OFCR OF THE HOUSE,2012Q4,PERSONNEL COMPENSATION,"","BOWLDING, SONIA R",11/01/12,11/30/12,REC/WAREHOUSE SPEC (A) (OVERTIME),42.23,FISCAL YEAR 2013,"","","","BOWLDING, SONIA R"
,CHIEF ADMIN OFCR OF THE HOUSE,2012Q4,PERSONNEL COMPENSATION,"","BOWLES JR, FREDERICK H",10/01/12,12/31/12,"SUPERVISOR-LOGISTICS, SUPP EQU","23,888.25",FISCAL YEAR 2013,"","","","BOWLES JR, FREDERICK H"
,CHIEF ADMIN OFCR OF THE HOUSE,2012Q4,PERSONNEL COMPENSATION,"","BOWLES, JAMES A",10/01/12,12/31/12,JOURNEYMAN FURNITURE SPEC,"18,903.24",FISCAL YEAR 2013,"","","","BOWLES, JAMES A"
,CHIEF ADMIN OFCR OF THE HOUSE,2012Q4,PERSONNEL COMPENSATION,"","BOWLING-STOKES,CHAUNETTE L",10/01/12,12/31/12,SUPERVISOR,"22,809.00",FISCAL YEAR 2013,"","","","BOWLING-STOKES,CHAUNETTE L"
,CHIEF ADMIN OFCR OF THE HOUSE,2012Q4,PERSONNEL COMPENSATION,"","BOWMAN,SHELIA",10/01/12,12/31/12,FINANCIAL COUNSELOR,"15,789.00",FISCAL YEAR 2013,"","","","BOWMAN,SHELIA"
,CHIEF ADMIN OFCR OF THE HOUSE,2012Q4,PERSONNEL COMPENSATION,"","BOYD, KRISTIE N",10/01/12,11/30/12,PHOTOGRAPHER/LAB TECH (TEMP),"5,225.71",FISCAL YEAR 2013,"","","","BOYD, KRISTIE N"
,CHIEF ADMIN OFCR OF THE HOUSE,2012Q4,PERSONNEL COMPENSATION,"","BOYD, PETRINA",10/01/12,12/31/12,SALES SPECIALIST,"11,146.50",FISCAL YEAR 2013,"","","","BOYD, PETRINA"
,CHIEF ADMIN OFCR OF THE HOUSE,2012Q4,PERSONNEL COMPENSATION,"","BOYD, PETRINA",11/01/12,11/30/12,SALES SPECIALIST (OVERTIME),10.72,FISCAL YEAR 2013,"","","","BOYD, PETRINA"
,CHIEF ADMIN OFCR OF THE HOUSE,2012Q4,PERSONNEL COMPENSATION,"","BOYLE, KEVIN J",10/01/12,12/31/12,SR BUSINESS PROCESS APPL SPEC,"37,613.25",FISCAL YEAR 2013,"","","","BOYLE, KEVIN J"
,CHIEF ADMIN OFCR OF THE HOUSE,2012Q4,PERSONNEL COMPENSATION,"","BRACKENS, ROBERT",10/01/12,12/31/12,BROADCAST PRODUCTION TECHNICIA,"20,771.49",FISCAL YEAR 2013,"","","","BRACKENS, ROBERT"
,CHIEF ADMIN OFCR OF THE HOUSE,2012Q4,PERSONNEL COMPENSATION,"","BRANCH,PAMELA J",10/01/12,12/31/12,SENIOR BENEFITS SPECIALIST,"25,939.74",FISCAL YEAR 2013,"","","","BRANCH,PAMELA J"
,CHIEF ADMIN OFCR OF THE HOUSE,2012Q4,PERSONNEL COMPENSATION,"","BRAXTON, BRANDON A",10/01/12,12/31/12,LOGISTICS & DIST SPEC (A),"10,684.50",FISCAL YEAR 2013,"","","","BRAXTON, BRANDON A"
,CHIEF ADMIN OFCR OF THE HOUSE,2012Q4,PERSONNEL COMPENSATION,"","BRAYE, LORENZO",10/01/12,12/31/12,SR BROADCAST ENG/PROD SPECLST,"23,704.50",FISCAL YEAR 2013,"","","","BRAYE, LORENZO"
,CHIEF ADMIN OFCR OF THE HOUSE,2012Q4,PERSONNEL COMPENSATION,"","BREWSTER III,JAMES E",10/01/12,12/31/12,LOGISTICS & DIST SPEC (A),"9,002.49",FISCAL YEAR 2013,"","","","BREWSTER III,JAMES E"
,CHIEF ADMIN OFCR OF THE HOUSE,2012Q4,PERSONNEL COMPENSATION,"","BREWSTER,CHRISTOPHER A",10/01/12,12/31/12,ADMINISTRATIVE COUNSEL,"42,102.75",FISCAL YEAR 2013,"","","","BREWSTER,CHRISTOPHER A"
,CHIEF ADMIN OFCR OF THE HOUSE,2012Q4,PERSONNEL COMPENSATION,"","BRIDGEFORTH, TOINETTA A",10/01/12,12/31/12,CONTRACTS SPECIALIST,"21,811.00",FISCAL YEAR 2013,"","","","BRIDGEFORTH, TOINETTA A"
,CHIEF ADMIN OFCR OF THE HOUSE,2012Q4,PERSONNEL COMPENSATION,"","BRISCOE, KEVIN",10/01/12,12/31/12,LOGISTICS & DIST SPEC (A),"10,684.50",FISCAL YEAR 2013,"","","","BRISCOE, KEVIN"
,CHIEF ADMIN OFCR OF THE HOUSE,2012Q4,PERSONNEL COMPENSATION,"","BRITT,SHANNON W",10/01/12,12/31/12,SR HUMAN RESOURCES GENERALIST,"17,544.51",FISCAL YEAR 2013,"","","","BRITT,SHANNON W"
,CHIEF ADMIN OFCR OF THE HOUSE,2012Q4,PERSONNEL COMPENSATION,"","BROBBEY-MENSAH, KWAME",10/01/12,12/31/12,SR INFO SYST. SECURITY ANALYST,"27,946.26",FISCAL YEAR 2013,"","","","BROBBEY-MENSAH, KWAME"
,CHIEF ADMIN OFCR OF THE HOUSE,2012Q4,PERSONNEL COMPENSATION,"","BROWN SR, DEMETRICE T",10/01/12,12/31/12,SUPERVISOR,"25,573.42",FISCAL YEAR 2013,"","","","BROWN SR, DEMETRICE T"
,CHIEF ADMIN OFCR OF THE HOUSE,2012Q4,PERSONNEL COMPENSATION,"","BROWN, ANNETTE G",10/01/12,12/31/12,SR SOFTWARE ENGINEER,"26,384.49",FISCAL YEAR 2013,"","","","BROWN, ANNETTE G"
,CHIEF ADMIN OFCR OF THE HOUSE,2012Q4,PERSONNEL COMPENSATION,"","BROWN, KEITH S",10/01/12,12/31/12,REC/WAREHOUSE SPEC (A),"13,798.50",FISCAL YEAR 2013,"","","","BROWN, KEITH S"
,CHIEF ADMIN OFCR OF THE HOUSE,2012Q4,PERSONNEL COMPENSATION,"","BROWN, PAMELA L",10/01/12,12/31/12,CUSTOMER SOLUTIONS REP,"18,123.51",FISCAL YEAR 2013,"","","","BROWN, PAMELA L"
,CHIEF ADMIN OFCR OF THE HOUSE,2012Q4,PERSONNEL COMPENSATION,"","BROWN,DAVID D",10/01/12,12/31/12,FINANCIAL COUNSELOR,"15,401.76",FISCAL YEAR 2013,"","","","BROWN,DAVID D"
,CHIEF ADMIN OFCR OF THE HOUSE,2012Q4,PERSONNEL COMPENSATION,"","BROWN,JASON",10/01/12,12/31/12,BROADCAST PRODUCTION TECHNICIA,"18,459.09",FISCAL YEAR 2013,"","","","BROWN,JASON"
,CHIEF ADMIN OFCR OF THE HOUSE,2012Q4,PERSONNEL COMPENSATION,"","BROWN,JASON",11/01/12,11/30/12,BROADCAST PRODUCTION TECHNICIA (OVERTIME),52.87,FISCAL YEAR 2013,"","","","BROWN,JASON"
,CHIEF ADMIN OFCR OF THE HOUSE,2012Q4,PERSONNEL COMPENSATION,"","BROWN,KIMBERLY K",10/01/12,12/31/12,RESOURCE ANALYST,"16,569.24",FISCAL YEAR 2013,"","","","BROWN,KIMBERLY K"
,CHIEF ADMIN OFCR OF THE HOUSE,2012Q4,PERSONNEL COMPENSATION,"","BROWN,LAWRENCE",10/01/12,12/31/12,BROADCAST ENGINEER/PROD SPEC,"21,214.74",FISCAL YEAR 2013,"","","","BROWN,LAWRENCE"
,CHIEF ADMIN OFCR OF THE HOUSE,2012Q4,PERSONNEL COMPENSATION,"","BROWN,LAWRENCE",10/01/12,11/30/12,BROADCAST ENGINEER/PROD SPEC. (OVERTIME),305.98,FISCAL YEAR 2013,"","","","BROWN,LAWRENCE"
,CHIEF ADMIN OFCR OF THE HOUSE,2012Q4,PERSONNEL COMPENSATION,"","BRUMMELL,JENELLE L",10/01/12,12/31/12,PARALEGAL,"16,569.24",FISCAL YEAR 2013,"","","","BRUMMELL,JENELLE L"
,CHIEF ADMIN OFCR OF THE HOUSE,2012Q4,PERSONNEL COMPENSATION,"","BUCKLER, RICKY L",10/01/12,12/31/12,PURCHASING AGENT,"18,329.01",FISCAL YEAR 2013,"","","","BUCKLER, RICKY L"
,CHIEF ADMIN OFCR OF THE HOUSE,2012Q4,PERSONNEL COMPENSATION,"","BUCKLER, TROY D",10/01/12,12/31/12,PURCHASING AGENT,"15,830.01",FISCAL YEAR 2013,"","","","BUCKLER, TROY D"
,CHIEF ADMIN OFCR OF THE HOUSE,2012Q4,PERSONNEL COMPENSATION,"","BUFORD, MARCIA L",10/01/12,12/31/12,COMPUTER FAC OP SUPERVISOR,"26,384.49",FISCAL YEAR 2013,"","","","BUFORD, MARCIA L"
,CHIEF ADMIN OFCR OF THE HOUSE,2012Q4,PERSONNEL COMPENSATION,"","BURCH, KENNETH J",10/01/12,12/31/12,BUSINESS PROC APPLIC SPEC,"29,470.74",FISCAL YEAR 2013,"","","","BURCH, KENNETH J"
,CHIEF ADMIN OFCR OF THE HOUSE,2012Q4,PERSONNEL COMPENSATION,"","BURNHAM, ELIZABETH",10/01/12,12/31/12,PAYROLL & BENEFITS MANAGER,"26,928.51",FISCAL YEAR 2013,"","","","BURNHAM, ELIZABETH"
,CHIEF ADMIN OFCR OF THE HOUSE,2012Q4,PERSONNEL COMPENSATION,"","BUTLER, CLARENCE G",10/01/12,12/31/12,JOURNEYMAN FURNITURE SPEC,"15,155.76",FISCAL YEAR 2013,"","","","BUTLER, CLARENCE G"
,CHIEF ADMIN OFCR OF THE HOUSE,2012Q4,PERSONNEL COMPENSATION,"","BUTLER, JAMES F",10/01/12,12/31/12,PAYROLL & BENEFITS MANAGER,"25,342.51",FISCAL YEAR 2013,"","","","BUTLER, JAMES F"
,CHIEF ADMIN OFCR OF THE HOUSE,2012Q4,PERSONNEL COMPENSATION,"","CAIN, MOLLY J",10/01/12,12/31/12,5TH ASST SUPERINTENDENT,"15,155.76",FISCAL YEAR 2013,"","","","CAIN, MOLLY J"
,CHIEF ADMIN OFCR OF THE HOUSE,2012Q4,PERSONNEL COMPENSATION,"","CALLAWAY, ROBERT M",10/01/12,12/31/12,SR BROADCAST ENG./PROD SPEC,"23,405.50",FISCAL YEAR 2013,"","","","CALLAWAY, ROBERT M"
,CHIEF ADMIN OFCR OF THE HOUSE,2012Q4,PERSONNEL COMPENSATION,"","CANNON, DREW",10/01/12,12/31/12,4TH ASST SUPERINTENDENT,"17,344.26",FISCAL YEAR 2013,"","","","CANNON, DREW"
,CHIEF ADMIN OFCR OF THE HOUSE,2012Q4,PERSONNEL COMPENSATION,"","CANNON,SUSANNAH",10/01/12,12/31/12,CUSTOMER SOLUTIONS REP,"13,460.01",FISCAL YEAR 2013,"","","","CANNON,SUSANNAH"
,CHIEF ADMIN OFCR OF THE HOUSE,2012Q4,PERSONNEL COMPENSATION,"","CARCAMO, ALICIA L",10/01/12,12/31/12,ACCOUNTING TECHNICIAN,"18,903.24",FISCAL YEAR 2013,"","","","CARCAMO, ALICIA L"
,CHIEF ADMIN OFCR OF THE HOUSE,2012Q4,PERSONNEL COMPENSATION,"","CARLSON,STACY",10/01/12,12/31/12,DEPUTY CAO,"42,674.01",FISCAL YEAR 2013,"","","","CARLSON,STACY"
,CHIEF ADMIN OFCR OF THE HOUSE,2012Q4,PERSONNEL COMPENSATION,"","CARNNIA,CASEY",10/01/12,12/31/12,INTERNET SYSTEMS SPECIALIST,"19,110.75",FISCAL YEAR 2013,"","","","CARNNIA,CASEY"
,CHIEF ADMIN OFCR OF THE HOUSE,2012Q4,PERSONNEL COMPENSATION,"","CARR, JOSH D",10/01/12,12/31/12,SENIOR SYSTEMS ENGINEER,"24,595.50",FISCAL YEAR 2013,"","","","CARR, JOSH D"
,CHIEF ADMIN OFCR OF THE HOUSE,2012Q4,PERSONNEL COMPENSATION,"","CARRICO, RONALD",10/01/12,12/31/12,SR BUSINESS PROCESS APPL SPEC,"35,775.51",FISCAL YEAR 2013,"","","","CARRICO, RONALD"
,CHIEF ADMIN OFCR OF THE HOUSE,2012Q4,PERSONNEL COMPENSATION,"","CARSON,LAWRENCE T",10/01/12,12/31/12,SALES SPECIALIST,"9,801.00",FISCAL YEAR 2013,"","","","CARSON,LAWRENCE T"
,CHIEF ADMIN OFCR OF THE HOUSE,2012Q4,PERSONNEL COMPENSATION,"","CARSON,LAWRENCE T",11/01/12,11/30/12,SALES SPECIALIST (OVERTIME),18.85,FISCAL YEAR 2013,"","","","CARSON,LAWRENCE T"
,CHIEF ADMIN OFCR OF THE HOUSE,2012Q4,PERSONNEL COMPENSATION,"","CARTER JR, JOHN L",10/01/12,12/31/12,"MANAGER, FINISHING","24,777.24",FISCAL YEAR 2013,"","","","CARTER JR, JOHN L"
,CHIEF ADMIN OFCR OF THE HOUSE,2012Q4,PERSONNEL COMPENSATION,"","CARTER,DELISA D",10/01/12,12/31/12,SR. SOFTWARE SPECIALIST,"34,547.25",FISCAL YEAR 2013,"","","","CARTER,DELISA D"
,CHIEF ADMIN OFCR OF THE HOUSE,2012Q4,PERSONNEL COMPENSATION,"","CAULK, ANDREW T",10/01/12,12/31/12,SUPERVISOR,"23,704.50",FISCAL YEAR 2013,"","","","CAULK, ANDREW T"
,CHIEF ADMIN OFCR OF THE HOUSE,2012Q4,PERSONNEL COMPENSATION,"","CHABOT, ELLIOT C",10/01/12,12/31/12,SR SYSTEMS ANALYST,"32,010.99",FISCAL YEAR 2013,"","","","CHABOT, ELLIOT C"
,CHIEF ADMIN OFCR OF THE HOUSE,2012Q4,PERSONNEL COMPENSATION,"","CHAMBERS, KEVIN N",10/01/12,12/31/12,SR CUSTOMER SOLUTIONS REP,"19,894.74",FISCAL YEAR 2013,"","","","CHAMBERS, KEVIN N"
,CHIEF ADMIN OFCR OF THE HOUSE,2012Q4,PERSONNEL COMPENSATION,"","CHAMBERS, KEVIN N",11/01/12,11/30/12,SR CUSTOMER SOLUTIONS REP. (OVERTIME),640.83,FISCAL YEAR 2013,"","","","CHAMBERS, KEVIN N"
,CHIEF ADMIN OFCR OF THE HOUSE,2012Q4,PERSONNEL COMPENSATION,"","CHAMBERS,KEVINA D",10/01/12,12/31/12,ACCOUNTING TECHNICIAN,"11,777.49",FISCAL YEAR 2013,"","","","CHAMBERS,KEVINA D"
,CHIEF ADMIN OFCR OF THE HOUSE,2012Q4,PERSONNEL COMPENSATION,"","CHANG, SU-HWA",10/01/12,12/31/12,SENIOR SYSTEMS ENGINEER,"29,978.76",FISCAL YEAR 2013,"","","","CHANG, SU-HWA"
,CHIEF ADMIN OFCR OF THE HOUSE,2012Q4,PERSONNEL COMPENSATION,"","CHEN, SUSAN",10/01/12,12/31/12,FINANCIAL COUNSELOR,"15,401.76",FISCAL YEAR 2013,"","","","CHEN, SUSAN"
,CHIEF ADMIN OFCR OF THE HOUSE,2012Q4,PERSONNEL COMPENSATION,"","CHILDRESS, J T",10/01/12,12/31/12,JOURNEYMAN FURNITURE SPEC,"18,903.24",FISCAL YEAR 2013,"","","","CHILDRESS, J T"
,CHIEF ADMIN OFCR OF THE HOUSE,2012Q4,PERSONNEL COMPENSATION,"","CHILDRESS, J T",11/01/12,11/30/12,JOURNEYMAN FURNITURE SPEC. (OVERTIME),954.24,FISCAL YEAR 2013,"","","","CHILDRESS, J T"
,CHIEF ADMIN OFCR OF THE HOUSE,2012Q4,PERSONNEL COMPENSATION,"","CIANCIOLO,CRAIG",10/01/12,12/31/12,JOURNEYMAN FURNITURE SPEC,"14,481.75",FISCAL YEAR 2013,"","","","CIANCIOLO,CRAIG"
,CHIEF ADMIN OFCR OF THE HOUSE,2012Q4,PERSONNEL COMPENSATION,"","CIANCIOLO,CRAIG",11/01/12,11/30/12,JOURNEYMAN FURNITURE SPEC. (OVERTIME),417.74,FISCAL YEAR 2013,"","","","CIANCIOLO,CRAIG"
,CHIEF ADMIN OFCR OF THE HOUSE,2012Q4,PERSONNEL COMPENSATION,"","CICALE, MICHAEL P",10/01/12,12/31/12,SR CUSTOMER SOLUTIONS REP,"18,903.24",FISCAL YEAR 2013,"","","","CICALE, MICHAEL P"
,CHIEF ADMIN OFCR OF THE HOUSE,2012Q4,PERSONNEL COMPENSATION,"","CLAGGETT, TIMOTHY A",10/01/12,12/31/12,JOURNEYMAN TEXTILE SPEC,"18,513.24",FISCAL YEAR 2013,"","","","CLAGGETT, TIMOTHY A"
,CHIEF ADMIN OFCR OF THE HOUSE,2012Q4,PERSONNEL COMPENSATION,"","CLARK, MARION",10/01/12,12/31/12,SR TELECOMMUNICATIONS ADMIN,"17,344.26",FISCAL YEAR 2013,"","","","CLARK, MARION"
,CHIEF ADMIN OFCR OF THE HOUSE,2012Q4,PERSONNEL COMPENSATION,"","CLARK, MARION",11/01/12,11/30/12,SR TELECOMMUNICATIONS ADMIN (OVERTIME),933.91,FISCAL YEAR 2013,"","","","CLARK, MARION"
,CHIEF ADMIN OFCR OF THE HOUSE,2012Q4,PERSONNEL COMPENSATION,"","CLARKE, JOHN P",10/01/12,12/31/12,SUPERVISOR,"21,214.74",FISCAL YEAR 2013,"","","","CLARKE, JOHN P"
,CHIEF ADMIN OFCR OF THE HOUSE,2012Q4,PERSONNEL COMPENSATION,"","CLOCKER, JOHN C",10/01/12,12/31/12,DIRECTOR WEB SYSTEMS,"39,794.25",FISCAL YEAR 2013,"","","","CLOCKER, JOHN C"
,CHIEF ADMIN OFCR OF THE HOUSE,2012Q4,PERSONNEL COMPENSATION,"","COAKLEY,KRISTEN J",10/01/12,12/31/12,SR TELECOMMUNICATIONS ADMIN,"16,179.24",FISCAL YEAR 2013,"","","","COAKLEY,KRISTEN J"
,CHIEF ADMIN OFCR OF THE HOUSE,2012Q4,PERSONNEL COMPENSATION,"","COAKLEY,KRISTEN J",11/01/12,11/30/12,SR TELECOMMUNICATIONS ADMIN (OVERTIME),824.51,FISCAL YEAR 2013,"","","","COAKLEY,KRISTEN J"
,CHIEF ADMIN OFCR OF THE HOUSE,2012Q4,PERSONNEL COMPENSATION,"","COBB, FAYE C",10/01/12,12/31/12,"DIR, BUDGET, POLICY & PLANNING","36,177.99",FISCAL YEAR 2013,"","","","COBB, FAYE C"
,CHIEF ADMIN OFCR OF THE HOUSE,2012Q4,PERSONNEL COMPENSATION,"","COLBERT, RAY C",10/01/12,10/04/12,ELECTRONICS TECHNICIAN (A),962.80,FISCAL YEAR 2013,"","","","COLBERT, RAY C"
,CHIEF ADMIN OFCR OF THE HOUSE,2012Q4,PERSONNEL COMPENSATION,"","COLBERT, RAY C",10/05/12,12/31/12,SR BROADCAST ENG/PROD SPECLST,"21,795.27",FISCAL YEAR 2013,"","","","COLBERT, RAY C"
,CHIEF ADMIN OFCR OF THE HOUSE,2012Q4,PERSONNEL COMPENSATION,"","COLBERT, RAY C",11/01/12,11/30/12,SR BROADCAST ENG/PROD SPECLST (OVERTIME),394.77,FISCAL YEAR 2013,"","","","COLBERT, RAY C"
,CHIEF ADMIN OFCR OF THE HOUSE,2012Q4,PERSONNEL COMPENSATION,"","COLLINS, JOHN B",10/01/12,12/31/12,BROADCAST PRODUCTION TECHNICIA,"22,998.51",FISCAL YEAR 2013,"","","","COLLINS, JOHN B"
,CHIEF ADMIN OFCR OF THE HOUSE,2012Q4,PERSONNEL COMPENSATION,"","COLLINS,JOEL",10/01/12,12/31/12,SR INTERNET SYSTEMS SPECIALIST,"28,930.83",FISCAL YEAR 2013,"","","","COLLINS,JOEL"
,CHIEF ADMIN OFCR OF THE HOUSE,2012Q4,PERSONNEL COMPENSATION,"","CONNOLLY,ERIC",10/01/12,12/31/12,PHOTOGRAPHER,"14,481.75",FISCAL YEAR 2013,"","","","CONNOLLY,ERIC"
,CHIEF ADMIN OFCR OF THE HOUSE,2012Q4,PERSONNEL COMPENSATION,"","CONNOLLY,ERIC",11/01/12,11/30/12,PHOTOGRAPHER (OVERTIME),128.80,FISCAL YEAR 2013,"","","","CONNOLLY,ERIC"
,CHIEF ADMIN OFCR OF THE HOUSE,2012Q4,PERSONNEL COMPENSATION,"","COOK, ERIC H",10/01/12,12/31/12,NETWORK TECHNICIAN,"19,894.74",FISCAL YEAR 2013,"","","","COOK, ERIC H"
,CHIEF ADMIN OFCR OF THE HOUSE,2012Q4,PERSONNEL COMPENSATION,"","COOPER, RICHARD S",10/01/12,12/31/12,STAFF ACCOUNTANT (A),"25,044.51",FISCAL YEAR 2013,"","","","COOPER, RICHARD S"
,CHIEF ADMIN OFCR OF THE HOUSE,2012Q4,PERSONNEL COMPENSATION,"","COPPA, JOSEPH P",10/01/12,12/31/12,SENIOR NETWORK TECHNICIAN,"23,888.25",FISCAL YEAR 2013,"","","","COPPA, JOSEPH P"
,CHIEF ADMIN OFCR OF THE HOUSE,2012Q4,PERSONNEL COMPENSATION,"","CORNEJO, LUIS E",10/01/12,12/31/12,SENIOR SYSTEMS ENGINEER,"25,491.51",FISCAL YEAR 2013,"","","","CORNEJO, LUIS E"
,CHIEF ADMIN OFCR OF THE HOUSE,2012Q4,PERSONNEL COMPENSATION,"","COX, BRIDGET A",10/01/12,12/31/12,SENIOR SYSTEMS ANALYST,"29,470.74",FISCAL YEAR 2013,"","","","COX, BRIDGET A"
,CHIEF ADMIN OFCR OF THE HOUSE,2012Q4,PERSONNEL COMPENSATION,"","COYNE III, THOMAS E",10/01/12,12/31/12,ASSISTANT CAO,"42,102.75",FISCAL YEAR 2013,"","","","COYNE III, THOMAS E"
,CHIEF ADMIN OFCR OF THE HOUSE,2012Q4,PERSONNEL COMPENSATION,"","CROWELL, PETER L",10/01/12,12/31/12,BRANCH MANAGER,"32,621.25",FISCAL YEAR 2013,"","","","CROWELL, PETER L"
,CHIEF ADMIN OFCR OF THE HOUSE,2012Q4,PERSONNEL COMPENSATION,"","CRUDUP III, WILLIAM D",10/01/12,12/31/12,LOGISTICS & DIST SPEC (A),"12,325.26",FISCAL YEAR 2013,"","","","CRUDUP III, WILLIAM D"
,CHIEF ADMIN OFCR OF THE HOUSE,2012Q4,PERSONNEL COMPENSATION,"","CUFF,LOREN D",10/01/12,12/31/12,INTERNET SYSTEMS SPECIALIST,"19,110.75",FISCAL YEAR 2013,"","","","CUFF,LOREN D"
,CHIEF ADMIN OFCR OF THE HOUSE,2012Q4,PERSONNEL COMPENSATION,"","CUFFEY, LAWRENCE",10/01/12,12/31/12,SR RECVNG AND WAREHOUSING SPEC,"17,848.50",FISCAL YEAR 2013,"","","","CUFFEY, LAWRENCE"
,CHIEF ADMIN OFCR OF THE HOUSE,2012Q4,PERSONNEL COMPENSATION,"","CUPRILL, CARLOS",10/01/12,12/31/12,SR TECHNICAL SUPPORT REP,"22,107.00",FISCAL YEAR 2013,"","","","CUPRILL, CARLOS"
,CHIEF ADMIN OFCR OF THE HOUSE,2012Q4,PERSONNEL COMPENSATION,"","CUSATI, ALESSANDRO",10/01/12,12/31/12,CHIEF ENGINEER,"37,001.25",FISCAL YEAR 2013,"","","","CUSATI, ALESSANDRO"
,CHIEF ADMIN OFCR OF THE HOUSE,2012Q4,PERSONNEL COMPENSATION,"","CUTLER JR, BENJAMIN S",10/01/12,12/31/12,PAYROLL & BENEFITS ASSISTANT,"15,155.76",FISCAL YEAR 2013,"","","","CUTLER JR, BENJAMIN S"
,CHIEF ADMIN OFCR OF THE HOUSE,2012Q4,PERSONNEL COMPENSATION,"","D'AMICO, THOMAS A",10/01/12,12/31/12,LOCKSMITH,"18,903.24",FISCAL YEAR 2013,"","","","D'AMICO, THOMAS A"
,CHIEF ADMIN OFCR OF THE HOUSE,2012Q4,PERSONNEL COMPENSATION,"","DAHL,RYAN S",10/01/12,12/31/12,MEDIA LOGISTICS COORDINATOR,"14,819.25",FISCAL YEAR 2013,"","","","DAHL,RYAN S"
,CHIEF ADMIN OFCR OF THE HOUSE,2012Q4,PERSONNEL COMPENSATION,"","DAHL,RYAN S",10/01/12,10/31/12,MEDIA LOGISTICS COORDINATOR (OTHER COMPENSATION),"-1,000.00",FISCAL YEAR 2013,"","","","DAHL,RYAN S"
,CHIEF ADMIN OFCR OF THE HOUSE,2012Q4,PERSONNEL COMPENSATION,"","DAHL,RYAN S",10/01/12,10/31/12,MEDIA LOGISTICS COORDINATOR (OTHER COMPENSATION),"1,000.00",FISCAL YEAR 2013,"","","","DAHL,RYAN S"
,CHIEF ADMIN OFCR OF THE HOUSE,2012Q4,PERSONNEL COMPENSATION,"","DAHLSTROM, DARREN",10/01/12,12/31/12,JOURNEYMAN FURNITURE SPEC,"19,680.51",FISCAL YEAR 2013,"","","","DAHLSTROM, DARREN"
,CHIEF ADMIN OFCR OF THE HOUSE,2012Q4,PERSONNEL COMPENSATION,"","DALTON, MARK V",10/01/12,12/31/12,SENIOR SYSTEMS ENGINEER,"28,962.75",FISCAL YEAR 2013,"","","","DALTON, MARK V"
,CHIEF ADMIN OFCR OF THE HOUSE,2012Q4,PERSONNEL COMPENSATION,"","DAS, SATYENDRA K",10/01/12,12/31/12,BUSINESS PROC APPLIC SPEC,"29,809.42",FISCAL YEAR 2013,"","","","DAS, SATYENDRA K"
,CHIEF ADMIN OFCR OF THE HOUSE,2012Q4,PERSONNEL COMPENSATION,"","DAS, SATYENDRA K",11/01/12,11/30/12,BUSINESS PROC APPLIC SPEC (OVERTIME),576.51,FISCAL YEAR 2013,"","","","DAS, SATYENDRA K"
,CHIEF ADMIN OFCR OF THE HOUSE,2012Q4,PERSONNEL COMPENSATION,"","DAVENPORT,KAREN V",10/01/12,12/31/12,FINANCIAL ANALYST,"21,663.00",FISCAL YEAR 2013,"","","","DAVENPORT,KAREN V"
,CHIEF ADMIN OFCR OF THE HOUSE,2012Q4,PERSONNEL COMPENSATION,"","DAVIS, JOHN J",10/01/12,12/31/12,BROADCAST PRODUCTION TECHNICIA,"22,107.00",FISCAL YEAR 2013,"","","","DAVIS, JOHN J"
,CHIEF ADMIN OFCR OF THE HOUSE,2012Q4,PERSONNEL COMPENSATION,"","DAVIS, STACHIA G",10/01/12,12/31/12,DIR MOD FURN & TRANSITION,"26,928.51",FISCAL YEAR 2013,"","","","DAVIS, STACHIA G"
,CHIEF ADMIN OFCR OF THE HOUSE,2012Q4,PERSONNEL COMPENSATION,"","DAVIS,SCOTT K",10/01/12,12/31/12,PAYROLL & BENEFITS GENERALIST,"16,179.24",FISCAL YEAR 2013,"","","","DAVIS,SCOTT K"
,CHIEF ADMIN OFCR OF THE HOUSE,2012Q4,PERSONNEL COMPENSATION,"","DAVIS,SCOTT K",10/01/12,11/30/12,PAYROLL & BENEFITS GENERALIST (OVERTIME),77.78,FISCAL YEAR 2013,"","","","DAVIS,SCOTT K"
,CHIEF ADMIN OFCR OF THE HOUSE,2012Q4,PERSONNEL COMPENSATION,"","DAWKINS, JOANN",10/01/12,12/31/12,SR TELECOMM ADMIN,"16,167.00",FISCAL YEAR 2013,"","","","DAWKINS, JOANN"
,CHIEF ADMIN OFCR OF THE HOUSE,2012Q4,PERSONNEL COMPENSATION,"","DAWKINS, JOANN",11/01/12,11/30/12,SR TELECOMM ADMIN (OVERTIME),761.71,FISCAL YEAR 2013,"","","","DAWKINS, JOANN"
,CHIEF ADMIN OFCR OF THE HOUSE,2012Q4,PERSONNEL COMPENSATION,"","DEAN, JOSEPH M",10/01/12,12/31/12,JOURNEYMAN TEXTILE SPEC,"19,894.74",FISCAL YEAR 2013,"","","","DEAN, JOSEPH M"
,CHIEF ADMIN OFCR OF THE HOUSE,2012Q4,PERSONNEL COMPENSATION,"","DEAN, JOSEPH M",11/01/12,11/30/12,JOURNEYMAN TEXTILE SPEC (OVERTIME),286.94,FISCAL YEAR 2013,"","","","DEAN, JOSEPH M"
,CHIEF ADMIN OFCR OF THE HOUSE,2012Q4,PERSONNEL COMPENSATION,"","DEAVER,JAMES",10/01/12,12/31/12,SENIOR SYSTEMS ENGINEER,"31,512.51",FISCAL YEAR 2013,"","","","DEAVER,JAMES"
,CHIEF ADMIN OFCR OF THE HOUSE,2012Q4,PERSONNEL COMPENSATION,"","DELISLE,KALDON A",10/01/12,12/31/12,JOURNEYMAN FURNITURE SPEC,"13,472.01",FISCAL YEAR 2013,"","","","DELISLE,KALDON A"
,CHIEF ADMIN OFCR OF THE HOUSE,2012Q4,PERSONNEL COMPENSATION,"","DELISLE,KALDON A",11/01/12,11/30/12,JOURNEYMAN FURNITURE SPEC. (OVERTIME),485.76,FISCAL YEAR 2013,"","","","DELISLE,KALDON A"
,CHIEF ADMIN OFCR OF THE HOUSE,2012Q4,PERSONNEL COMPENSATION,"","DELUCA, ALAN",10/01/12,12/31/12,COMPUTER FACILITIES OP MGR (A),"34,547.25",FISCAL YEAR 2013,"","","","DELUCA, ALAN"
,CHIEF ADMIN OFCR OF THE HOUSE,2012Q4,PERSONNEL COMPENSATION,"","DENT,RICHARD H",10/01/12,12/31/12,JOURNEYMAN TEXTILE SPEC,"12,115.50",FISCAL YEAR 2013,"","","","DENT,RICHARD H"
,CHIEF ADMIN OFCR OF THE HOUSE,2012Q4,PERSONNEL COMPENSATION,"","DERRICK, SCOTT",10/01/12,12/31/12,GRAPHICS & DESKTOP PUBL SPEC,"22,551.00",FISCAL YEAR 2013,"","","","DERRICK, SCOTT"
,CHIEF ADMIN OFCR OF THE HOUSE,2012Q4,PERSONNEL COMPENSATION,"","DICKIE, JAMES",10/01/12,12/31/12,ENGINEERING OPS MANAGER,"29,853.99",FISCAL YEAR 2013,"","","","DICKIE, JAMES"
,CHIEF ADMIN OFCR OF THE HOUSE,2012Q4,PERSONNEL COMPENSATION,"","DIEFFENDERFER, GARY L",10/01/12,12/31/12,SR. APPLICATION DBA SPECIALIST,"31,512.51",FISCAL YEAR 2013,"","","","DIEFFENDERFER, GARY L"
,CHIEF ADMIN OFCR OF THE HOUSE,2012Q4,PERSONNEL COMPENSATION,"","DOBBINS, MARK",10/01/12,12/31/12,"MANAGER, PURCHASING","22,998.51",FISCAL YEAR 2013,"","","","DOBBINS, MARK"
,CHIEF ADMIN OFCR OF THE HOUSE,2012Q4,PERSONNEL COMPENSATION,"","DONALDSON, KAREN",10/01/12,11/01/12,SR FINANCIAL COUNSELOR,"8,318.51",FISCAL YEAR 2013,"","","","DONALDSON, KAREN"
,CHIEF ADMIN OFCR OF THE HOUSE,2012Q4,PERSONNEL COMPENSATION,"","DONALDSON, KAREN",11/01/12,11/01/12,SR FINANCIAL COUNSELOR (OTHER COMPENSATION),"7,211.61",FISCAL YEAR 2013,"","","","DONALDSON, KAREN"
,CHIEF ADMIN OFCR OF THE HOUSE,2012Q4,PERSONNEL COMPENSATION,"","DOODY,ERICA",10/01/12,12/31/12,ADMINISTRATIVE SPECIALIST,"10,950.50",FISCAL YEAR 2013,"","","","DOODY,ERICA"
,CHIEF ADMIN OFCR OF THE HOUSE,2012Q4,PERSONNEL COMPENSATION,"","DOOLEY,GENEVA",10/01/12,12/31/12,SENIOR SOFTWARE SPECIALIST,"31,882.33",FISCAL YEAR 2013,"","","","DOOLEY,GENEVA"
,CHIEF ADMIN OFCR OF THE HOUSE,2012Q4,PERSONNEL COMPENSATION,"","DOZIER, BRIAN A",10/01/12,12/31/12,INVENTORY ADMINISTRATOR,"14,819.25",FISCAL YEAR 2013,"","","","DOZIER, BRIAN A"
,CHIEF ADMIN OFCR OF THE HOUSE,2012Q4,PERSONNEL COMPENSATION,"","DUENAS, JOSEPH E",10/01/12,12/31/12,TECHNICAL SUPPORT REP,"18,198.59",FISCAL YEAR 2013,"","","","DUENAS, JOSEPH E"
,CHIEF ADMIN OFCR OF THE HOUSE,2012Q4,PERSONNEL COMPENSATION,"","DUNKLIN, KELDA Y",10/01/12,12/31/12,SR TECHNICAL SUPPORT REP,"25,939.74",FISCAL YEAR 2013,"","","","DUNKLIN, KELDA Y"
,CHIEF ADMIN OFCR OF THE HOUSE,2012Q4,PERSONNEL COMPENSATION,"","DUPUIS,TIMOTHY D",10/01/12,12/31/12,ADA AIDE,"6,839.67",FISCAL YEAR 2013,"","","","DUPUIS,TIMOTHY D"
,CHIEF ADMIN OFCR OF THE HOUSE,2012Q4,PERSONNEL COMPENSATION,"","DUPUIS,TIMOTHY D",10/01/12,11/30/12,ADA AIDE (OVERTIME),"2,087.49",FISCAL YEAR 2013,"","","","DUPUIS,TIMOTHY D"
,CHIEF ADMIN OFCR OF THE HOUSE,2012Q4,PERSONNEL COMPENSATION,"","DURAN, ROLANDO",10/01/12,12/31/12,ELECTRONICS TECHNICIAN (A),"21,959.00",FISCAL YEAR 2013,"","","","DURAN, ROLANDO"
,CHIEF ADMIN OFCR OF THE HOUSE,2012Q4,PERSONNEL COMPENSATION,"","DURHAM, SANDRA F",10/01/12,12/31/12,NETWORK OPER BRANCH MGR,"33,938.25",FISCAL YEAR 2013,"","","","DURHAM, SANDRA F"
,CHIEF ADMIN OFCR OF THE HOUSE,2012Q4,PERSONNEL COMPENSATION,"","DURKIN, JEFFREY",10/01/12,12/31/12,SENIOR SYSTEMS ENGINEER,"25,939.74",FISCAL YEAR 2013,"","","","DURKIN, JEFFREY"
,CHIEF ADMIN OFCR OF THE HOUSE,2012Q4,PERSONNEL COMPENSATION,"","EBERLE,DAVID A",10/01/12,11/02/12,TECHNICAL SUPPORT REP,"12,479.50",FISCAL YEAR 2013,"","","","EBERLE,DAVID A"
,CHIEF ADMIN OFCR OF THE HOUSE,2012Q4,PERSONNEL COMPENSATION,"","EGERSON, TROY H",10/01/12,12/31/12,JOURNEYMAN TEXTILE SPEC,"18,123.51",FISCAL YEAR 2013,"","","","EGERSON, TROY H"
,CHIEF ADMIN OFCR OF THE HOUSE,2012Q4,PERSONNEL COMPENSATION,"","ELERY, JR, E J",10/01/12,12/31/12,SENIOR CONTRACTS SPECIALIST,"33,729.51",FISCAL YEAR 2013,"","","","ELERY, JR, E J"
,CHIEF ADMIN OFCR OF THE HOUSE,2012Q4,PERSONNEL COMPENSATION,"","ELIAS, ANDREW C",10/01/12,12/31/12,DEPUTY DIRECTOR,"29,470.74",FISCAL YEAR 2013,"","","","ELIAS, ANDREW C"
,CHIEF ADMIN OFCR OF THE HOUSE,2012Q4,PERSONNEL COMPENSATION,"","ELIAS, ANDREW C",10/01/12,10/31/12,DEPUTY DIRECTOR (OTHER COMPENSATION),"-2,000.00",FISCAL YEAR 2013,"","","","ELIAS, ANDREW C"
,CHIEF ADMIN OFCR OF THE HOUSE,2012Q4,PERSONNEL COMPENSATION,"","ELIAS, ANDREW C",10/01/12,10/31/12,DEPUTY DIRECTOR (OTHER COMPENSATION),"2,000.00",FISCAL YEAR 2013,"","","","ELIAS, ANDREW C"
,CHIEF ADMIN OFCR OF THE HOUSE,2012Q4,PERSONNEL COMPENSATION,"","ELLIN, JAMES B",10/01/12,12/31/12,SR NETWORK SYSTEMS ENGINEER,"28,746.75",FISCAL YEAR 2013,"","","","ELLIN, JAMES B"
,CHIEF ADMIN OFCR OF THE HOUSE,2012Q4,PERSONNEL COMPENSATION,"","ELLIOTT, RONALD",10/01/12,12/31/12,SR INFO SYST. SECURITY ANALYST,"25,044.51",FISCAL YEAR 2013,"","","","ELLIOTT, RONALD"
,CHIEF ADMIN OFCR OF THE HOUSE,2012Q4,PERSONNEL COMPENSATION,"","ELLIS-GREGG, SHARON",10/01/12,12/31/12,PAYROLL & BENEFITS ASSISTANT,"13,798.50",FISCAL YEAR 2013,"","","","ELLIS-GREGG, SHARON"
,CHIEF ADMIN OFCR OF THE HOUSE,2012Q4,PERSONNEL COMPENSATION,"","EMAMALI, NICOLE S",10/01/12,12/31/12,SR TECHNICAL SUPPORT REP,"26,928.51",FISCAL YEAR 2013,"","","","EMAMALI, NICOLE S"
,CHIEF ADMIN OFCR OF THE HOUSE,2012Q4,PERSONNEL COMPENSATION,"","ENGLISH, JOSEPH H",10/01/12,12/31/12,MOBILE COMM SPECIALIST (DATA),"25,044.51",FISCAL YEAR 2013,"","","","ENGLISH, JOSEPH H"
,CHIEF ADMIN OFCR OF THE HOUSE,2012Q4,PERSONNEL COMPENSATION,"","ERVING, JAMES H",10/01/12,12/31/12,COMMUNICATIONS SPECIALIST,"25,939.74",FISCAL YEAR 2013,"","","","ERVING, JAMES H"
,CHIEF ADMIN OFCR OF THE HOUSE,2012Q4,PERSONNEL COMPENSATION,"","EVANS JR, WILLIAM R",10/01/12,12/31/12,ELECTRONICS TECHNICIAN (A),"22,551.00",FISCAL YEAR 2013,"","","","EVANS JR, WILLIAM R"
,CHIEF ADMIN OFCR OF THE HOUSE,2012Q4,PERSONNEL COMPENSATION,"","EVANS JR, WILLIAM R",10/01/12,11/30/12,ELECTRONICS TECHNICIAN (A) (OVERTIME),748.08,FISCAL YEAR 2013,"","","","EVANS JR, WILLIAM R"
,CHIEF ADMIN OFCR OF THE HOUSE,2012Q4,PERSONNEL COMPENSATION,"","EWERS, GRETCHEN",10/01/12,12/31/12,MANAGER,"25,939.74",FISCAL YEAR 2013,"","","","EWERS, GRETCHEN"
,CHIEF ADMIN OFCR OF THE HOUSE,2012Q4,PERSONNEL COMPENSATION,"","EWING JR, JOHN C",10/01/12,12/31/12,RECEIVING/WAREHOUSE SPECIALIST,"10,684.50",FISCAL YEAR 2013,"","","","EWING JR, JOHN C"
,CHIEF ADMIN OFCR OF THE HOUSE,2012Q4,PERSONNEL COMPENSATION,"","FARLEY, JOANN I",10/01/12,12/31/12,FINANCIAL COUNSELOR,"17,735.76",FISCAL YEAR 2013,"","","","FARLEY, JOANN I"
,CHIEF ADMIN OFCR OF THE HOUSE,2012Q4,PERSONNEL COMPENSATION,"","FEHRER, DOUGLAS G",11/27/12,12/03/12,RISK AND INTERNAL CTRL ANALYST,"1,739.15",FISCAL YEAR 2013,"","","","FEHRER, DOUGLAS G"
,CHIEF ADMIN OFCR OF THE HOUSE,2012Q4,PERSONNEL COMPENSATION,"","FIELD, ESTANISLAO",10/01/12,12/31/12,INFO SYSTEMS SECURITY ANALYST,"25,044.51",FISCAL YEAR 2013,"","","","FIELD, ESTANISLAO"
,CHIEF ADMIN OFCR OF THE HOUSE,2012Q4,PERSONNEL COMPENSATION,"","FISHER, JEROME",10/01/12,12/31/12,SR TECH SOLUTIONS ENGINEER,"24,150.51",FISCAL YEAR 2013,"","","","FISHER, JEROME"
,CHIEF ADMIN OFCR OF THE HOUSE,2012Q4,PERSONNEL COMPENSATION,"","FONTNEAU, BRUCE",10/01/12,10/31/12,SR SYSTEMS SUPPORT ENGINEER,"6,923.83",FISCAL YEAR 2013,"","","","FONTNEAU, BRUCE"
,CHIEF ADMIN OFCR OF THE HOUSE,2012Q4,PERSONNEL COMPENSATION,"","FONTNEAU, BRUCE",11/01/12,12/31/12,SYSTEMS ENGINEER,"15,206.00",FISCAL YEAR 2013,"","","","FONTNEAU, BRUCE"
,CHIEF ADMIN OFCR OF THE HOUSE,2012Q4,PERSONNEL COMPENSATION,"","FORD, DARIN J",10/01/12,12/31/12,SR TECHNICAL SUPPORT REP (A),"22,107.00",FISCAL YEAR 2013,"","","","FORD, DARIN J"
,CHIEF ADMIN OFCR OF THE HOUSE,2012Q4,PERSONNEL COMPENSATION,"","FORGIONE, JOHN A",10/01/12,12/31/12,SR CUSTOMER SOLUTIONS REP,"18,513.24",FISCAL YEAR 2013,"","","","FORGIONE, JOHN A"
,CHIEF ADMIN OFCR OF THE HOUSE,2012Q4,PERSONNEL COMPENSATION,"","FOSTER, CHARLES J",10/01/12,12/31/12,PAYROLL & BENEFITS ASSISTANT,"13,031.90",FISCAL YEAR 2013,"","","","FOSTER, CHARLES J"
,CHIEF ADMIN OFCR OF THE HOUSE,2012Q4,PERSONNEL COMPENSATION,"","FOUNTAIN,ANIKA",10/01/12,12/31/12,TECH SOLUTIONS TECHNICIAN,"17,344.26",FISCAL YEAR 2013,"","","","FOUNTAIN,ANIKA"
,CHIEF ADMIN OFCR OF THE HOUSE,2012Q4,PERSONNEL COMPENSATION,"","FRANK, DEBBIE",10/01/12,12/31/12,SR EA COUNSELOR,"28,176.51",FISCAL YEAR 2013,"","","","FRANK, DEBBIE"
,CHIEF ADMIN OFCR OF THE HOUSE,2012Q4,PERSONNEL COMPENSATION,"","FRAVEL,DON J",10/01/12,12/31/12,TECH SOLUTIONS TECHNICIAN,"16,957.26",FISCAL YEAR 2013,"","","","FRAVEL,DON J"
,CHIEF ADMIN OFCR OF THE HOUSE,2012Q4,PERSONNEL COMPENSATION,"","FRECH, JASON L",10/01/12,12/31/12,SR SYSTEMS ENGINEER,"24,538.84",FISCAL YEAR 2013,"","","","FRECH, JASON L"
,CHIEF ADMIN OFCR OF THE HOUSE,2012Q4,PERSONNEL COMPENSATION,"","FREEMAN, ANTOINETTE P",10/01/12,12/31/12,ADMINISTRATIVE SPECIALIST,"14,807.25",FISCAL YEAR 2013,"","","","FREEMAN, ANTOINETTE P"
,CHIEF ADMIN OFCR OF THE HOUSE,2012Q4,PERSONNEL COMPENSATION,"","FREENEY, MALCOLM",10/01/12,12/31/12,PROJECT MANAGER,"25,491.51",FISCAL YEAR 2013,"","","","FREENEY, MALCOLM"
,CHIEF ADMIN OFCR OF THE HOUSE,2012Q4,PERSONNEL COMPENSATION,"","FRENCH, CAROL",10/01/12,12/31/12,PAYROLL & BENEFITS GENERALIST,"18,123.51",FISCAL YEAR 2013,"","","","FRENCH, CAROL"
,CHIEF ADMIN OFCR OF THE HOUSE,2012Q4,PERSONNEL COMPENSATION,"","FRENCH, CHARLES",10/01/12,12/31/12,SENIOR NETWORK TECHNICIAN,"25,044.51",FISCAL YEAR 2013,"","","","FRENCH, CHARLES"
,CHIEF ADMIN OFCR OF THE HOUSE,2012Q4,PERSONNEL COMPENSATION,"","FRITZ,ERIC D",10/01/12,12/31/12,SENIOR SYSTEMS ENGINEER,"26,422.74",FISCAL YEAR 2013,"","","","FRITZ,ERIC D"
,CHIEF ADMIN OFCR OF THE HOUSE,2012Q4,PERSONNEL COMPENSATION,"","GAERTNER, LESLIE C",10/01/12,12/31/12,SR NETWORK COMM SPEC,"28,962.75",FISCAL YEAR 2013,"","","","GAERTNER, LESLIE C"
,CHIEF ADMIN OFCR OF THE HOUSE,2012Q4,PERSONNEL COMPENSATION,"","GAINES, JULIA W",10/01/12,12/31/12,SPECIAL ASSISTANT (A),"24,777.24",FISCAL YEAR 2013,"","","","GAINES, JULIA W"
,CHIEF ADMIN OFCR OF THE HOUSE,2012Q4,PERSONNEL COMPENSATION,"","GALLAGHER, RENEE",10/01/12,12/31/12,SR INFO SYST. SECURITY ANALYST,"25,044.51",FISCAL YEAR 2013,"","","","GALLAGHER, RENEE"
,CHIEF ADMIN OFCR OF THE HOUSE,2012Q4,PERSONNEL COMPENSATION,"","GALLEGOS, JERRY L",10/01/12,12/31/12,SUPERINTENDENT,"34,836.75",FISCAL YEAR 2013,"","","","GALLEGOS, JERRY L"
,CHIEF ADMIN OFCR OF THE HOUSE,2012Q4,PERSONNEL COMPENSATION,"","GALVAN, RICARDO J",10/01/12,10/01/12,INVENTORY AND PLANNING MANAGER,278.27,FISCAL YEAR 2013,"","","","GALVAN, RICARDO J"
,CHIEF ADMIN OFCR OF THE HOUSE,2012Q4,PERSONNEL COMPENSATION,"","GALVAN, RICARDO J",10/01/12,10/01/12,INVENTORY AND PLANNING MANAGER (OTHER COMPENSATION),52.18,FISCAL YEAR 2013,"","","","GALVAN, RICARDO J"
,CHIEF ADMIN OFCR OF THE HOUSE,2012Q4,PERSONNEL COMPENSATION,"","GALVAN, RICARDO J",10/01/12,10/01/12,INVENTORY AND PLANNING MANAGER (OTHER COMPENSATION),"8,348.17",FISCAL YEAR 2013,"","","","GALVAN, RICARDO J"
,CHIEF ADMIN OFCR OF THE HOUSE,2012Q4,PERSONNEL COMPENSATION,"","GARAY, GERMAN",10/01/12,12/31/12,BROADCAST PRODUCTION TECHNICIA,"22,551.00",FISCAL YEAR 2013,"","","","GARAY, GERMAN"
,CHIEF ADMIN OFCR OF THE HOUSE,2012Q4,PERSONNEL COMPENSATION,"","GARAY, GERMAN",11/01/12,11/30/12,BROADCAST PRODUCTION TECHNICIA (OVERTIME),520.40,FISCAL YEAR 2013,"","","","GARAY, GERMAN"
,CHIEF ADMIN OFCR OF THE HOUSE,2012Q4,PERSONNEL COMPENSATION,"","GASKINS, JAMES R",10/01/12,12/31/12,BRANCH MANAGER,"31,512.51",FISCAL YEAR 2013,"","","","GASKINS, JAMES R"
,CHIEF ADMIN OFCR OF THE HOUSE,2012Q4,PERSONNEL COMPENSATION,"","GATES, TRENA F",10/01/12,12/31/12,FINANCIAL COUNSELOR,"20,676.99",FISCAL YEAR 2013,"","","","GATES, TRENA F"
,CHIEF ADMIN OFCR OF THE HOUSE,2012Q4,PERSONNEL COMPENSATION,"","GATES,COREY M",10/01/12,12/31/12,JOURNEYMAN TEXTILE SPEC,"12,786.51",FISCAL YEAR 2013,"","","","GATES,COREY M"
,CHIEF ADMIN OFCR OF THE HOUSE,2012Q4,PERSONNEL COMPENSATION,"","GATES,COREY M",11/01/12,11/30/12,JOURNEYMAN TEXTILE SPEC (OVERTIME),184.42,FISCAL YEAR 2013,"","","","GATES,COREY M"
,CHIEF ADMIN OFCR OF THE HOUSE,2012Q4,PERSONNEL COMPENSATION,"","GATES,THOMAS D",10/01/12,12/31/12,SYSTEMS ENGINEER,"20,771.49",FISCAL YEAR 2013,"","","","GATES,THOMAS D"
,CHIEF ADMIN OFCR OF THE HOUSE,2012Q4,PERSONNEL COMPENSATION,"","GEPERT,DARLA M",10/01/12,12/31/12,ADMINISTRATIVE SPECIALIST (A),"12,115.50",FISCAL YEAR 2013,"","","","GEPERT,DARLA M"
,CHIEF ADMIN OFCR OF THE HOUSE,2012Q4,PERSONNEL COMPENSATION,"","GERARDEN,PAUL J",10/01/12,12/31/12,CUSTOMER SOLUTIONS REP,"13,235.67",FISCAL YEAR 2013,"","","","GERARDEN,PAUL J"
,CHIEF ADMIN OFCR OF THE HOUSE,2012Q4,PERSONNEL COMPENSATION,"","GIZARA, MICHAEL P",10/01/12,12/31/12,SR APPLICATION SECURITY ANALYS,"28,962.75",FISCAL YEAR 2013,"","","","GIZARA, MICHAEL P"
,CHIEF ADMIN OFCR OF THE HOUSE,2012Q4,PERSONNEL COMPENSATION,"","GOGGINS II, JAMES D",10/01/12,12/31/12,NETWORK COMM SPECIALIST (A),"22,551.00",FISCAL YEAR 2013,"","","","GOGGINS II, JAMES D"
,CHIEF ADMIN OFCR OF THE HOUSE,2012Q4,PERSONNEL COMPENSATION,"","GOLDSBOROUGH-LEE, ANGEL M",10/01/12,12/31/12,"DIR, TECH MGT & INTERNAL CTRLS","33,938.25",FISCAL YEAR 2013,"","","","GOLDSBOROUGH-LEE, ANGEL M"
,CHIEF ADMIN OFCR OF THE HOUSE,2012Q4,PERSONNEL COMPENSATION,"","GONZALEZ, ROSARIO D",10/01/12,12/31/12,SR CUSTOMER SOLUTIONS REP,"19,502.49",FISCAL YEAR 2013,"","","","GONZALEZ, ROSARIO D"
,CHIEF ADMIN OFCR OF THE HOUSE,2012Q4,PERSONNEL COMPENSATION,"","GOULD, MICHAEL",10/01/12,12/31/12,"MANAGER, REMEDY MANAGEMENT","28,930.83",FISCAL YEAR 2013,"","","","GOULD, MICHAEL"
,CHIEF ADMIN OFCR OF THE HOUSE,2012Q4,PERSONNEL COMPENSATION,"","GRAEUB, ANDREW C",10/01/12,12/31/12,"MANAGER, NETWORK SYST ENGINEER","33,323.25",FISCAL YEAR 2013,"","","","GRAEUB, ANDREW C"
,CHIEF ADMIN OFCR OF THE HOUSE,2012Q4,PERSONNEL COMPENSATION,"","GREEN, CAROLINE",10/01/12,12/31/12,TECHNICAL SUPPORT REP (A),"17,735.76",FISCAL YEAR 2013,"","","","GREEN, CAROLINE"
,CHIEF ADMIN OFCR OF THE HOUSE,2012Q4,PERSONNEL COMPENSATION,"","GREEN, MITCHELL",10/01/12,12/31/12,CONTRACT ADMINISTRATOR,"32,067.24",FISCAL YEAR 2013,"","","","GREEN, MITCHELL"
,CHIEF ADMIN OFCR OF THE HOUSE,2012Q4,PERSONNEL COMPENSATION,"","GREEN,ANDREW L",10/01/12,12/31/12,TECHNICAL SUPPORT REP,"16,569.24",FISCAL YEAR 2013,"","","","GREEN,ANDREW L"
,CHIEF ADMIN OFCR OF THE HOUSE,2012Q4,PERSONNEL COMPENSATION,"","GREENE, CHANTEL T",10/01/12,12/31/12,MGR BUS SYS AND INTEGRATION,"34,547.25",FISCAL YEAR 2013,"","","","GREENE, CHANTEL T"
,CHIEF ADMIN OFCR OF THE HOUSE,2012Q4,PERSONNEL COMPENSATION,"","GRIGGS,KYLE R",10/01/12,12/31/12,CONTRACTS SUPPORT ADMIN,"13,809.24",FISCAL YEAR 2013,"","","","GRIGGS,KYLE R"
,CHIEF ADMIN OFCR OF THE HOUSE,2012Q4,PERSONNEL COMPENSATION,"","GRISWOLD,RAYMOND",10/01/12,12/31/12,"DIRECTOR, ACQ & CONTRACT MGMT","32,714.49",FISCAL YEAR 2013,"","","","GRISWOLD,RAYMOND"
,CHIEF ADMIN OFCR OF THE HOUSE,2012Q4,PERSONNEL COMPENSATION,"","GRONSKI,ROBERT S",10/01/12,12/31/12,SR BUSINESS PROCESS APPL SPEC,"29,668.99",FISCAL YEAR 2013,"","","","GRONSKI,ROBERT S"
,CHIEF ADMIN OFCR OF THE HOUSE,2012Q4,PERSONNEL COMPENSATION,"","GUARNERO,DAVID P",10/09/12,10/31/12,STAFF ASSISTANT,"3,764.87",FISCAL YEAR 2013,"","","","GUARNERO,DAVID P"
,CHIEF ADMIN OFCR OF THE HOUSE,2012Q4,PERSONNEL COMPENSATION,"","GUARNERO,DAVID P",11/01/12,12/31/12,PAYROLL & BENEFITS GENERALIST,"10,267.84",FISCAL YEAR 2013,"","","","GUARNERO,DAVID P"
,CHIEF ADMIN OFCR OF THE HOUSE,2012Q4,PERSONNEL COMPENSATION,"","GUARNERO,DAVID P",11/01/12,11/30/12,PAYROLL & BENEFITS GENERALIST (OVERTIME),59.24,FISCAL YEAR 2013,"","","","GUARNERO,DAVID P"
,CHIEF ADMIN OFCR OF THE HOUSE,2012Q4,PERSONNEL COMPENSATION,"","GUDURU,PRATAP K",10/01/12,12/31/12,SENIOR SYSTEMS ENGINEER,"30,960.24",FISCAL YEAR 2013,"","","","GUDURU,PRATAP K"
,CHIEF ADMIN OFCR OF THE HOUSE,2012Q4,PERSONNEL COMPENSATION,"","GUGLIOTTA,NORMAN",10/01/12,12/31/12,FINANCIAL COUNSELOR (A),"15,789.00",FISCAL YEAR 2013,"","","","GUGLIOTTA,NORMAN"
,CHIEF ADMIN OFCR OF THE HOUSE,2012Q4,PERSONNEL COMPENSATION,"","HALL,MORGAN",10/01/12,12/31/12,FACILITIES MANAGEMENT SPECIALI,"16,569.24",FISCAL YEAR 2013,"","","","HALL,MORGAN"
,CHIEF ADMIN OFCR OF THE HOUSE,2012Q4,PERSONNEL COMPENSATION,"","HAMBRIC, STEEN H",10/01/12,12/31/12,ASSISTANT CAO,"42,102.75",FISCAL YEAR 2013,"","","","HAMBRIC, STEEN H"
,CHIEF ADMIN OFCR OF THE HOUSE,2012Q4,PERSONNEL COMPENSATION,"","HAMEL,RYAN T",10/01/12,12/31/12,THIRD ASSISTANT,"16,179.24",FISCAL YEAR 2013,"","","","HAMEL,RYAN T"
,CHIEF ADMIN OFCR OF THE HOUSE,2012Q4,PERSONNEL COMPENSATION,"","HAMNER, PHILIP D",10/01/12,12/31/12,"DIRECTOR, ACCOUNTING","35,775.51",FISCAL YEAR 2013,"","","","HAMNER, PHILIP D"
,CHIEF ADMIN OFCR OF THE HOUSE,2012Q4,PERSONNEL COMPENSATION,"","HANCOCK, TERRY L",10/01/12,12/31/12,SR INFO SYST. SECURITY ANALYST,"31,512.51",FISCAL YEAR 2013,"","","","HANCOCK, TERRY L"
,CHIEF ADMIN OFCR OF THE HOUSE,2012Q4,PERSONNEL COMPENSATION,"","HANEY, WINSTON",10/01/12,12/31/12,ACCOUNT MANAGEMENT COUNSELOR,"13,798.50",FISCAL YEAR 2013,"","","","HANEY, WINSTON"
,CHIEF ADMIN OFCR OF THE HOUSE,2012Q4,PERSONNEL COMPENSATION,"","HANEY, WINSTON",11/01/12,11/30/12,ACCOUNT MANAGEMENT COUNSELOR (OVERTIME),238.82,FISCAL YEAR 2013,"","","","HANEY, WINSTON"
,CHIEF ADMIN OFCR OF THE HOUSE,2012Q4,PERSONNEL COMPENSATION,"","HANONU, TINA M",10/01/12,12/31/12,ASSISTANT CAO,"42,102.75",FISCAL YEAR 2013,"","","","HANONU, TINA M"
,CHIEF ADMIN OFCR OF THE HOUSE,2012Q4,PERSONNEL COMPENSATION,"","HAQ,RABIA",10/01/12,12/31/12,BUSINESS PROC APPLIC SPEC,"22,809.00",FISCAL YEAR 2013,"","","","HAQ,RABIA"
,CHIEF ADMIN OFCR OF THE HOUSE,2012Q4,PERSONNEL COMPENSATION,"","HARDY, MARGUERITA P",10/01/12,12/31/12,CUSTOMER SOLUTIONS REP,"13,798.50",FISCAL YEAR 2013,"","","","HARDY, MARGUERITA P"
,CHIEF ADMIN OFCR OF THE HOUSE,2012Q4,PERSONNEL COMPENSATION,"","HARGROVE, BRIAN",10/01/12,12/31/12,LOGISTICS & DIST SPEC (A),"10,095.75",FISCAL YEAR 2013,"","","","HARGROVE, BRIAN"
,CHIEF ADMIN OFCR OF THE HOUSE,2012Q4,PERSONNEL COMPENSATION,"","HARRINGTON, KEITH",10/01/12,12/31/12,FINANCIAL COUNSELOR,"22,639.26",FISCAL YEAR 2013,"","","","HARRINGTON, KEITH"
,CHIEF ADMIN OFCR OF THE HOUSE,2012Q4,PERSONNEL COMPENSATION,"","HARRIS, DONALD",10/01/12,12/31/12,SR NETWORK COMM SPECIALIST,"28,454.01",FISCAL YEAR 2013,"","","","HARRIS, DONALD"
,CHIEF ADMIN OFCR OF THE HOUSE,2012Q4,PERSONNEL COMPENSATION,"","HARRIS, KEVIN",10/01/12,12/31/12,JOURNEYMAN FURNITURE SPEC,"18,903.24",FISCAL YEAR 2013,"","","","HARRIS, KEVIN"
,CHIEF ADMIN OFCR OF THE HOUSE,2012Q4,PERSONNEL COMPENSATION,"","HARRIS, KEVIN",11/01/12,11/30/12,JOURNEYMAN FURNITURE SPEC. (OVERTIME),408.96,FISCAL YEAR 2013,"","","","HARRIS, KEVIN"
,CHIEF ADMIN OFCR OF THE HOUSE,2012Q4,PERSONNEL COMPENSATION,"","HARRIS, STEPHANIE A",10/01/12,12/31/12,SR BUSINESS PROC APPL SPEC II,"42,102.75",FISCAL YEAR 2013,"","","","HARRIS, STEPHANIE A"
,CHIEF ADMIN OFCR OF THE HOUSE,2012Q4,PERSONNEL COMPENSATION,"","HARVEY, JAMIE",10/01/12,12/31/12,SR TELECOMMUNICATIONS ADMIN (A,"16,167.00",FISCAL YEAR 2013,"","","","HARVEY, JAMIE"
,CHIEF ADMIN OFCR OF THE HOUSE,2012Q4,PERSONNEL COMPENSATION,"","HARVEY, JAMIE",11/01/12,11/30/12,SR TELECOMMUNICATIONS ADMIN (A (OVERTIME),621.80,FISCAL YEAR 2013,"","","","HARVEY, JAMIE"
,CHIEF ADMIN OFCR OF THE HOUSE,2012Q4,PERSONNEL COMPENSATION,"","HARVEY,KINSEY B",10/01/12,12/31/12,MEDIA LOGISTICS COORDINATOR,"15,530.84",FISCAL YEAR 2013,"","","","HARVEY,KINSEY B"
,CHIEF ADMIN OFCR OF THE HOUSE,2012Q4,PERSONNEL COMPENSATION,"","HARVEY,KINSEY B",10/01/12,10/31/12,MEDIA LOGISTICS COORDINATOR (OTHER COMPENSATION),"-1,500.00",FISCAL YEAR 2013,"","","","HARVEY,KINSEY B"
,CHIEF ADMIN OFCR OF THE HOUSE,2012Q4,PERSONNEL COMPENSATION,"","HARVEY,KINSEY B",10/01/12,10/31/12,MEDIA LOGISTICS COORDINATOR (OTHER COMPENSATION),"1,500.00",FISCAL YEAR 2013,"","","","HARVEY,KINSEY B"
,CHIEF ADMIN OFCR OF THE HOUSE,2012Q4,PERSONNEL COMPENSATION,"","HAYES,KATHLEEN M",10/01/12,12/31/12,CUSTOMER SOLUTIONS REP,"14,148.00",FISCAL YEAR 2013,"","","","HAYES,KATHLEEN M"
,CHIEF ADMIN OFCR OF THE HOUSE,2012Q4,PERSONNEL COMPENSATION,"","HAYES,MICHELLE P",10/01/12,12/31/12,SENIOR SYSTEMS ENGINEER,"30,960.24",FISCAL YEAR 2013,"","","","HAYES,MICHELLE P"
,CHIEF ADMIN OFCR OF THE HOUSE,2012Q4,PERSONNEL COMPENSATION,"","HEEB III, JOHN J",10/01/12,12/31/12,SR BUSINESS PROCESS APPL SPEC,"33,729.51",FISCAL YEAR 2013,"","","","HEEB III, JOHN J"
,CHIEF ADMIN OFCR OF THE HOUSE,2012Q4,PERSONNEL COMPENSATION,"","HERBERT, GREGORY L",10/01/12,12/31/12,REC/WAREHOUSE SPEC (A),"12,029.49",FISCAL YEAR 2013,"","","","HERBERT, GREGORY L"
,CHIEF ADMIN OFCR OF THE HOUSE,2012Q4,PERSONNEL COMPENSATION,"","HERBERT, GREGORY L",11/01/12,11/30/12,REC/WAREHOUSE SPEC (A) (OVERTIME),225.55,FISCAL YEAR 2013,"","","","HERBERT, GREGORY L"
,CHIEF ADMIN OFCR OF THE HOUSE,2012Q4,PERSONNEL COMPENSATION,"","HIBBS, CYNTHIA",10/01/12,12/31/12,NETWORK COORDINATOR (A),"18,903.24",FISCAL YEAR 2013,"","","","HIBBS, CYNTHIA"
,CHIEF ADMIN OFCR OF THE HOUSE,2012Q4,PERSONNEL COMPENSATION,"","HILL, TITRA M",10/01/12,12/31/12,RECEPTIONIST,"13,460.01",FISCAL YEAR 2013,"","","","HILL, TITRA M"
,CHIEF ADMIN OFCR OF THE HOUSE,2012Q4,PERSONNEL COMPENSATION,"","HIRSCH, PATRICK A",10/01/12,12/31/12,DIR-HOUSE RECORDING STUDIO,"39,794.25",FISCAL YEAR 2013,"","","","HIRSCH, PATRICK A"
,CHIEF ADMIN OFCR OF THE HOUSE,2012Q4,PERSONNEL COMPENSATION,"","HITE,JASON A",10/01/12,12/31/12,CHIEF HUMAN RESOURCES OFFICER,"35,160.75",FISCAL YEAR 2013,"","","","HITE,JASON A"
,CHIEF ADMIN OFCR OF THE HOUSE,2012Q4,PERSONNEL COMPENSATION,"","HOANG, CHI PHUONG N",10/01/12,12/31/12,SR BUSINESS PROCESS APPL SPEC,"26,082.74",FISCAL YEAR 2013,"","","","HOANG, CHI PHUONG N"
,CHIEF ADMIN OFCR OF THE HOUSE,2012Q4,PERSONNEL COMPENSATION,"","HOBBS, DENINE",10/01/12,12/31/12,SPECIAL ASSISTANT,"24,595.50",FISCAL YEAR 2013,"","","","HOBBS, DENINE"
,CHIEF ADMIN OFCR OF THE HOUSE,2012Q4,PERSONNEL COMPENSATION,"","HODGES, JOHN E",10/01/12,12/31/12,"MANAGER, SALES & CUSTOMER SVC","24,777.24",FISCAL YEAR 2013,"","","","HODGES, JOHN E"
,CHIEF ADMIN OFCR OF THE HOUSE,2012Q4,PERSONNEL COMPENSATION,"","HOKHOLD, MARK D",10/01/12,12/31/12,SYSTEMS ENGINEER,"24,595.50",FISCAL YEAR 2013,"","","","HOKHOLD, MARK D"
,CHIEF ADMIN OFCR OF THE HOUSE,2012Q4,PERSONNEL COMPENSATION,"","HOLAU,GEORGE",10/01/12,12/31/12,FINANCIAL COUNSELOR,"20,286.24",FISCAL YEAR 2013,"","","","HOLAU,GEORGE"
,CHIEF ADMIN OFCR OF THE HOUSE,2012Q4,PERSONNEL COMPENSATION,"","HOLLAND, GREGORY",10/01/12,12/31/12,LOGISTICS & DIST SPEC (A),"11,274.00",FISCAL YEAR 2013,"","","","HOLLAND, GREGORY"
,CHIEF ADMIN OFCR OF THE HOUSE,2012Q4,PERSONNEL COMPENSATION,"","HOLLEY, STEVEN M",10/01/12,12/31/12,LOGISTICS & DIST SPEC (A),"10,980.00",FISCAL YEAR 2013,"","","","HOLLEY, STEVEN M"
,CHIEF ADMIN OFCR OF THE HOUSE,2012Q4,PERSONNEL COMPENSATION,"","HOLLIWAY, MONROE",10/01/12,12/31/12,LOGISTICS & DIST SPEC (A),"10,684.50",FISCAL YEAR 2013,"","","","HOLLIWAY, MONROE"
,CHIEF ADMIN OFCR OF THE HOUSE,2012Q4,PERSONNEL COMPENSATION,"","HOLMBERG, BARBARA A",10/01/12,12/31/12,PAYROLL & BENEFITS ASSISTANT,"14,807.25",FISCAL YEAR 2013,"","","","HOLMBERG, BARBARA A"
,CHIEF ADMIN OFCR OF THE HOUSE,2012Q4,PERSONNEL COMPENSATION,"","HORNBURG, RICHARD A",10/01/12,12/31/12,BUSINESS PROC APPLIC SPEC,"27,437.01",FISCAL YEAR 2013,"","","","HORNBURG, RICHARD A"
,CHIEF ADMIN OFCR OF THE HOUSE,2012Q4,PERSONNEL COMPENSATION,"","HORTON, ALFREDDA L",10/01/12,12/31/12,ASSISTANT CAO,"42,102.75",FISCAL YEAR 2013,"","","","HORTON, ALFREDDA L"
,CHIEF ADMIN OFCR OF THE HOUSE,2012Q4,PERSONNEL COMPENSATION,"","HOWARD, ANTHONY T",10/01/12,12/31/12,JOURNEYMAN TEXTILE SPEC,"16,505.25",FISCAL YEAR 2013,"","","","HOWARD, ANTHONY T"
,CHIEF ADMIN OFCR OF THE HOUSE,2012Q4,PERSONNEL COMPENSATION,"","HUGHES, MICHAEL A",10/01/12,12/31/12,FINANCIAL COUNSELOR,"15,491.01",FISCAL YEAR 2013,"","","","HUGHES, MICHAEL A"
,CHIEF ADMIN OFCR OF THE HOUSE,2012Q4,PERSONNEL COMPENSATION,"","HUGHES, RICHARD N",10/01/12,12/31/12,SENIOR AUDIO SPECIALIST,"29,470.74",FISCAL YEAR 2013,"","","","HUGHES, RICHARD N"
,CHIEF ADMIN OFCR OF THE HOUSE,2012Q4,PERSONNEL COMPENSATION,"","HUNT,DANIEL",10/01/12,12/31/12,SR NETWORK COMM SPECIALIST,"30,405.24",FISCAL YEAR 2013,"","","","HUNT,DANIEL"
,CHIEF ADMIN OFCR OF THE HOUSE,2012Q4,PERSONNEL COMPENSATION,"","HUNTER, PAMELA A",10/01/12,11/02/12,PROGRAM MANAGER,"9,574.58",FISCAL YEAR 2013,"","","","HUNTER, PAMELA A"
,CHIEF ADMIN OFCR OF THE HOUSE,2012Q4,PERSONNEL COMPENSATION,"","HUNTER, PAMELA A",11/01/12,11/02/12,PROGRAM MANAGER (OTHER COMPENSATION),"1,944.84",FISCAL YEAR 2013,"","","","HUNTER, PAMELA A"
,CHIEF ADMIN OFCR OF THE HOUSE,2012Q4,PERSONNEL COMPENSATION,"","HUNTER, STEVE",10/01/12,12/31/12,ACCOUNT MANAGEMENT COUNSELOR,"13,460.01",FISCAL YEAR 2013,"","","","HUNTER, STEVE"
,CHIEF ADMIN OFCR OF THE HOUSE,2012Q4,PERSONNEL COMPENSATION,"","HUNTER, STEVE",11/01/12,11/30/12,ACCOUNT MANAGEMENT COUNSELOR (OVERTIME),368.85,FISCAL YEAR 2013,"","","","HUNTER, STEVE"
,CHIEF ADMIN OFCR OF THE HOUSE,2012Q4,PERSONNEL COMPENSATION,"","HURDA, JACQUELINE L",10/01/12,12/31/12,FINANCIAL COUNSELOR (A),"19,502.49",FISCAL YEAR 2013,"","","","HURDA, JACQUELINE L"
,CHIEF ADMIN OFCR OF THE HOUSE,2012Q4,PERSONNEL COMPENSATION,"","ILOG,ANGELA M",10/01/12,12/31/12,CONTRACTS SUPPORT ADMIN,"13,809.24",FISCAL YEAR 2013,"","","","ILOG,ANGELA M"
,CHIEF ADMIN OFCR OF THE HOUSE,2012Q4,PERSONNEL COMPENSATION,"","JACKSON, REGGIE",10/01/12,12/31/12,SR TECHNICAL SUPPORT REP (A),"23,256.00",FISCAL YEAR 2013,"","","","JACKSON, REGGIE"
,CHIEF ADMIN OFCR OF THE HOUSE,2012Q4,PERSONNEL COMPENSATION,"","JACKSON, TREVERA R",10/01/12,12/31/12,SYSTEMS ENGINEER,"22,639.26",FISCAL YEAR 2013,"","","","JACKSON, TREVERA R"
,CHIEF ADMIN OFCR OF THE HOUSE,2012Q4,PERSONNEL COMPENSATION,"","JACKSON, WANDA J",10/01/12,12/31/12,TELECOMMUNICATIONS BRANCH MNGR,"25,912.74",FISCAL YEAR 2013,"","","","JACKSON, WANDA J"
,CHIEF ADMIN OFCR OF THE HOUSE,2012Q4,PERSONNEL COMPENSATION,"","JACOBSON, BRADLEY J",10/01/12,12/31/12,BRANCH MANAGER,"33,938.25",FISCAL YEAR 2013,"","","","JACOBSON, BRADLEY J"
,CHIEF ADMIN OFCR OF THE HOUSE,2012Q4,PERSONNEL COMPENSATION,"","JANIFER, ROLAND S",10/01/12,12/31/12,"SUPERVISOR,LOGIS & DIST (A)","17,735.76",FISCAL YEAR 2013,"","","","JANIFER, ROLAND S"
,CHIEF ADMIN OFCR OF THE HOUSE,2012Q4,PERSONNEL COMPENSATION,"","JECKO,BRITTANY E",10/01/12,12/31/12,HUMAN RESOURCES GENERALIST,"15,401.76",FISCAL YEAR 2013,"","","","JECKO,BRITTANY E"
,CHIEF ADMIN OFCR OF THE HOUSE,2012Q4,PERSONNEL COMPENSATION,"","JEFFERSON,KENYATTA",10/01/12,12/31/12,TECH SOLUTIONS ENGINEER,"16,179.24",FISCAL YEAR 2013,"","","","JEFFERSON,KENYATTA"
,CHIEF ADMIN OFCR OF THE HOUSE,2012Q4,PERSONNEL COMPENSATION,"","JENKINS, JAMES",10/01/12,12/31/12,WORKFLOW COORDINATOR,"18,903.24",FISCAL YEAR 2013,"","","","JENKINS, JAMES"
,CHIEF ADMIN OFCR OF THE HOUSE,2012Q4,PERSONNEL COMPENSATION,"","JENNINGS, ARACELI",10/01/12,12/31/12,FINANCIAL ASSISTANT,"16,505.25",FISCAL YEAR 2013,"","","","JENNINGS, ARACELI"
,CHIEF ADMIN OFCR OF THE HOUSE,2012Q4,PERSONNEL COMPENSATION,"","JENSEN,CHRISTINE",10/01/12,12/31/12,PROGRAM ASSISTANT (WWP),"23,704.50",FISCAL YEAR 2013,"","","","JENSEN,CHRISTINE"
,CHIEF ADMIN OFCR OF THE HOUSE,2012Q4,PERSONNEL COMPENSATION,"","JOHANN, DEREK",10/01/12,12/31/12,SR RECEIVING & WAREHOUSIN SPEC,"16,505.25",FISCAL YEAR 2013,"","","","JOHANN, DEREK"
,CHIEF ADMIN OFCR OF THE HOUSE,2012Q4,PERSONNEL COMPENSATION,"","JOHANN, DEREK",11/01/12,11/30/12,SR RECEIVING & WAREHOUSIN SPEC (OVERTIME),380.89,FISCAL YEAR 2013,"","","","JOHANN, DEREK"
,CHIEF ADMIN OFCR OF THE HOUSE,2012Q4,PERSONNEL COMPENSATION,"","JOHNSON, ANDRE",10/01/12,12/31/12,APPLICATION DBA SPECIALIST,"22,551.00",FISCAL YEAR 2013,"","","","JOHNSON, ANDRE"
,CHIEF ADMIN OFCR OF THE HOUSE,2012Q4,PERSONNEL COMPENSATION,"","JOHNSON, DWAYNE",10/01/12,12/31/12,RETAIL INVENTORY SPECIALIST,"14,246.66",FISCAL YEAR 2013,"","","","JOHNSON, DWAYNE"
,CHIEF ADMIN OFCR OF THE HOUSE,2012Q4,PERSONNEL COMPENSATION,"","JOHNSON, ERIC C",10/01/12,12/31/12,LOGISTICS & DIST SPEC (A),"10,636.23",FISCAL YEAR 2013,"","","","JOHNSON, ERIC C"
,CHIEF ADMIN OFCR OF THE HOUSE,2012Q4,PERSONNEL COMPENSATION,"","JOHNSON, MARGARET K",10/01/12,12/31/12,SR MODULAR FURNITURE SPEC,"17,215.26",FISCAL YEAR 2013,"","","","JOHNSON, MARGARET K"
,CHIEF ADMIN OFCR OF THE HOUSE,2012Q4,PERSONNEL COMPENSATION,"","JOHNSON, REGINALD",10/01/12,12/31/12,FINANCIAL COUNSELOR (A),"16,957.26",FISCAL YEAR 2013,"","","","JOHNSON, REGINALD"
,CHIEF ADMIN OFCR OF THE HOUSE,2012Q4,PERSONNEL COMPENSATION,"","JOHNSON, ROBERT C",10/01/12,12/31/12,SENIOR SYSTEMS ENGINEER,"29,470.74",FISCAL YEAR 2013,"","","","JOHNSON, ROBERT C"
,CHIEF ADMIN OFCR OF THE HOUSE,2012Q4,PERSONNEL COMPENSATION,"","JOHNSON, STEPHEN R",10/01/12,12/31/12,AUDIO SPECIALIST,"25,044.51",FISCAL YEAR 2013,"","","","JOHNSON, STEPHEN R"
,CHIEF ADMIN OFCR OF THE HOUSE,2012Q4,PERSONNEL COMPENSATION,"","JOHNSON, STEPHEN R",11/01/12,11/30/12,AUDIO SPECIALIST (OVERTIME),216.73,FISCAL YEAR 2013,"","","","JOHNSON, STEPHEN R"
,CHIEF ADMIN OFCR OF THE HOUSE,2012Q4,PERSONNEL COMPENSATION,"","JOHNSON,KWASI Z",10/01/12,12/31/12,LOGISTICS & DIST SPEC (A),"8,751.24",FISCAL YEAR 2013,"","","","JOHNSON,KWASI Z"
,CHIEF ADMIN OFCR OF THE HOUSE,2012Q4,PERSONNEL COMPENSATION,"","JOLICOEUR,VICTORIA J",10/01/12,12/31/12,CONTRACT ADMINISTRATOR,"19,877.25",FISCAL YEAR 2013,"","","","JOLICOEUR,VICTORIA J"
,CHIEF ADMIN OFCR OF THE HOUSE,2012Q4,PERSONNEL COMPENSATION,"","JONES III,CLARENCE",10/01/12,12/31/12,SENIOR NETWORK TECHNICIAN,"18,980.25",FISCAL YEAR 2013,"","","","JONES III,CLARENCE"
,CHIEF ADMIN OFCR OF THE HOUSE,2012Q4,PERSONNEL COMPENSATION,"","JONES JR, CHARLES J",10/01/12,12/31/12,NETWORK COMM SPECIALIST,"23,704.50",FISCAL YEAR 2013,"","","","JONES JR, CHARLES J"
,CHIEF ADMIN OFCR OF THE HOUSE,2012Q4,PERSONNEL COMPENSATION,"","JONES, DEBORAH D",10/01/12,12/31/12,FINANCIAL COUNSELOR,"21,069.99",FISCAL YEAR 2013,"","","","JONES, DEBORAH D"
,CHIEF ADMIN OFCR OF THE HOUSE,2012Q4,PERSONNEL COMPENSATION,"","JONES, MITCHAEL",10/01/12,12/31/12,TECHNICAL TRAINER,"19,894.74",FISCAL YEAR 2013,"","","","JONES, MITCHAEL"
,CHIEF ADMIN OFCR OF THE HOUSE,2012Q4,PERSONNEL COMPENSATION,"","JONES, STEPHEN E",10/01/12,12/31/12,SENIOR SYSTEMS ENGINEER,"29,853.99",FISCAL YEAR 2013,"","","","JONES, STEPHEN E"
,CHIEF ADMIN OFCR OF THE HOUSE,2012Q4,PERSONNEL COMPENSATION,"","JONES, WESLEY D",10/01/12,12/31/12,LOGISTICS & DIST SPEC (A),"10,980.00",FISCAL YEAR 2013,"","","","JONES, WESLEY D"
,CHIEF ADMIN OFCR OF THE HOUSE,2012Q4,PERSONNEL COMPENSATION,"","JONES,RODNEY B",10/01/12,12/31/12,SR TECHNICAL SUPPORT REP,"20,919.24",FISCAL YEAR 2013,"","","","JONES,RODNEY B"
,CHIEF ADMIN OFCR OF THE HOUSE,2012Q4,PERSONNEL COMPENSATION,"","JONES,YOLANDA S",10/01/12,12/31/12,PAYROLL & BENEFITS GENERALIST,"15,401.76",FISCAL YEAR 2013,"","","","JONES,YOLANDA S"
,CHIEF ADMIN OFCR OF THE HOUSE,2012Q4,PERSONNEL COMPENSATION,"","JONES,YOLANDA S",11/01/12,11/30/12,PAYROLL & BENEFITS GENERALIST (OVERTIME),473.89,FISCAL YEAR 2013,"","","","JONES,YOLANDA S"
,CHIEF ADMIN OFCR OF THE HOUSE,2012Q4,PERSONNEL COMPENSATION,"","JORDAN, YONG O",10/01/12,12/31/12,SR TECH SOLUTIONS ENGINEER,"24,150.51",FISCAL YEAR 2013,"","","","JORDAN, YONG O"
,CHIEF ADMIN OFCR OF THE HOUSE,2012Q4,PERSONNEL COMPENSATION,"","JOYCE, ERIC",10/01/12,12/31/12,SUPERVISOR,"27,946.26",FISCAL YEAR 2013,"","","","JOYCE, ERIC"
,CHIEF ADMIN OFCR OF THE HOUSE,2012Q4,PERSONNEL COMPENSATION,"","JUDGE, NANCY",10/01/12,12/31/12,CUSTOMER SOLUTIONS REP,"15,155.76",FISCAL YEAR 2013,"","","","JUDGE, NANCY"
,CHIEF ADMIN OFCR OF THE HOUSE,2012Q4,PERSONNEL COMPENSATION,"","KAESER, STEVEN W",10/01/12,12/31/12,SENIOR SYSTEMS ENGINEER,"28,454.01",FISCAL YEAR 2013,"","","","KAESER, STEVEN W"
,CHIEF ADMIN OFCR OF THE HOUSE,2012Q4,PERSONNEL COMPENSATION,"","KAHLER, KENT",10/01/12,12/31/12,SYSTEMS ENGINEER,"25,044.51",FISCAL YEAR 2013,"","","","KAHLER, KENT"
,CHIEF ADMIN OFCR OF THE HOUSE,2012Q4,PERSONNEL COMPENSATION,"","KAPLAN,LEAH",10/01/12,12/31/12,MEDIA LOGISTICS ASSISTANT,"11,777.49",FISCAL YEAR 2013,"","","","KAPLAN,LEAH"
,CHIEF ADMIN OFCR OF THE HOUSE,2012Q4,PERSONNEL COMPENSATION,"","KAPLAN,LEAH",10/01/12,10/31/12,MEDIA LOGISTICS ASSISTANT (OTHER COMPENSATION),"-1,000.00",FISCAL YEAR 2013,"","","","KAPLAN,LEAH"
,CHIEF ADMIN OFCR OF THE HOUSE,2012Q4,PERSONNEL COMPENSATION,"","KAPLAN,LEAH",10/01/12,10/31/12,MEDIA LOGISTICS ASSISTANT (OTHER COMPENSATION),"1,000.00",FISCAL YEAR 2013,"","","","KAPLAN,LEAH"
,CHIEF ADMIN OFCR OF THE HOUSE,2012Q4,PERSONNEL COMPENSATION,"","KEANE, MICHAEL T",10/01/12,12/31/12,"MANAGER, WORKFLOW MANAGEMENT","22,360.50",FISCAL YEAR 2013,"","","","KEANE, MICHAEL T"
,CHIEF ADMIN OFCR OF THE HOUSE,2012Q4,PERSONNEL COMPENSATION,"","KELLAHER,ANTHONY",10/01/12,12/31/12,MEDIA LOGISTICS COORDINATOR,"17,675.59",FISCAL YEAR 2013,"","","","KELLAHER,ANTHONY"
,CHIEF ADMIN OFCR OF THE HOUSE,2012Q4,PERSONNEL COMPENSATION,"","KELLAHER,ANTHONY",10/01/12,10/31/12,MEDIA LOGISTICS COORDINATOR (OTHER COMPENSATION),"-1,500.00",FISCAL YEAR 2013,"","","","KELLAHER,ANTHONY"
,CHIEF ADMIN OFCR OF THE HOUSE,2012Q4,PERSONNEL COMPENSATION,"","KELLAHER,ANTHONY",10/01/12,10/31/12,MEDIA LOGISTICS COORDINATOR (OTHER COMPENSATION),"1,500.00",FISCAL YEAR 2013,"","","","KELLAHER,ANTHONY"
,CHIEF ADMIN OFCR OF THE HOUSE,2012Q4,PERSONNEL COMPENSATION,"","KELLEY, KEVIN S",10/01/12,12/31/12,CUSTOMER SOLUTIONS REP,"16,167.00",FISCAL YEAR 2013,"","","","KELLEY, KEVIN S"
,CHIEF ADMIN OFCR OF THE HOUSE,2012Q4,PERSONNEL COMPENSATION,"","KELLEY, KEVIN S",11/01/12,11/30/12,CUSTOMER SOLUTIONS REP. (OVERTIME),128.25,FISCAL YEAR 2013,"","","","KELLEY, KEVIN S"
,CHIEF ADMIN OFCR OF THE HOUSE,2012Q4,PERSONNEL COMPENSATION,"","KELLEY, MARY M",10/01/12,12/31/12,RESOURCE MANAGER,"28,962.75",FISCAL YEAR 2013,"","","","KELLEY, MARY M"
,CHIEF ADMIN OFCR OF THE HOUSE,2012Q4,PERSONNEL COMPENSATION,"","KELLEY, TARA A",10/01/12,12/31/12,COMMUNICATIONS SPEC (A),"20,676.99",FISCAL YEAR 2013,"","","","KELLEY, TARA A"
,CHIEF ADMIN OFCR OF THE HOUSE,2012Q4,PERSONNEL COMPENSATION,"","KEMP, DAVID S",10/01/12,12/31/12,SENIOR SYSTEMS ENGINEER,"32,621.25",FISCAL YEAR 2013,"","","","KEMP, DAVID S"
,CHIEF ADMIN OFCR OF THE HOUSE,2012Q4,PERSONNEL COMPENSATION,"","KENEALY, PATRICK T",10/01/12,12/31/12,FINANCIAL ANALYST,"33,729.51",FISCAL YEAR 2013,"","","","KENEALY, PATRICK T"
,CHIEF ADMIN OFCR OF THE HOUSE,2012Q4,PERSONNEL COMPENSATION,"","KILSON,FRANKLIN P",10/01/12,12/31/12,NETWORK TECHNICIAN,"21,214.74",FISCAL YEAR 2013,"","","","KILSON,FRANKLIN P"
,CHIEF ADMIN OFCR OF THE HOUSE,2012Q4,PERSONNEL COMPENSATION,"","KIMBALL, MARK E",10/01/12,12/31/12,SR TECHNICAL SUPPORT REP (A),"21,663.00",FISCAL YEAR 2013,"","","","KIMBALL, MARK E"
,CHIEF ADMIN OFCR OF THE HOUSE,2012Q4,PERSONNEL COMPENSATION,"","KING, ERIC C",10/01/12,12/31/12,JOURNEYMAN FURNITURE SPEC,"19,502.49",FISCAL YEAR 2013,"","","","KING, ERIC C"
,CHIEF ADMIN OFCR OF THE HOUSE,2012Q4,PERSONNEL COMPENSATION,"","KING, JOHN A",10/01/12,12/31/12,"SUPERVISOR,LOGISTICS & DIST (A","17,735.76",FISCAL YEAR 2013,"","","","KING, JOHN A"
,CHIEF ADMIN OFCR OF THE HOUSE,2012Q4,PERSONNEL COMPENSATION,"","KLEMP, CAROLINE",10/01/12,12/31/12,DIRECTOR MEMBERS' SERVICES,"34,836.75",FISCAL YEAR 2013,"","","","KLEMP, CAROLINE"
,CHIEF ADMIN OFCR OF THE HOUSE,2012Q4,PERSONNEL COMPENSATION,"","KLUSSENDORF, KATHLEEN M",10/01/12,12/31/12,SPECIAL ASSISTANT,"27,280.50",FISCAL YEAR 2013,"","","","KLUSSENDORF, KATHLEEN M"
,CHIEF ADMIN OFCR OF THE HOUSE,2012Q4,PERSONNEL COMPENSATION,"","KNELL, KATHERINE A",10/01/12,12/31/12,HRIS APPLICATIONS MANAGER,"38,589.75",FISCAL YEAR 2013,"","","","KNELL, KATHERINE A"
,CHIEF ADMIN OFCR OF THE HOUSE,2012Q4,PERSONNEL COMPENSATION,"","KNOERL, THOMAS K",10/01/12,12/31/12,NETWORK COMMUNICATIONS SPEC,"25,939.74",FISCAL YEAR 2013,"","","","KNOERL, THOMAS K"
,CHIEF ADMIN OFCR OF THE HOUSE,2012Q4,PERSONNEL COMPENSATION,"","KORNACKI, OLGA R",10/01/12,12/31/12,DIRECTOR,"32,621.25",FISCAL YEAR 2013,"","","","KORNACKI, OLGA R"
,CHIEF ADMIN OFCR OF THE HOUSE,2012Q4,PERSONNEL COMPENSATION,"","KOSH, EMORY A",10/01/12,12/31/12,PAYROLL & BENEFITS GENERALIST,"15,789.00",FISCAL YEAR 2013,"","","","KOSH, EMORY A"
,CHIEF ADMIN OFCR OF THE HOUSE,2012Q4,PERSONNEL COMPENSATION,"","KOZTOSKI, DOUGLAS W",10/01/12,12/31/12,BROADCAST PRODUCTION TECHNICIA,"19,110.75",FISCAL YEAR 2013,"","","","KOZTOSKI, DOUGLAS W"
,CHIEF ADMIN OFCR OF THE HOUSE,2012Q4,PERSONNEL COMPENSATION,"","KRAFT,NORMAN R",11/27/12,12/31/12,INTERNET SYSTEMS SPECIALIST,"8,447.30",FISCAL YEAR 2013,"","","","KRAFT,NORMAN R"
,CHIEF ADMIN OFCR OF THE HOUSE,2012Q4,PERSONNEL COMPENSATION,"","KRALY,ELIZABETH A",10/01/12,12/31/12,"MANAGER, CAO HUMAN RESOURCES","26,422.74",FISCAL YEAR 2013,"","","","KRALY,ELIZABETH A"
,CHIEF ADMIN OFCR OF THE HOUSE,2012Q4,PERSONNEL COMPENSATION,"","KRAMER, STEPHEN",10/01/12,12/31/12,NETWORK COMMUNICATIONS SPEC,"25,044.51",FISCAL YEAR 2013,"","","","KRAMER, STEPHEN"
,CHIEF ADMIN OFCR OF THE HOUSE,2012Q4,PERSONNEL COMPENSATION,"","KREMKAU,REBECCA K",10/01/12,12/31/12,FINANCIAL ANALYST,"20,771.49",FISCAL YEAR 2013,"","","","KREMKAU,REBECCA K"
,CHIEF ADMIN OFCR OF THE HOUSE,2012Q4,PERSONNEL COMPENSATION,"","KUPER, KAREN",10/01/12,12/31/12,SPECIAL ASSISTANT/OPER SUPERVI,"24,595.50",FISCAL YEAR 2013,"","","","KUPER, KAREN"
,CHIEF ADMIN OFCR OF THE HOUSE,2012Q4,PERSONNEL COMPENSATION,"","LAGASSE, DANIEL",10/01/12,12/31/12,MOBILE COMM SPEC - TELEPHONY,"30,654.08",FISCAL YEAR 2013,"","","","LAGASSE, DANIEL"
,CHIEF ADMIN OFCR OF THE HOUSE,2012Q4,PERSONNEL COMPENSATION,"","LAU,DAVID E",10/01/12,11/30/12,SR SYSTEMS SECURITY ENGINEER,"19,902.66",FISCAL YEAR 2013,"","","","LAU,DAVID E"
,CHIEF ADMIN OFCR OF THE HOUSE,2012Q4,PERSONNEL COMPENSATION,"","LAU,DAVID E",12/01/12,12/31/12,INFORMATION SECURITY MANAGER,"10,698.67",FISCAL YEAR 2013,"","","","LAU,DAVID E"
,CHIEF ADMIN OFCR OF THE HOUSE,2012Q4,PERSONNEL COMPENSATION,"","LAWSON,DION A",10/01/12,12/31/12,PAYROLL & BENEFITS GENERALIST,"16,179.24",FISCAL YEAR 2013,"","","","LAWSON,DION A"
,CHIEF ADMIN OFCR OF THE HOUSE,2012Q4,PERSONNEL COMPENSATION,"","LAWSON,DION A",11/01/12,11/30/12,PAYROLL & BENEFITS GENERALIST (OVERTIME),280.02,FISCAL YEAR 2013,"","","","LAWSON,DION A"
,CHIEF ADMIN OFCR OF THE HOUSE,2012Q4,PERSONNEL COMPENSATION,"","LEBER, DENNIS",10/01/12,12/31/12,SR NETWORK SYSTEMS ENGINEER,"27,437.01",FISCAL YEAR 2013,"","","","LEBER, DENNIS"
,CHIEF ADMIN OFCR OF THE HOUSE,2012Q4,PERSONNEL COMPENSATION,"","LEIBACH,WILLIAM",10/01/12,12/31/12,"DIRECTOR, INTERNAL CONTROLS","32,714.49",FISCAL YEAR 2013,"","","","LEIBACH,WILLIAM"
,CHIEF ADMIN OFCR OF THE HOUSE,2012Q4,PERSONNEL COMPENSATION,"","LEIBY,FREDERICK",10/01/12,12/31/12,CONTRACT ADMINISTRATOR,"17,544.51",FISCAL YEAR 2013,"","","","LEIBY,FREDERICK"
,CHIEF ADMIN OFCR OF THE HOUSE,2012Q4,PERSONNEL COMPENSATION,"","LEON-CAMPOS, CARLOS",10/01/12,12/31/12,MANAGER,"24,595.50",FISCAL YEAR 2013,"","","","LEON-CAMPOS, CARLOS"
,CHIEF ADMIN OFCR OF THE HOUSE,2012Q4,PERSONNEL COMPENSATION,"","LEONARD,DENISE D",10/01/12,12/31/12,WORKFLOW COORDINATOR,"10,610.10",FISCAL YEAR 2013,"","","","LEONARD,DENISE D"
,CHIEF ADMIN OFCR OF THE HOUSE,2012Q4,PERSONNEL COMPENSATION,"","LESANE, SONYIA",10/01/12,12/31/12,EXECUTIVE ASSISTANT,"17,544.51",FISCAL YEAR 2013,"","","","LESANE, SONYIA"
,CHIEF ADMIN OFCR OF THE HOUSE,2012Q4,PERSONNEL COMPENSATION,"","LEVENGOOD, DAVID S",10/01/12,12/31/12,TECHNICAL TRAINER,"17,937.75",FISCAL YEAR 2013,"","","","LEVENGOOD, DAVID S"
,CHIEF ADMIN OFCR OF THE HOUSE,2012Q4,PERSONNEL COMPENSATION,"","LEWIS, JOHN T",10/01/12,12/31/12,DIRECTOR FURNISHINGS,"27,946.26",FISCAL YEAR 2013,"","","","LEWIS, JOHN T"
,CHIEF ADMIN OFCR OF THE HOUSE,2012Q4,PERSONNEL COMPENSATION,"","LEWIS, ROBERT M",10/01/12,12/31/12,PHOTOGRAPHIC LAB TECHNICIAN,"17,175.99",FISCAL YEAR 2013,"","","","LEWIS, ROBERT M"
,CHIEF ADMIN OFCR OF THE HOUSE,2012Q4,PERSONNEL COMPENSATION,"","LIM,CHAU T",10/01/12,12/31/12,SENIOR ACCOUNTANT (A),"24,894.84",FISCAL YEAR 2013,"","","","LIM,CHAU T"
,CHIEF ADMIN OFCR OF THE HOUSE,2012Q4,PERSONNEL COMPENSATION,"","LINVILLE, RAY A",10/01/12,12/31/12,SENIOR SYSTEMS ENGINEER,"29,978.76",FISCAL YEAR 2013,"","","","LINVILLE, RAY A"
,CHIEF ADMIN OFCR OF THE HOUSE,2012Q4,PERSONNEL COMPENSATION,"","LITTLE, ANDREAL P",10/01/12,12/31/12,ADMINISTRATIVE SPECIALIST,"15,830.01",FISCAL YEAR 2013,"","","","LITTLE, ANDREAL P"
,CHIEF ADMIN OFCR OF THE HOUSE,2012Q4,PERSONNEL COMPENSATION,"","LITTLE, HAROLD M",10/01/12,12/31/12,SR TECH SOLUTIONS ENGINEER,"24,150.51",FISCAL YEAR 2013,"","","","LITTLE, HAROLD M"
,CHIEF ADMIN OFCR OF THE HOUSE,2012Q4,PERSONNEL COMPENSATION,"","LOGAN, KATHERINE J",10/01/12,12/31/12,DIRECTOR PAYROLL AND BENEFITS,"37,786.09",FISCAL YEAR 2013,"","","","LOGAN, KATHERINE J"
,CHIEF ADMIN OFCR OF THE HOUSE,2012Q4,PERSONNEL COMPENSATION,"","LONG, JOHN P",10/01/12,12/31/12,SR MODULAR FURNITURE SPEC,"23,888.25",FISCAL YEAR 2013,"","","","LONG, JOHN P"
,CHIEF ADMIN OFCR OF THE HOUSE,2012Q4,PERSONNEL COMPENSATION,"","LOVING, ANTHONY",10/01/12,12/31/12,APPLICATION DBA SPECIALIST,"27,437.01",FISCAL YEAR 2013,"","","","LOVING, ANTHONY"
,CHIEF ADMIN OFCR OF THE HOUSE,2012Q4,PERSONNEL COMPENSATION,"","MAAS, JENNIFER A",10/01/12,12/31/12,"MGR, USER EXPERIENCE & DESIGN","25,573.42",FISCAL YEAR 2013,"","","","MAAS, JENNIFER A"
,CHIEF ADMIN OFCR OF THE HOUSE,2012Q4,PERSONNEL COMPENSATION,"","MAGRUDER, TIMOTHY",10/01/12,12/31/12,JOURNEYMAN FURNITURE SPEC,"15,491.01",FISCAL YEAR 2013,"","","","MAGRUDER, TIMOTHY"
,CHIEF ADMIN OFCR OF THE HOUSE,2012Q4,PERSONNEL COMPENSATION,"","MAGRUDER, TIMOTHY",11/01/12,11/30/12,JOURNEYMAN FURNITURE SPEC. (OVERTIME),759.65,FISCAL YEAR 2013,"","","","MAGRUDER, TIMOTHY"
,CHIEF ADMIN OFCR OF THE HOUSE,2012Q4,PERSONNEL COMPENSATION,"","MAHAR,EDWARD A",10/01/12,12/31/12,"DIR, INFO SYSTEMS SECURITY","36,177.99",FISCAL YEAR 2013,"","","","MAHAR,EDWARD A"
,CHIEF ADMIN OFCR OF THE HOUSE,2012Q4,PERSONNEL COMPENSATION,"","MAIDEN III, LEWIS L",10/01/12,12/31/12,LOGISTICS & DIST SPEC (A),"14,470.50",FISCAL YEAR 2013,"","","","MAIDEN III, LEWIS L"
,CHIEF ADMIN OFCR OF THE HOUSE,2012Q4,PERSONNEL COMPENSATION,"","MAKO, THOMAS E",10/01/12,12/31/12,SENIOR NETWORK TECHNICIAN,"22,998.51",FISCAL YEAR 2013,"","","","MAKO, THOMAS E"
,CHIEF ADMIN OFCR OF THE HOUSE,2012Q4,PERSONNEL COMPENSATION,"","MALASPINA,KIMBERLY J",10/01/12,12/31/12,JOURNEYMAN TEXTILE SPEC,"16,827.92",FISCAL YEAR 2013,"","","","MALASPINA,KIMBERLY J"
,CHIEF ADMIN OFCR OF THE HOUSE,2012Q4,PERSONNEL COMPENSATION,"","MALLON, MICHAEL P",10/01/12,12/31/12,RESOURCE ANALYST,"22,551.00",FISCAL YEAR 2013,"","","","MALLON, MICHAEL P"
,CHIEF ADMIN OFCR OF THE HOUSE,2012Q4,PERSONNEL COMPENSATION,"","MALLOY, DEON",10/01/12,12/31/12,SR TECHNICAL SUPPORT REP (A),"21,663.00",FISCAL YEAR 2013,"","","","MALLOY, DEON"
,CHIEF ADMIN OFCR OF THE HOUSE,2012Q4,PERSONNEL COMPENSATION,"","MALONE, RUSSELL A",10/01/12,12/31/12,LOGISTICS & DIST SPEC (A),"10,980.00",FISCAL YEAR 2013,"","","","MALONE, RUSSELL A"
,CHIEF ADMIN OFCR OF THE HOUSE,2012Q4,PERSONNEL COMPENSATION,"","MANSON, JOHN L",10/01/12,12/31/12,SR NETWORK COMM SPEC (A),"29,978.76",FISCAL YEAR 2013,"","","","MANSON, JOHN L"
,CHIEF ADMIN OFCR OF THE HOUSE,2012Q4,PERSONNEL COMPENSATION,"","MARCUM JR, VINCENT L",10/01/12,12/31/12,JOURNEYMAN TEXTILE SPEC,"18,903.24",FISCAL YEAR 2013,"","","","MARCUM JR, VINCENT L"
,CHIEF ADMIN OFCR OF THE HOUSE,2012Q4,PERSONNEL COMPENSATION,"","MARCUM JR, VINCENT L",11/01/12,11/30/12,JOURNEYMAN TEXTILE SPEC (OVERTIME),518.02,FISCAL YEAR 2013,"","","","MARCUM JR, VINCENT L"
,CHIEF ADMIN OFCR OF THE HOUSE,2012Q4,PERSONNEL COMPENSATION,"","MARCUS, RALPH J",10/01/12,12/31/12,TECHNICAL DIRECTOR (A),"23,853.17",FISCAL YEAR 2013,"","","","MARCUS, RALPH J"
,CHIEF ADMIN OFCR OF THE HOUSE,2012Q4,PERSONNEL COMPENSATION,"","MARSH, STEVE W",10/01/12,12/31/12,"MANAGER, ACCOUNTING","28,962.75",FISCAL YEAR 2013,"","","","MARSH, STEVE W"
,CHIEF ADMIN OFCR OF THE HOUSE,2012Q4,PERSONNEL COMPENSATION,"","MARTIN, CHRISTOPHER W",10/01/12,12/31/12,JOURNEYMAN FURNITURE SPEC,"19,680.51",FISCAL YEAR 2013,"","","","MARTIN, CHRISTOPHER W"
,CHIEF ADMIN OFCR OF THE HOUSE,2012Q4,PERSONNEL COMPENSATION,"","MARTINEZ, JAIME D",10/01/12,12/31/12,SENIOR SYSTEMS ENGINEER,"27,946.26",FISCAL YEAR 2013,"","","","MARTINEZ, JAIME D"
,CHIEF ADMIN OFCR OF THE HOUSE,2012Q4,PERSONNEL COMPENSATION,"","MARTINS, RICHARD",10/01/12,12/31/12,MANAGER NETWORK CONFIG. MNGMNT,"33,938.25",FISCAL YEAR 2013,"","","","MARTINS, RICHARD"
,CHIEF ADMIN OFCR OF THE HOUSE,2012Q4,PERSONNEL COMPENSATION,"","MASHETER JR, FREDERICK J",10/01/12,12/31/12,PURCHASING AGENT,"14,807.25",FISCAL YEAR 2013,"","","","MASHETER JR, FREDERICK J"
,CHIEF ADMIN OFCR OF THE HOUSE,2012Q4,PERSONNEL COMPENSATION,"","MASON, TRON",10/01/12,12/31/12,SR NETWORK COMM SPEC,"24,595.50",FISCAL YEAR 2013,"","","","MASON, TRON"
,CHIEF ADMIN OFCR OF THE HOUSE,2012Q4,PERSONNEL COMPENSATION,"","MASSENGALE, DOUG",10/01/12,12/31/12,SR BROADCAST ENG/PROD SPECLST,"25,044.51",FISCAL YEAR 2013,"","","","MASSENGALE, DOUG"
,CHIEF ADMIN OFCR OF THE HOUSE,2012Q4,PERSONNEL COMPENSATION,"","MATADIAL, GLORIA V",10/01/12,12/31/12,SUPERVISOR,"28,454.01",FISCAL YEAR 2013,"","","","MATADIAL, GLORIA V"
,CHIEF ADMIN OFCR OF THE HOUSE,2012Q4,PERSONNEL COMPENSATION,"","MATHIS,MARC R",10/01/12,12/31/12,NETWORK TECHNICIAN,"19,502.49",FISCAL YEAR 2013,"","","","MATHIS,MARC R"
,CHIEF ADMIN OFCR OF THE HOUSE,2012Q4,PERSONNEL COMPENSATION,"","MATTHEWS,LEVI S",10/01/12,12/31/12,PAYROLL & BENEFITS GENERALIST,"16,179.24",FISCAL YEAR 2013,"","","","MATTHEWS,LEVI S"
,CHIEF ADMIN OFCR OF THE HOUSE,2012Q4,PERSONNEL COMPENSATION,"","MATTHEWS,LEVI S",11/01/12,11/30/12,PAYROLL & BENEFITS GENERALIST (OVERTIME),"1,185.49",FISCAL YEAR 2013,"","","","MATTHEWS,LEVI S"
,CHIEF ADMIN OFCR OF THE HOUSE,2012Q4,PERSONNEL COMPENSATION,"","MAULDIN,EVAN B",10/01/12,12/31/12,FINANCIAL ANALYST,"19,502.49",FISCAL YEAR 2013,"","","","MAULDIN,EVAN B"
,CHIEF ADMIN OFCR OF THE HOUSE,2012Q4,PERSONNEL COMPENSATION,"","MAZZULLO, MICHAEL A",10/01/12,12/31/12,RECEIVING/WAREHOUSE SPEC,"10,980.00",FISCAL YEAR 2013,"","","","MAZZULLO, MICHAEL A"
,CHIEF ADMIN OFCR OF THE HOUSE,2012Q4,PERSONNEL COMPENSATION,"","MCBRIDE-CHAMBERS, LISBETH",10/01/12,12/31/12,SR EA COUNSELOR,"32,010.99",FISCAL YEAR 2013,"","","","MCBRIDE-CHAMBERS, LISBETH"
,CHIEF ADMIN OFCR OF THE HOUSE,2012Q4,PERSONNEL COMPENSATION,"","MCCAULEY, ERICA C",10/01/12,12/31/12,FINANCIAL COUNSELOR,"15,401.76",FISCAL YEAR 2013,"","","","MCCAULEY, ERICA C"
,CHIEF ADMIN OFCR OF THE HOUSE,2012Q4,PERSONNEL COMPENSATION,"","MCCUE, BRIAN M",10/01/12,12/31/12,FINANCIAL ANALYST,"17,937.75",FISCAL YEAR 2013,"","","","MCCUE, BRIAN M"
,CHIEF ADMIN OFCR OF THE HOUSE,2012Q4,PERSONNEL COMPENSATION,"","MCDONALD, BRADLEY A",10/01/12,12/31/12,"MANAGER, ENTERPRISE APPL SUPP","35,160.75",FISCAL YEAR 2013,"","","","MCDONALD, BRADLEY A"
,CHIEF ADMIN OFCR OF THE HOUSE,2012Q4,PERSONNEL COMPENSATION,"","MCFADDEN, SAINT JUAN",10/01/12,12/31/12,SR PAYROLL & BENS GENERALIST,"19,877.25",FISCAL YEAR 2013,"","","","MCFADDEN, SAINT JUAN"
,CHIEF ADMIN OFCR OF THE HOUSE,2012Q4,PERSONNEL COMPENSATION,"","MCFADDEN,MIRANDA J",10/01/12,12/31/12,FINANCIAL ANALYST,"21,214.74",FISCAL YEAR 2013,"","","","MCFADDEN,MIRANDA J"
,CHIEF ADMIN OFCR OF THE HOUSE,2012Q4,PERSONNEL COMPENSATION,"","MCGARRY, THOMAS K",10/01/12,12/31/12,JOURNEYMAN FURNITURE SPEC,"19,680.51",FISCAL YEAR 2013,"","","","MCGARRY, THOMAS K"
,CHIEF ADMIN OFCR OF THE HOUSE,2012Q4,PERSONNEL COMPENSATION,"","MCGARRY, THOMAS K",11/01/12,11/30/12,JOURNEYMAN FURNITURE SPEC. (OVERTIME),170.31,FISCAL YEAR 2013,"","","","MCGARRY, THOMAS K"
,CHIEF ADMIN OFCR OF THE HOUSE,2012Q4,PERSONNEL COMPENSATION,"","MCKITTRICK, DAVID E",10/01/12,12/31/12,SR BUSINESS PROCESS APPL SPEC,"37,001.25",FISCAL YEAR 2013,"","","","MCKITTRICK, DAVID E"
,CHIEF ADMIN OFCR OF THE HOUSE,2012Q4,PERSONNEL COMPENSATION,"","MCLAUGHLIN,VERA",10/01/12,12/31/12,SPECIAL ASSISTANT,"18,719.25",FISCAL YEAR 2013,"","","","MCLAUGHLIN,VERA"
,CHIEF ADMIN OFCR OF THE HOUSE,2012Q4,PERSONNEL COMPENSATION,"","MCLEOD, ROY",10/01/12,12/31/12,SR CAMERA OPERATOR (A),"25,044.51",FISCAL YEAR 2013,"","","","MCLEOD, ROY"
,CHIEF ADMIN OFCR OF THE HOUSE,2012Q4,PERSONNEL COMPENSATION,"","MEEK, KATHRYN H",10/01/12,12/31/12,SR INTERNET SYSTEMS SPECIALIST,"33,173.76",FISCAL YEAR 2013,"","","","MEEK, KATHRYN H"
,CHIEF ADMIN OFCR OF THE HOUSE,2012Q4,PERSONNEL COMPENSATION,"","MEISTER, DARLENE T",10/01/12,12/31/12,"DIR, DIVERSITY & ORG CHGE MGT","32,714.49",FISCAL YEAR 2013,"","","","MEISTER, DARLENE T"
,CHIEF ADMIN OFCR OF THE HOUSE,2012Q4,PERSONNEL COMPENSATION,"","MELVIN, GWENDOLYN A",10/01/12,12/31/12,PAYROLL & BENEFITS ASSISTANT,"13,798.50",FISCAL YEAR 2013,"","","","MELVIN, GWENDOLYN A"
,CHIEF ADMIN OFCR OF THE HOUSE,2012Q4,PERSONNEL COMPENSATION,"","MELVIN, MICHAEL C",10/01/12,12/31/12,TECHNICAL SUPPORT REP,"19,894.74",FISCAL YEAR 2013,"","","","MELVIN, MICHAEL C"
,CHIEF ADMIN OFCR OF THE HOUSE,2012Q4,PERSONNEL COMPENSATION,"","MENDOZA,LYDIA",10/01/12,12/31/12,PAYROLL & BENEFITS GENERALIST,"16,179.24",FISCAL YEAR 2013,"","","","MENDOZA,LYDIA"
,CHIEF ADMIN OFCR OF THE HOUSE,2012Q4,PERSONNEL COMPENSATION,"","MENDOZA,LYDIA",11/01/12,11/30/12,PAYROLL & BENEFITS GENERALIST (OVERTIME),871.19,FISCAL YEAR 2013,"","","","MENDOZA,LYDIA"
,CHIEF ADMIN OFCR OF THE HOUSE,2012Q4,PERSONNEL COMPENSATION,"","MEREDITH, DWAINE",10/01/12,12/31/12,LOGISTICS & DIST SPEC (A),"10,095.75",FISCAL YEAR 2013,"","","","MEREDITH, DWAINE"
,CHIEF ADMIN OFCR OF THE HOUSE,2012Q4,PERSONNEL COMPENSATION,"","METZLER,FRANMARIE",10/01/12,11/27/12,PHOTOGRAPHER/LAB TECH (TEMP),"8,441.53",FISCAL YEAR 2013,"","","","METZLER,FRANMARIE"
,CHIEF ADMIN OFCR OF THE HOUSE,2012Q4,PERSONNEL COMPENSATION,"","MICHALEK, WILLIAM",10/01/12,12/31/12,BILLING ADMINISTRATOR,"17,175.99",FISCAL YEAR 2013,"","","","MICHALEK, WILLIAM"
,CHIEF ADMIN OFCR OF THE HOUSE,2012Q4,PERSONNEL COMPENSATION,"","MILASI, FRANCESCO",10/01/12,12/31/12,SENIOR NETWORK TECHNICIAN (A),"23,888.25",FISCAL YEAR 2013,"","","","MILASI, FRANCESCO"
,CHIEF ADMIN OFCR OF THE HOUSE,2012Q4,PERSONNEL COMPENSATION,"","MILLER JR, LOUIS",10/01/12,12/31/12,PURCHASING AGENT,"13,798.50",FISCAL YEAR 2013,"","","","MILLER JR, LOUIS"
,CHIEF ADMIN OFCR OF THE HOUSE,2012Q4,PERSONNEL COMPENSATION,"","MILLER, KEITH E",10/01/12,12/31/12,BROADCAST PRODUCTION TECHNICIA,"22,551.00",FISCAL YEAR 2013,"","","","MILLER, KEITH E"
,CHIEF ADMIN OFCR OF THE HOUSE,2012Q4,PERSONNEL COMPENSATION,"","MILLER,MICHAEL A",10/01/12,12/31/12,"MANAGER, PROD AND SUPPORT","25,573.42",FISCAL YEAR 2013,"","","","MILLER,MICHAEL A"
,CHIEF ADMIN OFCR OF THE HOUSE,2012Q4,PERSONNEL COMPENSATION,"","MILLER,SHAWN",10/01/12,12/31/12,GRAPHICS & DESKTOP PUBL SPEC,"16,309.24",FISCAL YEAR 2013,"","","","MILLER,SHAWN"
,CHIEF ADMIN OFCR OF THE HOUSE,2012Q4,PERSONNEL COMPENSATION,"","MILLER,SHAWN",11/01/12,11/30/12,GRAPHICS & DESKTOP PUBL SPEC (OVERTIME),357.80,FISCAL YEAR 2013,"","","","MILLER,SHAWN"
,CHIEF ADMIN OFCR OF THE HOUSE,2012Q4,PERSONNEL COMPENSATION,"","MILLER-LAMILL, ELOISE R",10/01/12,12/31/12,BROADCAST PRODUCTION TECHNICIA,"22,551.00",FISCAL YEAR 2013,"","","","MILLER-LAMILL, ELOISE R"
,CHIEF ADMIN OFCR OF THE HOUSE,2012Q4,PERSONNEL COMPENSATION,"","MINOR,LESLIE",10/01/12,12/31/12,FINANCIAL COUNSELOR,"16,179.24",FISCAL YEAR 2013,"","","","MINOR,LESLIE"
,CHIEF ADMIN OFCR OF THE HOUSE,2012Q4,PERSONNEL COMPENSATION,"","MINTON, DONNA",10/01/12,12/31/12,BUSINESS PROC APPLIC SPEC,"27,946.26",FISCAL YEAR 2013,"","","","MINTON, DONNA"
,CHIEF ADMIN OFCR OF THE HOUSE,2012Q4,PERSONNEL COMPENSATION,"","MINTON, DONNA",11/01/12,11/30/12,BUSINESS PROC APPLIC SPEC (OVERTIME),698.65,FISCAL YEAR 2013,"","","","MINTON, DONNA"
,CHIEF ADMIN OFCR OF THE HOUSE,2012Q4,PERSONNEL COMPENSATION,"","MINTURN, JOHN J",10/01/12,11/30/12,SR COMM SECURITY ANALYST,"18,630.84",FISCAL YEAR 2013,"","","","MINTURN, JOHN J"
,CHIEF ADMIN OFCR OF THE HOUSE,2012Q4,PERSONNEL COMPENSATION,"","MINTURN, JOHN J",12/01/12,12/31/12,INFO SYSTEMS SECURITY MNGR,"10,698.67",FISCAL YEAR 2013,"","","","MINTURN, JOHN J"
,CHIEF ADMIN OFCR OF THE HOUSE,2012Q4,PERSONNEL COMPENSATION,"","MODICA, MICHAEL",10/01/12,12/31/12,CUSTOMER RELATIONS MANAGER,"30,960.24",FISCAL YEAR 2013,"","","","MODICA, MICHAEL"
,CHIEF ADMIN OFCR OF THE HOUSE,2012Q4,PERSONNEL COMPENSATION,"","MOE, NELSON P",10/01/12,12/31/12,CHIEF INFORMATION OFFICER,"42,102.75",FISCAL YEAR 2013,"","","","MOE, NELSON P"
,CHIEF ADMIN OFCR OF THE HOUSE,2012Q4,PERSONNEL COMPENSATION,"","MOLL, ANDREW C",10/01/12,12/31/12,SR INTERNET SYSTEMS SPECIALIST,"33,729.51",FISCAL YEAR 2013,"","","","MOLL, ANDREW C"
,CHIEF ADMIN OFCR OF THE HOUSE,2012Q4,PERSONNEL COMPENSATION,"","MONAHAN, TIMOTHY J",10/01/12,12/31/12,SPECIAL ASSISTANT,"18,329.01",FISCAL YEAR 2013,"","","","MONAHAN, TIMOTHY J"
,CHIEF ADMIN OFCR OF THE HOUSE,2012Q4,PERSONNEL COMPENSATION,"","MOONEY, JOHN P",10/01/12,10/01/12,SR WORKFLOW COORDINATOR,242.82,FISCAL YEAR 2013,"","","","MOONEY, JOHN P"
,CHIEF ADMIN OFCR OF THE HOUSE,2012Q4,PERSONNEL COMPENSATION,"","MOORE JR, GEORGE D",10/01/12,12/31/12,LOGISTICS & DIST SPEC (A),"13,503.51",FISCAL YEAR 2013,"","","","MOORE JR, GEORGE D"
,CHIEF ADMIN OFCR OF THE HOUSE,2012Q4,PERSONNEL COMPENSATION,"","MOORE, EDWARDA P",10/01/12,12/31/12,FINANCIAL COUNSELOR,"19,894.74",FISCAL YEAR 2013,"","","","MOORE, EDWARDA P"
,CHIEF ADMIN OFCR OF THE HOUSE,2012Q4,PERSONNEL COMPENSATION,"","MOORE, EDWARDA P",11/01/12,11/30/12,FINANCIAL COUNSELOR (OVERTIME),401.72,FISCAL YEAR 2013,"","","","MOORE, EDWARDA P"
,CHIEF ADMIN OFCR OF THE HOUSE,2012Q4,PERSONNEL COMPENSATION,"","MORA,CARLOS",10/01/12,12/31/12,BROADCAST ENGINEER/PROD SPEC,"21,214.74",FISCAL YEAR 2013,"","","","MORA,CARLOS"
,CHIEF ADMIN OFCR OF THE HOUSE,2012Q4,PERSONNEL COMPENSATION,"","MORA,CARLOS",10/01/12,11/30/12,BROADCAST ENGINEER/PROD SPEC. (OVERTIME),244.78,FISCAL YEAR 2013,"","","","MORA,CARLOS"
,CHIEF ADMIN OFCR OF THE HOUSE,2012Q4,PERSONNEL COMPENSATION,"","MORETTI, SCOTT A",10/01/12,12/31/12,NETWORK TECHNICIAN,"22,107.00",FISCAL YEAR 2013,"","","","MORETTI, SCOTT A"
,CHIEF ADMIN OFCR OF THE HOUSE,2012Q4,PERSONNEL COMPENSATION,"","MORGAN,CODY R",10/01/12,12/31/12,JOURNEYMAN TEXTILE SPEC,"15,789.00",FISCAL YEAR 2013,"","","","MORGAN,CODY R"
,CHIEF ADMIN OFCR OF THE HOUSE,2012Q4,PERSONNEL COMPENSATION,"","MORRIS,NICOLE C",10/01/12,12/31/12,SENIOR SYSTEMS ENGINEER,"30,405.24",FISCAL YEAR 2013,"","","","MORRIS,NICOLE C"
,CHIEF ADMIN OFCR OF THE HOUSE,2012Q4,PERSONNEL COMPENSATION,"","MOSES,ELIAS",10/01/12,12/31/12,APPLICATION SYSTEMS ADMINISTRA,"29,298.99",FISCAL YEAR 2013,"","","","MOSES,ELIAS"
,CHIEF ADMIN OFCR OF THE HOUSE,2012Q4,PERSONNEL COMPENSATION,"","MOSLEY, JOSEPH",10/01/12,12/31/12,TECHNICAL DIRECTOR (A),"23,704.50",FISCAL YEAR 2013,"","","","MOSLEY, JOSEPH"
,CHIEF ADMIN OFCR OF THE HOUSE,2012Q4,PERSONNEL COMPENSATION,"","MOXLEY,STEVEN",10/01/12,12/31/12,SR. SECURITY ENGINEER,"22,360.50",FISCAL YEAR 2013,"","","","MOXLEY,STEVEN"
,CHIEF ADMIN OFCR OF THE HOUSE,2012Q4,PERSONNEL COMPENSATION,"","MOYA, DAVID L",10/01/12,12/31/12,SYSTEMS ENGINEER,"25,044.51",FISCAL YEAR 2013,"","","","MOYA, DAVID L"
,CHIEF ADMIN OFCR OF THE HOUSE,2012Q4,PERSONNEL COMPENSATION,"","MUJAHID,WILLIAM L",10/01/12,12/31/12,NETWORK TECHNICIAN,"21,214.74",FISCAL YEAR 2013,"","","","MUJAHID,WILLIAM L"
,CHIEF ADMIN OFCR OF THE HOUSE,2012Q4,PERSONNEL COMPENSATION,"","MULLVAIN, RONALD M",10/01/12,12/31/12,BUSINESS PROC APPLIC SPEC,"25,912.74",FISCAL YEAR 2013,"","","","MULLVAIN, RONALD M"
,CHIEF ADMIN OFCR OF THE HOUSE,2012Q4,PERSONNEL COMPENSATION,"","MUNCY, JAMES P",10/01/12,12/31/12,SENIOR NETWORK TECHNICIAN,"22,998.51",FISCAL YEAR 2013,"","","","MUNCY, JAMES P"
,CHIEF ADMIN OFCR OF THE HOUSE,2012Q4,PERSONNEL COMPENSATION,"","MURPHY, JASON A",10/01/12,12/31/12,LOGISTICS & DIST SPEC (A),"10,095.75",FISCAL YEAR 2013,"","","","MURPHY, JASON A"
,CHIEF ADMIN OFCR OF THE HOUSE,2012Q4,PERSONNEL COMPENSATION,"","MURPHY,ROBERT",10/01/12,12/31/12,"MANAGER, FINANCIAL SYSTEMS","38,840.76",FISCAL YEAR 2013,"","","","MURPHY,ROBERT"
,CHIEF ADMIN OFCR OF THE HOUSE,2012Q4,PERSONNEL COMPENSATION,"","MYERS, ANTHONY C",10/01/12,10/21/12,NETWORK TECHNICIAN,"4,916.33",FISCAL YEAR 2013,"","","","MYERS, ANTHONY C"
,CHIEF ADMIN OFCR OF THE HOUSE,2012Q4,PERSONNEL COMPENSATION,"","MYERS, ANTHONY C",10/22/12,12/31/12,NETWORK COMM SPECIALIST,"16,608.30",FISCAL YEAR 2013,"","","","MYERS, ANTHONY C"
,CHIEF ADMIN OFCR OF THE HOUSE,2012Q4,PERSONNEL COMPENSATION,"","NADEAU,JOHN J",10/01/12,12/31/12,DIRECTOR FINANCIAL COUNSELING,"32,096.01",FISCAL YEAR 2013,"","","","NADEAU,JOHN J"
,CHIEF ADMIN OFCR OF THE HOUSE,2012Q4,PERSONNEL COMPENSATION,"","NASH, MICHAEL R",10/01/12,12/31/12,BRANCH MANAGER,"34,547.25",FISCAL YEAR 2013,"","","","NASH, MICHAEL R"
,CHIEF ADMIN OFCR OF THE HOUSE,2012Q4,PERSONNEL COMPENSATION,"","NASR,HAITHAM M",10/01/12,12/31/12,BROADCAST ENGINEER/PROD SPEC,"20,771.49",FISCAL YEAR 2013,"","","","NASR,HAITHAM M"
